Trans No.,Service Area Categorisation,Service Division Categorisation,Responsible Unit,Unit Code,Expenses Type,Expenses Sub Type,Expense Code,Narrative,Amount,Invoice Date,Cap/Rev,Supplier Name
1,Central Services,Corporate Mangmt not separated,Chief Exec's Office,A01001,Supplies & Services           ,Grants and Subscriptions      ,DJ04,Subscriptions                           ,"38,041.08",01/04/2015,R,LOCAL GOVERNMENT ASSOCIATION  
2,Cultural Env Reg&Plan Services,Comm Safety (Crime Reduction),Crime and Strategy Team,A01100,Supplies & Services           ,Expenses                      ,DH03,Hospitality                             ,624,23/03/2015,R,GOSTO FINO PORTUGAL PATISSERIE
3,Cultural Env Reg&Plan Services,Comm Safety (Crime Reduction),Crime and Strategy Team,A01100,Third Party Payments          ,Private Contractors           ,EH02,Miscellaneous Hired Services            ,"8,200.00",15/04/2015,R,MERTON AND SUTTON MEDIATION   
4,Cultural Env Reg&Plan Services,Comm Safety (Crime Reduction),Crime and Strategy Team,A01100,Third Party Payments          ,Private Contractors           ,EH02,Miscellaneous Hired Services            ,"1,750.00",31/03/2015,R,MORDEN BAPTIST CHURCH         
5,Cultural Env Reg&Plan Services,Comm Safety (Crime Reduction),Prolific & Priority Offenders,A01105,Third Party Payments          ,Private Contractors           ,EH02,Miscellaneous Hired Services            ,"2,178.66",01/04/2015,R,GLOBAL MSC SECURITY LTD       
6,Cultural Env Reg&Plan Services,Comm Safety (Crime Reduction),CCTV,A01200,Premises Related Expenditure  ,Energy Costs                  ,BB02,Electricity                             ,530.83,09/04/2015,R,SCOTTISHPOWER                 
7,Cultural Env Reg&Plan Services,Comm Safety (Crime Reduction),CCTV,A01200,Supplies & Services           ,Services                      ,DF57,Consulting Engineers Fees               ,"2,500.00",01/04/2015,R,GLOBAL MSC SECURITY LTD       
8,Cultural Env Reg&Plan Services,Comm Safety (Crime Reduction),CCTV,A01200,Supplies & Services           ,Comms and Computing           ,DG15,Network Maintenance                     ,"2,801.94",02/04/2015,R,BT REDCARE                    
9,Cultural Env Reg&Plan Services,Comm Safety (Crime Reduction),CCTV,A01200,Supplies & Services           ,Comms and Computing           ,DG15,Network Maintenance                     ,"2,200.00",01/04/2014,R,VIRGIN MEDIA PAYMENTS LIMITED 
10,Cultural Env Reg&Plan Services,Comm Safety (Crime Reduction),CCTV,A01200,Supplies & Services           ,Comms and Computing           ,DG15,Network Maintenance                     ,800,01/04/2014,R,VIRGIN MEDIA PAYMENTS LIMITED 
11,Cultural Env Reg&Plan Services,Comm Safety (Crime Reduction),CCTV,A01200,Supplies & Services           ,Comms and Computing           ,DG15,Network Maintenance                     ,"6,073.79",02/04/2015,R,BT REDCARE                    
12,Cultural Env Reg&Plan Services,Comm Safety (Crime Reduction),CCTV,A01200,Supplies & Services           ,Comms and Computing           ,DG15,Network Maintenance                     ,"2,880.00",01/04/2014,R,VIRGIN MEDIA PAYMENTS LIMITED 
13,Central Services,SupS Chief Execs,NON-STATUTORY MARKETING & COMM,A02019,Supplies & Services           ,Services                      ,DF02,Misc Advertising/Publicity              ,537,01/04/2015,R,XL DISPLAYS                   
14,Central Services,SupS Chief Execs,NON-STATUTORY MARKETING & COMM,A02019,Supplies & Services           ,Services                      ,DF35,Graphic Design                          ,835,12/02/2015,R,DOMINO 4 LIMITED              
15,Central Services,SupS Chief Execs,NON-STATUTORY MARKETING & COMM,A02019,Supplies & Services           ,Expenses                      ,DH14,Prizes and Awards                       ,"10,557.50",13/04/2015,R,THE GIFT VOUCHER SHOP LTD     
16,Central Services,SupS Chief Execs,NON-STATUTORY MARKETING & COMM,A02019,Supplies & Services           ,Expenses                      ,DH14,Prizes and Awards                       ,"2,679.50",13/04/2015,R,THE GIFT VOUCHER SHOP LTD     
17,Central Services,SupS Chief Execs,Press and Public Relations.,A02026,Supplies & Services           ,Prntng Stnry Gen Off Exp      ,DE20,Council Magazine                        ,"3,892.00",13/03/2015,R,LONDON LETTERBOX MARKETING    
18,Central Services,SupS Chief Execs,Press and Public Relations.,A02026,Supplies & Services           ,Grants and Subscriptions      ,DJ04,Subscriptions                           ,"2,388.00",15/04/2015,R,NEWSPAPER LICENSING AGENCY LTD
19,CS -Oth Operating Inc & Expend,T/A Corporate Services,Prtng Jobs - Ext Agncy,A03041,Supplies & Services           ,Prntng Stnry Gen Off Exp      ,DE01,External Printing                       ,629,17/04/2015,R,EURO LABEL PRINTERS           
20,CS -Oth Operating Inc & Expend,T/A Corporate Services,Prtng Jobs - Ext Agncy,A03041,Supplies & Services           ,Prntng Stnry Gen Off Exp      ,DE01,External Printing                       ,538,13/04/2015,R,LIMETREE OFFSET LTD           
21,Central Services,SupS Comm and Member Services,PROGRAMME OFFICE,A04068,Employees                     ,Indirect Employee Expenses    ,AB02,RECRUITMENT ADVERTS                     ,"1,250.00",29/01/2015,R,TECHNOJOBS                    
22,Central Services,Grants - Voluntary Groups,VOLUNTARY SECTOR COORDINATION,A04082,Supplies & Services           ,Grants and Subscriptions      ,DJ01,Grants                                  ,"40,000.00",01/04/2015,R,MERTON CIL                    
23,Central Services,Grants - Voluntary Groups,VOLUNTARY SECTOR COORDINATION,A04082,Supplies & Services           ,Grants and Subscriptions      ,DJ01,Grants                                  ,"62,742.00",01/04/2015,R,MERTON VOLUNTARY SERV COUNCIL 
24,Central Services,Grants - Voluntary Groups,VOLUNTARY SECTOR COORDINATION,A04082,Supplies & Services           ,Grants and Subscriptions      ,DJ01,Grants                                  ,"26,882.50",01/04/2015,R,SPRINGFIELD LAW CENTRE LTD
25,Central Services,Grants - Voluntary Groups,VOLUNTARY SECTOR COORDINATION,A04082,Supplies & Services           ,Grants and Subscriptions      ,DJ01,Grants                                  ,"170,949.00",01/04/2015,R,MERTON CITIZEN ADVICE BUREAU  
26,Central Services,Grants - Voluntary Groups,VOLUNTARY SECTOR COORDINATION,A04082,Supplies & Services           ,Grants and Subscriptions      ,DJ01,Grants                                  ,"12,500.00",01/04/2015,R,MERTON COMMUNITY TRANSPORT    
27,Central Services,Grants - Voluntary Groups,VOLUNTARY SECTOR COORDINATION,A04082,Supplies & Services           ,Grants and Subscriptions      ,DJ01,Grants                                  ,"28,017.00",01/04/2015,R,SW LONDON LAW CENTRES         
28,Central Services,SupS Comm and Member Services,COMMERICIAL SERVICES,A04085,Employees                     ,Direct Employee Expenses      ,AA17,Agency Staff & Casual Paymts            ,"2,712.00",08/04/2015,R,HAYS RECRUITING EXPERTS       
29,Central Services,SupS Comm and Member Services,COMMERICIAL SERVICES,A04085,Employees                     ,Direct Employee Expenses      ,AA17,Agency Staff & Casual Paymts            ,"1,356.00",15/04/2015,R,HAYS RECRUITING EXPERTS       
30,Central Services,SupS Comm and Member Services,COMMERICIAL SERVICES,A04085,Employees                     ,Direct Employee Expenses      ,AA17,Agency Staff & Casual Paymts            ,"3,390.00",31/03/2015,R,HAYS RECRUITING EXPERTS       
31,Highways & Transport Services,On-street parking,Blue Badge Service,A04088,Supplies & Services           ,Services                      ,DF14,Doctors and Other Fees                  ,900,20/10/2014,R,LLOYDS TSB COMMERCIAL FINANCE 
32,Highways & Transport Services,On-street parking,Blue Badge Service,A04088,Supplies & Services           ,Comms and Computing           ,DG15,Network Maintenance                     ,853.61,01/04/2015,R,NORTHGATE INFORMATION SOLUTION
33,Central Services,SupS Health & Safety,Learning and Development,B06146,Employees                     ,Indirect Employee Expenses    ,AB57,EXTERNAL TRAINING COSTS                 ,500,14/04/2015,R,TUTORCARE LTD                 
34,Central Services,SupS Health & Safety,Learning and Development,B06146,Employees                     ,Indirect Employee Expenses    ,AB57,EXTERNAL TRAINING COSTS                 ,"6,100.00",02/04/2015,R,THE DIVERSITY PRACTICE        
35,Central Services,SupS Health & Safety,Learning and Development,B06146,Employees                     ,Indirect Employee Expenses    ,AB57,EXTERNAL TRAINING COSTS                 ,"1,490.00",23/04/2015,R,CIPFA BUSINESS LTD            
36,Central Services,SupS Health & Safety,Learning and Development,B06146,Employees                     ,Indirect Employee Expenses    ,AB57,EXTERNAL TRAINING COSTS                 ,"2,855.00",09/03/2015,R,URBANCANDA                    
37,Central Services,SupS Health & Safety,Learning and Development,B06146,Employees                     ,Indirect Employee Expenses    ,AB57,EXTERNAL TRAINING COSTS                 ,550,28/03/2015,R,MSH TRAINING & CONSULTANCY LTD
38,Central Services,SupS Health & Safety,Learning and Development,B06146,Employees                     ,Indirect Employee Expenses    ,AB57,EXTERNAL TRAINING COSTS                 ,550,28/03/2015,R,MSH TRAINING & CONSULTANCY LTD
39,Central Services,SupS Health & Safety,Learning and Development,B06146,Employees                     ,Indirect Employee Expenses    ,AB57,EXTERNAL TRAINING COSTS                 ,975,14/12/2014,R,MEDI AID(UK) LTD              
40,Central Services,SupS Health & Safety,Learning and Development,B06146,Employees                     ,Indirect Employee Expenses    ,AB57,EXTERNAL TRAINING COSTS                 ,"2,352.00",23/04/2015,R,NATIONAL DRIVING CENTRE       
41,Central Services,SupS Health & Safety,Learning and Development,B06146,Employees                     ,Indirect Employee Expenses    ,AB57,EXTERNAL TRAINING COSTS                 ,"1,740.00",07/04/2015,R,ERNST & YOUNG LLP             
42,Central Services,SupS Health & Safety,Learning and Development,B06146,Employees                     ,Indirect Employee Expenses    ,AB57,EXTERNAL TRAINING COSTS                 ,650,19/04/2015,R,MEDI AID(UK) LTD              
43,Central Services,SupS Health & Safety,Learning and Development,B06146,Employees                     ,Indirect Employee Expenses    ,AB57,EXTERNAL TRAINING COSTS                 ,600,10/04/2015,R,REDACTED     
44,Central Services,SupS Health & Safety,Learning and Development,B06146,Employees                     ,Indirect Employee Expenses    ,AB57,EXTERNAL TRAINING COSTS                 ,975,19/04/2015,R,MEDI AID(UK) LTD              
163,,,8 Wilton Road                           ,CC017AA,New Construction Conversion and Renovation,,B4,Contractor - Site works                 ,"137,183.48",25/03/2015,C,OAKLAND BUILDING SERVICES LTD 
164,,,8 Wilton Road                           ,CC017AA,New Construction Conversion and Renovation,,B4,Contractor - Site works                 ,"172,594.61",10/03/2015,C,OAKLAND BUILDING SERVICES LTD 
165,,,8 Wilton Road                           ,CC017AA,Vehicles Plant Equipment and Machinery,,D4,Specialist furniture                    ,"1,760.00",30/03/2015,C,UNIQUE OFFICE SOLUTIONS LTD   
166,,,8 Wilton Road                           ,CC017AA,Vehicles Plant Equipment and Machinery,,D4,Specialist furniture                    ,"3,696.00",30/03/2015,C,UNIQUE OFFICE SOLUTIONS LTD   
167,,,8 Wilton Road                           ,CC017AA,Vehicles Plant Equipment and Machinery,,D4,Specialist furniture                    ,"1,453.26",30/03/2015,C,UNIQUE OFFICE SOLUTIONS LTD   
168,,,8 Wilton Road                           ,CC017AA,Vehicles Plant Equipment and Machinery,,D4,Specialist furniture                    ,"1,024.00",30/03/2015,C,UNIQUE OFFICE SOLUTIONS LTD   
169,,,8 Wilton Road                           ,CC017AA,Vehicles Plant Equipment and Machinery,,D4,Specialist furniture                    ,"1,240.00",30/03/2015,C,UNIQUE OFFICE SOLUTIONS LTD   
170,,,8 Wilton Road                           ,CC017AA,Vehicles Plant Equipment and Machinery,,D4,Specialist furniture                    ,"1,460.76",30/03/2015,C,UNIQUE OFFICE SOLUTIONS LTD   
171,,,8 Wilton Road                           ,CC017AA,Vehicles Plant Equipment and Machinery,,D4,Specialist furniture                    ,"1,180.00",30/03/2015,C,UNIQUE OFFICE SOLUTIONS LTD   
172,,,8 Wilton Road                           ,CC017AA,Vehicles Plant Equipment and Machinery,,D4,Specialist furniture                    ,734.5,30/03/2015,C,UNIQUE OFFICE SOLUTIONS LTD   
173,,,8 Wilton Road                           ,CC017AA,Vehicles Plant Equipment and Machinery,,D4,Specialist furniture                    ,"2,431.90",30/03/2015,C,UNIQUE OFFICE SOLUTIONS LTD   
174,,,8 Wilton Road                           ,CC017AA,Vehicles Plant Equipment and Machinery,,D4,Specialist furniture                    ,"1,842.84",30/03/2015,C,UNIQUE OFFICE SOLUTIONS LTD   
175,,,8 Wilton Road                           ,CC017AA,Vehicles Plant Equipment and Machinery,,D4,Specialist furniture                    ,"5,740.80",30/03/2015,C,UNIQUE OFFICE SOLUTIONS LTD   
176,,,8 Wilton Road                           ,CC017AA,Vehicles Plant Equipment and Machinery,,D4,Specialist furniture                    ,"2,334.00",30/03/2015,C,UNIQUE OFFICE SOLUTIONS LTD   
177,,,8 Wilton Road                           ,CC017AA,Vehicles Plant Equipment and Machinery,,D4,Specialist furniture                    ,668,30/03/2015,C,UNIQUE OFFICE SOLUTIONS LTD   
178,,,8 Wilton Road                           ,CC017AA,Vehicles Plant Equipment and Machinery,,D4,Specialist furniture                    ,550,30/03/2015,C,UNIQUE OFFICE SOLUTIONS LTD   
179,,,8 Wilton Road                           ,CC017AA,Vehicles Plant Equipment and Machinery,,D4,Specialist furniture                    ,550,30/03/2015,C,UNIQUE OFFICE SOLUTIONS LTD   
180,,,8 Wilton Road                           ,CC017AA,Vehicles Plant Equipment and Machinery,,D4,Specialist furniture                    ,"1,236.00",30/03/2015,C,UNIQUE OFFICE SOLUTIONS LTD   
181,,,8 Wilton Road                           ,CC017AA,Vehicles Plant Equipment and Machinery,,D4,Specialist furniture                    ,550,30/03/2015,C,UNIQUE OFFICE SOLUTIONS LTD   
182,,,8 Wilton Road                           ,CC017AA,Vehicles Plant Equipment and Machinery,,D4,Specialist furniture                    ,550,30/03/2015,C,UNIQUE OFFICE SOLUTIONS LTD   
183,,,The Gables Mitcham                      ,CC021AB,New Construction Conversion and Renovation,,B2,Site Surveys D&S Structure              ,"1,020.00",30/03/2015,C,LUCION ENVIRONMENTAL LTD      
184,,,Disabled Facilities Grant DCLG          ,CE004RA,Other Capital Expenditure,,E1,Grants                                  ,"2,269.62",15/04/2015,C,CBS ADAPTATION                
185,,,Disabled Facilities Grant DCLG          ,CE004RA,Other Capital Expenditure,,E1,Grants                                  ,"1,075.14",15/04/2015,C,CBS ADAPTATION                
186,,,Disabled Facilities Grant DCLG          ,CE004RA,Other Capital Expenditure,,E1,Grants                                  ,"2,860.36",15/04/2015,C,CBS ADAPTATION                
187,,,Disabled Facilities Grant DCLG          ,CE004RA,Other Capital Expenditure,,E1,Grants                                  ,"12,104.15",17/04/2015,C,F G KEEN LIMITED              
188,,,Disabled Facilities Grant DCLG          ,CE004RA,Other Capital Expenditure,,E1,Grants                                  ,"4,309.94",15/04/2015,C,CBS ADAPTATION                
189,,,Colliers Wd- Regeneration Fund          ,CE006FB,Other Capital Expenditure,,E4,TFL Other                               ,"1,880.00",31/03/2015,C,GORT SCOTT LTD                
190,,,Colliers Wd- Regeneration Fund          ,CE006FB,Other Capital Expenditure,,E4,TFL Other                               ,"5,000.00",31/03/2015,C,GORT SCOTT LTD                
191,,,Mitcham - Outer London Fund             ,CE006FC,New Construction Conversion and Renovation,,B3,Other Expenses D&S Structure            ,"4,998.00",13/01/2015,C,FM CONWAY LTD                 
192,,,Mitcham - Outer London Fund             ,CE006FC,New Construction Conversion and Renovation,,B3,Other Expenses D&S Structure            ,"5,105.00",13/01/2015,C,FM CONWAY LTD                 
193,,,B674a-d Phase 1 Lambton rd              ,CE007CC,New Construction Conversion and Renovation,,B6,Other Costs - Site works                ,642,20/04/2015,C,UK POWER NETWORKS (OPERATIONS)
194,,,B673a-c Phase 2 Lambton rd              ,CE007CD,New Construction Conversion and Renovation,,B4,Contractor - Site works                 ,948.58,01/04/2015,C,FM CONWAY LTD                 
195,,,Parks Investment                        ,CE013SA,New Construction Conversion and Renovation,,B4,Contractor - Site works                 ,"2,497.00",24/03/2015,C,REDACTED     
196,,,Parks Investment                        ,CE013SA,New Construction Conversion and Renovation,,B4,Contractor - Site works                 ,"2,299.87",10/03/2015,C,BLAKEDOWN SPORT & PLAY LTD    
197,,,Parks Investment                        ,CE013SA,New Construction Conversion and Renovation,,B4,Contractor - Site works                 ,"5,970.00",15/04/2015,C,REDDINGTON & SONS             
198,,,Restoration of South Park Gdns          ,CE015CA,New Construction Conversion and Renovation,,B4,Contractor - Site works                 ,"87,023.80",06/02/2015,C,MOY CONSTRUCTION CO LTD       
199,,,Restoration of South Park Gdns          ,CE015CA,New Construction Conversion and Renovation,,B4,Contractor - Site works                 ,"62,862.62",26/02/2015,C,MOY CONSTRUCTION CO LTD       
200,,,Rowan Rd Rec (B525)                     ,CE023CA,New Construction Conversion and Renovation,,B4,Contractor - Site works                 ,"1,797.00",24/03/2015,C,REDACTED     
201,,,Surface Water Drainage                  ,CE024FA,New Construction Conversion and Renovation,,B4,Contractor - Site works                 ,"3,617.96",01/04/2015,C,FM CONWAY LTD                 
202,,,Highways bridges & structures           ,CE025FA,New Construction Conversion and Renovation,,B4,Contractor - Site works                 ,"15,000.00",01/04/2015,C,FM CONWAY LTD                 
203,,,Highways bridges & structures           ,CE025FA,New Construction Conversion and Renovation,,B4,Contractor - Site works                 ,"21,000.00",01/04/2015,C,FM CONWAY LTD                 
204,,,Highways bridges & structures           ,CE025FA,New Construction Conversion and Renovation,,B4,Contractor - Site works                 ,"173,000.00",01/04/2015,C,FM CONWAY LTD                 
205,,,Borough Roads Maintenance               ,CE026FA,New Construction Conversion and Renovation,,B4,Contractor - Site works                 ,"11,000.00",02/04/2015,C,FM CONWAY LTD                 
206,,,Borough Roads Maintenance               ,CE026FA,New Construction Conversion and Renovation,,B4,Contractor - Site works                 ,"41,600.00",02/04/2015,C,FM CONWAY LTD                 
207,,,Borough Roads Maintenance               ,CE026FA,New Construction Conversion and Renovation,,B4,Contractor - Site works                 ,"72,000.00",02/04/2015,C,FM CONWAY LTD                 
208,,,Borough Roads Maintenance               ,CE026FA,New Construction Conversion and Renovation,,B4,Contractor - Site works                 ,"6,526.04",02/04/2015,C,FM CONWAY LTD                 
209,,,Severe Weather Road Maintenanc          ,CE026FD,New Construction Conversion and Renovation,,B4,Contractor - Site works                 ,"48,901.23",02/04/2015,C,FM CONWAY LTD                 
210,,,Mitcham Town Centre Imprvmnt            ,CE061FE,New Construction Conversion and Renovation,,B4,Contractor - Site works                 ,"2,000.00",31/03/2015,C,FM CONWAY LTD                 
211,,,Mitcham Town Centre Imprvmnt            ,CE061FE,Other Capital Expenditure,,E1,Grants                                  ,"2,900.00",24/12/2014,C,BARKLANDS TREE SPECIALISTS    
212,,,Street Tree Programme                   ,CE067FA,New Construction Conversion and Renovation,,B5,Suppliers - Site works                  ,"5,853.60",13/01/2015,C,BARCHAM TREES P.L.C.          
213,,,Replacement of Fleet Vehicles           ,CE082EA,Vehicles Plant Equipment and Machinery,,D1,Vehicles                                ,"10,022.00",14/04/2015,C,COMMERCIAL SERV'S TRADING LTD 
214,,,Replacement of Fleet Vehicles           ,CE082EA,Vehicles Plant Equipment and Machinery,,D1,Vehicles                                ,562.5,14/04/2015,C,COMMERCIAL SERV'S TRADING LTD 
215,,,Replacement of Fleet Vehicles           ,CE082EA,Vehicles Plant Equipment and Machinery,,D1,Vehicles                                ,"15,000.00",26/02/2015,C,ADDEX GROUP                   
216,,,Replacement of Fleet Vehicles           ,CE082EA,Vehicles Plant Equipment and Machinery,,D1,Vehicles                                ,562.5,14/04/2015,C,COMMERCIAL SERV'S TRADING LTD 
217,,,Replacement of Fleet Vehicles           ,CE082EA,Vehicles Plant Equipment and Machinery,,D1,Vehicles                                ,"10,022.00",14/04/2015,C,COMMERCIAL SERV'S TRADING LTD 
218,,,Re-use/recycling Site Maintena          ,CE090SA,Vehicles Plant Equipment and Machinery,,D3,Equipment                               ,"9,950.00",19/03/2015,C,UK CONTAINER MAINTENANCE LTD  
219,,,Accesibility Programme                  ,CE104FD,New Construction Conversion and Renovation,,B2,Site Surveys D&S Structure              ,"4,990.00",20/04/2015,C,TRAFFICWATCH (UK) LTD.        
220,,,Accesibility Programme                  ,CE104FD,New Construction Conversion and Renovation,,B6,Other Costs - Site works                ,"1,176.00",20/04/2015,C,UK POWER NETWORKS (OPERATIONS)
221,,,Victoria Rd Bus Access Impr             ,CE104FL,New Construction Conversion and Renovation,,B4,Contractor - Site works                 ,"17,500.00",02/04/2015,C,FM CONWAY LTD                 
222,,,Mitcham Town Centre                     ,CE104FP,New Construction Conversion and Renovation,,B4,Contractor - Site works                 ,"171,378.00",31/03/2015,C,FM CONWAY LTD                 
223,,,A298/A238 Strategic Corridor            ,CE104FQ,New Construction Conversion and Renovation,,B4,Contractor - Site works                 ,"1,093.36",27/03/2015,C,MAY GURNEY LTD T/A CARTLEDGE  
224,,,A298/A238 Strategic Corridor            ,CE104FQ,New Construction Conversion and Renovation,,B6,Other Costs - Site works                ,"1,124.00",20/04/2015,C,UK POWER NETWORKS (OPERATIONS)
225,,,A298/A238 Strategic Corridor            ,CE104FQ,New Construction Conversion and Renovation,,B6,Other Costs - Site works                ,578,31/03/2015,C,UK POWER NETWORKS (OPERATIONS)
226,,,A298/A238 Strategic Corridor            ,CE104FQ,New Construction Conversion and Renovation,,B6,Other Costs - Site works                ,526,20/04/2015,C,UK POWER NETWORKS (OPERATIONS)
227,,,Casualty Reduction & Schools            ,CE104RA,New Construction Conversion and Renovation,,B2,Site Surveys D&S Structure              ,"4,990.00",20/04/2015,C,TRAFFICWATCH (UK) LTD.        
228,,,Casualty Reduction & Schools            ,CE104RA,New Construction Conversion and Renovation,,B2,Site Surveys D&S Structure              ,"7,495.00",20/04/2015,C,TRAFFICWATCH (UK) LTD.        
229,,,Casualty Reduction & Schools            ,CE104RA,New Construction Conversion and Renovation,,B4,Contractor - Site works                 ,629.83,21/04/2015,C,MAY GURNEY LTD T/A CARTLEDGE  
230,,,Casualty Reduction & Schools            ,CE104RA,New Construction Conversion and Renovation,,B4,Contractor - Site works                 ,"2,701.25",21/04/2015,C,MAY GURNEY LTD T/A CARTLEDGE  
231,,,Cycle Improvements                      ,CE104RM,Vehicles Plant Equipment and Machinery,,D3,Equipment                               ,"29,925.00",31/03/2015,C,CYCLEHOOP LTD                 
232,,,Cycle Improvements                      ,CE104RM,Vehicles Plant Equipment and Machinery,,D3,Equipment                               ,"7,410.00",31/03/2015,C,CYCLEHOOP LTD                 
233,,,Morden Rd Kingston Rd to High           ,CE105FQ,New Construction Conversion and Renovation,,B4,Contractor - Site works                 ,"54,866.93",02/04/2015,C,FM CONWAY LTD                 
234,,,Morden Rd Kingston Rd to High           ,CE105FQ,New Construction Conversion and Renovation,,B4,Contractor - Site works                 ,"46,019.50",02/04/2015,C,FM CONWAY LTD                 
235,,,Wimbledon Park Crazy Golf               ,CE110CG,New Construction Conversion and Renovation,,B4,Contractor - Site works                 ,"1,500.00",16/03/2015,C,TAYLOR BUILDING COMPANY LTD   
236,,,All Saints Play Area                    ,CE110CH,New Construction Conversion and Renovation,,B4,Contractor - Site works                 ,"2,970.00",24/03/2015,C,REDACTED     
237,,,"B596a&b,B625a-c Crckt Grn Area          ",CE110SE,New Construction Conversion and Renovation,,B4,Contractor - Site works                 ,"4,211.00",24/03/2015,C,REDACTED     
238,,,Biking Borough Programme                ,CE128RA,Vehicles Plant Equipment and Machinery,,D3,Equipment                               ,"24,225.00",10/02/2015,C,CYCLEHOOP LTD                 
239,,,B671   Victoria Road                    ,CE137FE,New Construction Conversion and Renovation,,B4,Contractor - Site works                 ,"4,600.00",02/04/2015,C,FM CONWAY LTD                 
240,,,Taylor Road Day Centre                  ,CE138AA,New Construction Conversion and Renovation,,B4,Contractor - Site works                 ,"11,814.70",24/03/2015,C,EUROPA NATIONWIDE TECH.SER.LTD
241,,,Civic Centre- Upgrading lifts           ,CF001AL,New Construction Conversion and Renovation,,B4,Contractor - Site works                 ,"30,072.25",14/04/2015,C,AXIS ELEVATORS LTD            
242,,,St Mary's expansion                     ,CS008RA,New Construction Conversion and Renovation,,B1,Consultants Fees D&S Structure          ,"4,152.00",31/03/2015,C,NPS PROPERTY CONSULTANTS LTD  
243,,,St Mary's expansion                     ,CS008RA,New Construction Conversion and Renovation,,B4,Contractor - Site works                 ,"297,693.00",23/03/2015,C,MANSELL CONSTRUCTION SERVICES 
244,,,St Mary's expansion                     ,CS008RA,New Construction Conversion and Renovation,,B4,Contractor - Site works                 ,"87,469.00",20/04/2015,C,MANSELL CONSTRUCTION SERVICES 
245,,,All Saints/ South Wim YCC exp           ,CS008SB,New Construction Conversion and Renovation,,B4,Contractor - Site works                 ,"1,606.04",30/03/2015,C,WANDLE MECHANICAL SERVICES    
246,,,All Saints/ South Wim YCC exp           ,CS008SB,New Construction Conversion and Renovation,,B4,Contractor - Site works                 ,801.69,30/03/2015,C,WANDLE MECHANICAL SERVICES    
247,,,All Saints/ South Wim YCC exp           ,CS008SB,New Construction Conversion and Renovation,,B4,Contractor - Site works                 ,"1,139.36",31/03/2015,C,WANDLE MECHANICAL SERVICES    
248,,,Hillcross School Expansion              ,CS020AC,New Construction Conversion and Renovation,,B4,Contractor - Site works                 ,"317,690.11",30/03/2015,C,MANSELL CONSTRUCTION SERVICES 
249,,,Merton Abbey Temp Accomodation          ,CS022AC,New Construction Conversion and Renovation,,B1,Consultants Fees D&S Structure          ,"1,050.00",31/03/2015,C,EIGHT ASSOCIATES              
250,,,Merton Abbey Temp Accomodation          ,CS022AC,New Construction Conversion and Renovation,,B2,Site Surveys D&S Structure              ,512.5,31/03/2015,C,KEEGANS LIMITED               
251,,,Merton Abbey Temp Accomodation          ,CS022AC,New Construction Conversion and Renovation,,B4,Contractor - Site works                 ,"43,617.04",02/04/2015,C,MANSELL CONSTRUCTION SERVICES 
252,,,Pelham School Expansion                 ,CS023AC,New Construction Conversion and Renovation,,B4,Contractor - Site works                 ,"339,487.79",30/03/2015,C,MANSELL CONSTRUCTION SERVICES 
253,,,Dundonald expansion                     ,CS031AC,New Construction Conversion and Renovation,,B1,Consultants Fees D&S Structure          ,"1,570.00",19/03/2015,C,SYNERGY CPC LLP               
254,,,Dundonald expansion                     ,CS031AC,New Construction Conversion and Renovation,,B1,Consultants Fees D&S Structure          ,"6,705.00",31/03/2015,C,AREA LANDSCAPE ARCHITECTS     
255,,,Dundonald expansion                     ,CS031AC,New Construction Conversion and Renovation,,B2,Site Surveys D&S Structure              ,"1,995.00",27/03/2015,C,JMP CONSULTANTS LTD           
256,,,Dundonald expansion                     ,CS031AC,New Construction Conversion and Renovation,,B4,Contractor - Site works                 ,"15,000.00",16/04/2015,C,FM CONWAY LTD                 
257,,,Poplar Permanent Expansion              ,CS034AB,New Construction Conversion and Renovation,,B1,Consultants Fees D&S Structure          ,"5,047.03",24/04/2015,C,PELLINGS LLP                  
258,,,Poplar Permanent Expansion              ,CS034AB,New Construction Conversion and Renovation,,B1,Consultants Fees D&S Structure          ,"1,800.00",22/04/2015,C,PELLINGS LLP                  
259,,,Poplar Permanent Expansion              ,CS034AB,New Construction Conversion and Renovation,,B1,Consultants Fees D&S Structure          ,990,31/03/2015,C,EIGHT ASSOCIATES              
260,,,Poplar Permanent Expansion              ,CS034AB,New Construction Conversion and Renovation,,B4,Contractor - Site works                 ,"37,481.21",24/03/2015,C,MANSELL CONSTRUCTION SERVICES 
261,,,Poplar Permanent Expansion              ,CS034AB,New Construction Conversion and Renovation,,B4,Contractor - Site works                 ,"253,340.00",24/03/2015,C,MANSELL CONSTRUCTION SERVICES 
262,,,Schs Cap Maint & Accessibility          ,CS080SD,New Construction Conversion and Renovation,,B4,Contractor - Site works                 ,"1,480.00",27/11/2014,C,KC DRAINS LTD                 
263,,,Perseid                                 ,CS092AA,New Construction Conversion and Renovation,,B1,Consultants Fees D&S Structure          ,"2,165.52",30/03/2015,C,NPS PROPERTY CONSULTANTS LTD  
264,,,Disaster recovery                       ,CT003EA,Vehicles Plant Equipment and Machinery,,D3,Equipment                               ,"9,037.00",22/04/2015,C,SCALABLE COMMUNICATIONS PLC   
265,,,Disaster recovery                       ,CT003EA,Vehicles Plant Equipment and Machinery,,D3,Equipment                               ,"1,534.00",31/03/2015,C,NET-CTRL                      
266,,,Disaster recovery                       ,CT003EA,Vehicles Plant Equipment and Machinery,,D3,Equipment                               ,680,22/04/2015,C,SCALABLE COMMUNICATIONS PLC   
267,,,Disaster recovery                       ,CT003EA,Vehicles Plant Equipment and Machinery,,D3,Equipment                               ,"4,534.00",22/04/2015,C,SCALABLE COMMUNICATIONS PLC   
268,,,Disaster recovery                       ,CT003EA,Vehicles Plant Equipment and Machinery,,D3,Equipment                               ,"4,942.40",26/03/2015,C,SPECIALIST COMPUTER CENT. PLC 
269,,,Disaster recovery                       ,CT003EA,Vehicles Plant Equipment and Machinery,,D5,Software                                ,"1,800.00",20/04/2015,C,LONDON GRID LTD               
270,,,Disaster recovery                       ,CT003EA,Other Capital Expenditure,,E3,Miscellaneous Capital Expendit          ,"12,500.00",30/03/2015,C,NET-CTRL                      
271,,,Disaster recovery                       ,CT003EA,Other Capital Expenditure,,E3,Miscellaneous Capital Expendit          ,700,24/04/2015,C,NEC (UK) LTD                  
272,,,Disaster recovery                       ,CT003EA,Other Capital Expenditure,,E3,Miscellaneous Capital Expendit          ,"1,400.00",24/04/2015,C,NEC (UK) LTD                  
273,,,Disaster recovery                       ,CT003EA,Other Capital Expenditure,,E3,Miscellaneous Capital Expendit          ,795,24/04/2015,C,NEC (UK) LTD                  
274,,,IT Equipment                            ,CT006EA,Vehicles Plant Equipment and Machinery,,D3,Equipment                               ,"2,624.00",01/04/2015,C,SPECIALIST COMPUTER CENT. PLC 
275,,,IT Equipment                            ,CT006EA,Vehicles Plant Equipment and Machinery,,D3,Equipment                               ,"2,304.00",19/03/2015,C,THINTECH LIMITED              
276,,,IT Equipment                            ,CT006EA,Vehicles Plant Equipment and Machinery,,D3,Equipment                               ,824.85,30/03/2015,C,INCOM TELECOMMUNICATIONS      
277,,,IT Equipment                            ,CT006EA,Vehicles Plant Equipment and Machinery,,D3,Equipment                               ,945,09/04/2015,C,TOTAL COMPUTER NETWORKS       
278,,,IT Equipment                            ,CT006EA,Vehicles Plant Equipment and Machinery,,D3,Equipment                               ,"6,285.77",17/04/2015,C,SCALABLE COMMUNICATIONS PLC   
279,,,IT Equipment                            ,CT006EA,Vehicles Plant Equipment and Machinery,,D3,Equipment                               ,841.17,30/03/2015,C,VIDEK LTD                     
280,,,IT Equipment                            ,CT006EA,Vehicles Plant Equipment and Machinery,,D3,Equipment                               ,"6,840.00",19/03/2015,C,THINTECH LIMITED              
281,,,IT Equipment                            ,CT006EA,Vehicles Plant Equipment and Machinery,,D3,Equipment                               ,"1,415.00",22/04/2015,C,SCALABLE COMMUNICATIONS PLC   
282,,,IT Equipment                            ,CT006EA,Vehicles Plant Equipment and Machinery,,D3,Equipment                               ,"4,608.00",19/03/2015,C,THINTECH LIMITED              
283,,,IT Equipment                            ,CT006EA,Vehicles Plant Equipment and Machinery,,D3,Equipment                               ,"1,389.70",17/04/2015,C,SCALABLE COMMUNICATIONS PLC   
284,,,IT Equipment                            ,CT006EA,Other Capital Expenditure,,E3,Miscellaneous Capital Expendit          ,"19,500.00",31/03/2015,C,SOFTCAT LTD                   
285,,,IT Equipment                            ,CT006EA,Other Capital Expenditure,,E3,Miscellaneous Capital Expendit          ,"2,384.16",26/03/2015,C,SPECIALIST COMPUTER CENT. PLC 
286,,,IT Equipment                            ,CT006EA,Other Capital Expenditure,,E3,Miscellaneous Capital Expendit          ,"6,500.00",31/03/2015,C,SOFTCAT LTD                   
287,,,Room and Space Management               ,CT007EX,New Construction Conversion and Renovation,,B4,Contractor - Site works                 ,"1,600.00",10/04/2015,C,KEYTREE LIMITED               
288,,,Data Labling                            ,CT023NA,Vehicles Plant Equipment and Machinery,,D5,Software                                ,"10,000.00",30/03/2015,C,APPERCEPTION                  
289,Central Services,Council tax collection,Local Taxation Services,E02100,Supplies & Services           ,Services                      ,DF09,Miscellaneous Fees                      ,748.8,22/04/2015,R,BTMK SOLICITORS LIMITED       
290,Central Services,Council tax collection,Local Taxation Services,E02100,Supplies & Services           ,Services                      ,DF11,Counsel's Fees                          ,"-1,178.32",17/03/2015,R,HMCTS                         
291,Central Services,Council tax collection,Local Taxation Services,E02100,Supplies & Services           ,Services                      ,DF28,Court Fees                              ,518,01/04/2015,R,REDACTED     
292,Central Services,Council tax collection,Local Taxation Services,E02100,Supplies & Services           ,Comms and Computing           ,DG02,Software Licences                       ,"3,083.33",30/03/2015,R,ONESTEP SOLUTIONS PLC         
293,Central Services,Council tax collection,Local Taxation Services,E02100,Supplies & Services           ,Comms and Computing           ,DG07,Computer Software                       ,"4,958.00",07/04/2015,R,HALAROSE LIMITED              
294,Central Services,Council tax collection,Local Taxation Services,E02100,Supplies & Services           ,Comms and Computing           ,DG07,Computer Software                       ,"1,688.00",07/04/2015,R,HALAROSE LIMITED              
295,Central Services,Council tax collection,Local Taxation Services,E02100,Supplies & Services           ,Comms and Computing           ,DG08,Computer Hardware                       ,"9,810.00",07/04/2015,R,HALAROSE LIMITED              
296,Central Services,Council tax collection,Local Taxation Services,E02100,Supplies & Services           ,Comms and Computing           ,DG09,Computer Purchases - Misc               ,800,31/03/2015,R,BLAZIE                        
297,Central Services,Council tax collection,Local Taxation Services,E02100,Supplies & Services           ,Comms and Computing           ,DG09,Computer Purchases - Misc               ,"2,964.38",15/04/2015,R,CIVICA UK LIMITED             
298,Central Services,Council tax collection,Local Taxation Bailiffs,E02101,Supplies & Services           ,Services                      ,DF09,Miscellaneous Fees                      ,512,14/04/2015,R,REDACTED     
299,Central Services,Council tax collection,Local Taxation Bailiffs,E02101,Supplies & Services           ,Services                      ,DF18,Bailiffs' fees                          ,517.45,31/03/2015,R,HPI LIMITED                   
300,Central Services,Council tax collection,Local Taxation Bailiffs,E02101,Supplies & Services           ,Services                      ,DF18,Bailiffs' fees                          ,542.74,30/04/2015,R,LONDON BOROUGH OF SUTTON      
301,Central Services,Council tax collection,Local Taxation Bailiffs,E02101,Supplies & Services           ,Services                      ,DF18,Bailiffs' fees                          ,748.8,24/04/2015,R,LEVENE PROPERTY GROUP LTD     
302,Central Services,Council tax collection,Sutton Shared Bailiffs Service          ,E02102,Third Party Payments          ,Other Local Authorities       ,EB01,Payments to OLAs                        ,"45,994.00",24/04/2015,R,LONDON BOROUGH OF SUTTON      
303,Housing Services,HB Administration,Local Welfare Support,E02123,Transfer Payments             ,Housing Benefits              ,FA95,Other Payments                          ,"1,014.77",16/04/2015,R,THE VINE PROJECT              
304,Central Services,SupS Payroll,Payroll,E02140,Third Party Payments          ,Private Contractors           ,EH10,Contract Payments                       ,"7,958.00",22/04/2015,R,LONDON BOROUGH OF SUTTON      
305,Central Services,SupS Payroll,Trinity Project,E02141,Supplies & Services           ,Services                      ,DF03,Consultants                             ,"5,330.00",07/04/2015,R,LONDON BOROUGH OF SUTTON      
306,Central Services,SupS Payroll,Trinity Project,E02141,Supplies & Services           ,Services                      ,DF03,Consultants                             ,"2,787.00",24/03/2015,R,LONDON BOROUGH OF SUTTON      
307,Central Services,SupS Facilities,Post Room,E02220,Supplies & Services           ,Comms and Computing           ,DG04,Postage - General                       ,"9,000.00",16/02/2015,R,NEOPOST FINANCE LIMITED       
308,Central Services,SupS Facilities,Post Room,E02220,Supplies & Services           ,Comms and Computing           ,DG04,Postage - General                       ,"8,307.56",14/04/2015,R,NEOPOST FINANCE LIMITED       
309,Central Services,SupS Facilities,Post Room,E02220,Supplies & Services           ,Comms and Computing           ,DG04,Postage - General                       ,941.87,30/03/2015,R,STREETWISE COURIERS           
310,Central Services,SupS Facilities,Security Services,E02221,Employees                     ,Direct Employee Expenses      ,AA17,Agency Staff & Casual Paymts            ,"2,399.36",01/04/2015,R,SIGHT & SOUND                 
311,Central Services,SupS Facilities,Security Services,E02221,Employees                     ,Direct Employee Expenses      ,AA17,Agency Staff & Casual Paymts            ,"1,708.24",01/04/2015,R,SIGHT & SOUND                 
312,Central Services,SupS Facilities,Security Services,E02221,Employees                     ,Direct Employee Expenses      ,AA17,Agency Staff & Casual Paymts            ,"2,234.70",01/04/2015,R,SIGHT & SOUND                 
313,Central Services,SupS Facilities,Security Services,E02221,Employees                     ,Direct Employee Expenses      ,AA17,Agency Staff & Casual Paymts            ,"1,544.40",01/04/2015,R,SIGHT & SOUND                 
314,Central Services,SupS Facilities,Security Services,E02221,Employees                     ,Direct Employee Expenses      ,AA17,Agency Staff & Casual Paymts            ,"1,889.55",01/04/2015,R,SIGHT & SOUND                 
315,Central Services,SupS Facilities,Security Services,E02221,Employees                     ,Direct Employee Expenses      ,AA17,Agency Staff & Casual Paymts            ,"2,024.10",01/04/2015,R,SIGHT & SOUND                 
316,Central Services,SupS Facilities,Civic Centre,E02222,Premises Related Expenditure  ,RepairsAlterations&MtceOfBldgs,BA29,BUILD MAINT MGT FEES                    ,"1,050.00",31/03/2015,R,NETWORK SOLUTIONS INC         
317,Central Services,SupS Facilities,Civic Centre,E02222,Premises Related Expenditure  ,RepairsAlterations&MtceOfBldgs,BA29,BUILD MAINT MGT FEES                    ,"8,250.00",30/03/2015,R,UNIQUE OFFICE SOLUTIONS LTD   
318,Central Services,SupS Facilities,Civic Centre,E02222,Premises Related Expenditure  ,RepairsAlterations&MtceOfBldgs,BA29,BUILD MAINT MGT FEES                    ,"9,249.36",30/03/2015,R,UNIQUE OFFICE SOLUTIONS LTD   
319,Central Services,SupS Facilities,Civic Centre,E02222,Premises Related Expenditure  ,RepairsAlterations&MtceOfBldgs,BA29,BUILD MAINT MGT FEES                    ,"9,968.12",30/03/2015,R,UNIQUE OFFICE SOLUTIONS LTD   
320,Central Services,SupS Facilities,Civic Centre,E02222,Premises Related Expenditure  ,RepairsAlterations&MtceOfBldgs,BA29,BUILD MAINT MGT FEES                    ,"9,350.00",30/03/2015,R,UNIQUE OFFICE SOLUTIONS LTD   
321,Central Services,SupS Facilities,Civic Centre,E02222,Premises Related Expenditure  ,RepairsAlterations&MtceOfBldgs,BA29,BUILD MAINT MGT FEES                    ,918.11,31/03/2015,R,UNIQUE OFFICE SOLUTIONS LTD   
322,Central Services,SupS Facilities,Civic Centre,E02222,Premises Related Expenditure  ,RepairsAlterations&MtceOfBldgs,BA79,Security of Premises                    ,705.59,01/04/2015,R,SIGHT & SOUND                 
323,Central Services,SupS Facilities,Facilities,E02231,Premises Related Expenditure  ,RepairsAlterations&MtceOfBldgs,BA02,ENERGY CONSERVATION                     ,"3,397.00",25/03/2015,R,ENERGY SAVING LIGHTING (UK) LT
324,Central Services,SupS Facilities,Facilities,E02231,Premises Related Expenditure  ,RepairsAlterations&MtceOfBldgs,BA02,ENERGY CONSERVATION                     ,"23,004.00",01/04/2015,R,BERGEN ENERGI                 
325,Central Services,SupS Facilities,Facilities,E02231,Premises Related Expenditure  ,RepairsAlterations&MtceOfBldgs,BA02,ENERGY CONSERVATION                     ,600,09/04/2015,R,STARK SOFTWARE INTERNATIONAL  
326,Central Services,SupS Facilities,Facilities,E02231,Premises Related Expenditure  ,RepairsAlterations&MtceOfBldgs,BA02,ENERGY CONSERVATION                     ,618,25/03/2015,R,ENERGY SAVING LIGHTING (UK) LT
327,Central Services,SupS Facilities,Facilities,E02231,Premises Related Expenditure  ,RepairsAlterations&MtceOfBldgs,BA02,ENERGY CONSERVATION                     ,"2,720.50",25/03/2015,R,ENERGY SAVING LIGHTING (UK) LT
328,Central Services,SupS Facilities,Facilities,E02231,Premises Related Expenditure  ,RepairsAlterations&MtceOfBldgs,BA02,ENERGY CONSERVATION                     ,"2,036.92",25/03/2015,R,ENERGY SAVING LIGHTING (UK) LT
329,Central Services,SupS Facilities,Facilities,E02231,Premises Related Expenditure  ,RepairsAlterations&MtceOfBldgs,BA02,ENERGY CONSERVATION                     ,"1,450.00",02/04/2015,R,BELL FLOW SYSTEMS LTD         
330,Central Services,SupS Facilities,Facilities,E02231,Premises Related Expenditure  ,RepairsAlterations&MtceOfBldgs,BA02,ENERGY CONSERVATION                     ,550,05/03/2015,R,BELL FLOW SYSTEMS LTD         
331,Central Services,SupS Facilities,Facilities,E02231,Premises Related Expenditure  ,RepairsAlterations&MtceOfBldgs,BA02,ENERGY CONSERVATION                     ,600.3,25/03/2015,R,ENERGY SAVING LIGHTING (UK) LT
332,Central Services,SupS Facilities,Facilities,E02231,Premises Related Expenditure  ,RepairsAlterations&MtceOfBldgs,BA02,ENERGY CONSERVATION                     ,"2,557.70",25/03/2015,R,ENERGY SAVING LIGHTING (UK) LT
333,Central Services,SupS Facilities,Facilities,E02231,Premises Related Expenditure  ,RepairsAlterations&MtceOfBldgs,BA06,Repairs & Maintenance General           ,"4,346.37",27/03/2015,R,DMA SIGNS LTD                 
334,Central Services,SupS Facilities,Facilities,E02231,Premises Related Expenditure  ,Energy Costs                  ,BB02,Electricity                             ,"-3,070.61",15/04/2015,R,NPOWER                        
335,Central Services,SupS Facilities,Facilities,E02231,Premises Related Expenditure  ,Energy Costs                  ,BB02,Electricity                             ,"6,888.38",15/04/2015,R,NPOWER                        
336,Central Services,SupS Facilities,Facilities,E02231,Supplies & Services           ,Equip Furniture/Materials     ,DA09,Equip-Purchases                         ,"2,150.12",16/04/2015,R,BREATHING SPACE               
337,Central Services,SupS Facilities,Facilities,E02231,Supplies & Services           ,Services                      ,DF09,Miscellaneous Fees                      ,608.7,23/04/2015,R,REDACTED     
338,Central Services,SupS Facilities,FM External Fees,E02239,Premises Related Expenditure  ,RepairsAlterations&MtceOfBldgs,BA29,Build Maint Mgt Fees                    ,500,20/01/2015,R,HB ARCHITECTS LTD             
339,Central Services,SupS Facilities,Corporate Services Buildings,E02240,Premises Related Expenditure  ,RepairsAlterations&MtceOfBldgs,BA01,DDM - General Building                  ,592.77,27/03/2015,R,SALTASH ENTERPRISES LTD       
340,Central Services,SupS Facilities,Corporate Services Buildings,E02240,Premises Related Expenditure  ,RepairsAlterations&MtceOfBldgs,BA01,DDM - General Building                  ,795.48,27/03/2015,R,SALTASH ENTERPRISES LTD       
341,Central Services,SupS Facilities,Corporate Services Buildings,E02240,Premises Related Expenditure  ,RepairsAlterations&MtceOfBldgs,BA01,DDM - General Building                  ,"1,750.00",25/03/2015,R,TASK FORCE (UK) LTD           
342,Central Services,SupS Facilities,Corporate Services Buildings,E02240,Premises Related Expenditure  ,RepairsAlterations&MtceOfBldgs,BA01,DDM - General Building                  ,"3,645.00",26/03/2015,R,PJ HARVEY & CO LTD            
343,Central Services,SupS Facilities,Corporate Services Buildings,E02240,Premises Related Expenditure  ,RepairsAlterations&MtceOfBldgs,BA03,DDM - Mechanical                        ,"3,875.61",25/03/2015,R,EUROPA NATIONWIDE TECH.SER.LTD
344,Central Services,SupS Facilities,Corporate Services Buildings,E02240,Premises Related Expenditure  ,RepairsAlterations&MtceOfBldgs,BA05,DDM - Electrical                        ,550,22/04/2015,R,CROWN SECURITY SYSTEMS LTD    
345,Central Services,SupS Facilities,Corporate Services Buildings,E02240,Premises Related Expenditure  ,RepairsAlterations&MtceOfBldgs,BA29,Build Maint Mgt Fees                    ,"2,518.61",25/03/2015,R,EUROPA NATIONWIDE TECH.SER.LTD
346,Central Services,SupS Facilities,Corporate Services Buildings,E02240,Premises Related Expenditure  ,Energy Costs                  ,BB03,Gas (incl. Butane)                      ,542.47,07/04/2015,R,GAZPROM MARKETING&TRADING LTD 
347,Central Services,SupS Facilities,Corporate Services Buildings,E02240,Premises Related Expenditure  ,Energy Costs                  ,BB03,Gas (incl. Butane)                      ,"4,768.20",07/04/2015,R,GAZPROM MARKETING&TRADING LTD 
348,Central Services,SupS Facilities,Corporate Services Buildings,E02240,Premises Related Expenditure  ,Energy Costs                  ,BB03,Gas (incl. Butane)                      ,559.23,07/04/2015,R,GAZPROM MARKETING&TRADING LTD 
349,Central Services,SupS Facilities,Corporate Services Buildings,E02240,Premises Related Expenditure  ,Water Services                ,BE01,Use of Water (Metered)                  ,838.71,27/03/2015,R,SUTTON AND EAST SURREY WATER  
350,Childrens & Education Services,Strategic Management,PDC,E02254,Premises Related Expenditure  ,Energy Costs                  ,BB02,Electricity                             ,"1,375.93",15/04/2015,R,SCOTTISHPOWER                 
351,Childrens & Education Services,Strategic Management,PDC,E02254,Premises Related Expenditure  ,Energy Costs                  ,BB03,Gas (incl. Butane)                      ,"1,076.70",07/04/2015,R,GAZPROM MARKETING&TRADING LTD 
352,Childrens & Education Services,Strategic Management,PDC,E02254,Supplies & Services           ,Equip Furniture/Materials     ,DA09,Equip-Purchases                         ,"5,180.00",30/03/2015,R,UNIQUE OFFICE SOLUTIONS LTD   
353,Adult Social Care,OP 65 & Over Day Care,Pollards Hill Day Centre,E02270,Premises Related Expenditure  ,RepairsAlterations&MtceOfBldgs,BA01,DDM - General Building                  ,"3,865.58",24/03/2015,R,REDACTED     
354,Adult Social Care,OP 65 & Over Day Care,Pollards Hill Day Centre,E02270,Premises Related Expenditure  ,RepairsAlterations&MtceOfBldgs,BA06,Repairs & Maintenance General           ,785.25,24/03/2015,R,REDACTED     
355,Adult Social Care,OP 65 & Over Day Care,Pollards Hill Day Centre,E02270,Premises Related Expenditure  ,RepairsAlterations&MtceOfBldgs,BA06,Repairs & Maintenance General           ,"1,432.36",24/03/2015,R,REDACTED     
356,Adult Social Care,OP 65 & Over Day Care,Pollards Hill Day Centre,E02270,Premises Related Expenditure  ,RepairsAlterations&MtceOfBldgs,BA06,Repairs & Maintenance General           ,"2,665.98",24/03/2015,R,REDACTED     
357,Adult Social Care,OP 65 & Over Day Care,Pollards Hill Day Centre,E02270,Premises Related Expenditure  ,RepairsAlterations&MtceOfBldgs,BA06,Repairs & Maintenance General           ,736,24/03/2015,R,REDACTED     
358,Adult Social Care,OP 65 & Over Day Care,Pollards Hill Day Centre,E02270,Premises Related Expenditure  ,Cleaning and Domestic Supplies,BH01,Cleaning Materials                      ,504,24/04/2015,R,GREENHAM TRADING LTD          
359,Cultural Env Reg&Plan Services,Parks & Open Spaces,E & R Buildings,E02344,Premises Related Expenditure  ,RepairsAlterations&MtceOfBldgs,BA03,DDM - Mechanical                        ,525.06,25/03/2015,R,EUROPA NATIONWIDE TECH.SER.LTD
360,Cultural Env Reg&Plan Services,Parks & Open Spaces,E & R Buildings,E02344,Premises Related Expenditure  ,RepairsAlterations&MtceOfBldgs,BA03,DDM - Mechanical                        ,502.88,25/03/2015,R,EUROPA NATIONWIDE TECH.SER.LTD
361,Adult Social Care,PS u65 Day Care,C & H Buildings,E02345,Premises Related Expenditure  ,RepairsAlterations&MtceOfBldgs,BA03,DDM - Mechanical                        ,574.2,09/04/2015,R,EUROPA NATIONWIDE TECH.SER.LTD
362,Cultural Env Reg&Plan Services,Parks & Open Spaces,Leisure Buildings,E02350,Premises Related Expenditure  ,RepairsAlterations&MtceOfBldgs,BA03,DDM - Mechanical                        ,546,25/03/2015,R,EUROPA NATIONWIDE TECH.SER.LTD
363,Central Services,SupS DOF,AD RESOURCES,E04061,Supplies & Services           ,Services                      ,DF03,CONSULTANTS                             ,"8,740.00",09/04/2015,R,PUBLIC SECTOR CONSULTANTS     
364,Central Services,SupS  Risk and Insurance,Insurance Premiums & Funding,E05161,Supplies & Services           ,Comms and Computing           ,DG02,Software Licences                       ,"12,357.00",01/04/2015,R,JC APPLICATIONS DEVELOPMENT   
365,Central Services,SupS Corporate Finance,Corporate Accountancy,E06209,Supplies & Services           ,Grants and Subscriptions      ,DJ04,Subscriptions                           ,"7,570.00",03/03/2015,R,CIPFA BUSINESS LTD            
366,Central Services,SupS Corporate Finance,Corporate Accountancy,E06209,Supplies & Services           ,Grants and Subscriptions      ,DJ04,Subscriptions                           ,"5,450.00",24/02/2015,R,CIPFA BUSINESS LTD            
367,Central Services,SupS Strategic Finance,Business Planning,E06221,Employees                     ,Direct Employee Expenses      ,AA17,Agency Staff & Casual Paymts            ,"1,750.00",31/03/2015,R,HAYS RECRUITING EXPERTS       
368,Central Services,SupS Strategic Finance,Business Planning,E06221,Employees                     ,Direct Employee Expenses      ,AA17,Agency Staff & Casual Paymts            ,"1,400.00",15/04/2015,R,HAYS RECRUITING EXPERTS       
369,Central Services,SupS Strategic Finance,Business Planning,E06221,Employees                     ,Direct Employee Expenses      ,AA17,Agency Staff & Casual Paymts            ,"1,150.00",08/04/2015,R,HAYS RECRUITING EXPERTS       
370,Central Services,SupS Strategic Finance,Treasury & Insurance,E06222,Employees                     ,Direct Employee Expenses      ,AA17,Agency Staff & Casual Paymts            ,"1,880.00",13/04/2015,R,REDACTED
371,Central Services,SupS Strategic Finance,Treasury & Insurance,E06222,Employees                     ,Direct Employee Expenses      ,AA17,Agency Staff & Casual Paymts            ,"4,230.00",08/04/2015,R,REDACTED
372,Central Services,SupS DOF,Service Accountancy,E06227,Employees                     ,Direct Employee Expenses      ,AA17,Agency Staff & Casual Paymts            ,"5,060.00",08/04/2015,R,REDACTED
373,Central Services,SupS DOF,Service Accountancy,E06227,Supplies & Services           ,Grants and Subscriptions      ,DJ04,Subscriptions                           ,"1,945.00",19/03/2015,R,CIPFA BUSINESS LTD            
374,Central Services,SupS Legal,Legal Services,E10282,Employees                     ,Direct Employee Expenses      ,AA17,Agency Staff & Casual Paymts            ,770,31/03/2015,R,REDACTED     
375,Central Services,SupS Legal,Shared Legal Service,E10288,Employees                     ,Indirect Employee Expenses    ,AB57,External Training Costs                 ,650,07/04/2015,R,CENTRAL LAW TRAINING LTD      
376,Central Services,SupS Legal,Shared Legal Service,E10288,Supplies & Services           ,Equip Furniture/Materials     ,DA80,Books                                   ,598.49,16/04/2015,R,THOMSON REUTERS               
377,Central Services,SupS Legal,Shared Legal Service,E10288,Supplies & Services           ,Prntng Stnry Gen Off Exp      ,DE30,General Office Expense                  ,"1,015.69",31/03/2015,R,WINCANTON RECORDS MANAGEMENT  
378,Central Services,SupS Legal,Shared Legal Service,E10288,Supplies & Services           ,Comms and Computing           ,DG04,Postage - General                       ,750,09/04/2015,R,DX NETWORK SERVICES LTD       
379,Central Services,SupS Legal,Shared Legal Service,E10288,Supplies & Services           ,Comms and Computing           ,DG50,Other IT Expenditure                    ,"6,714.00",04/03/2013,R,VIRGIN MEDIA PAYMENTS LTD     
380,Central Services,SupS Legal,Shared Legal Service,E10288,Supplies & Services           ,Comms and Computing           ,DG50,Other IT Expenditure                    ,"3,500.00",09/03/2015,R,LEXIS NEXIS                   
381,Central Services,SupS Legal,Richmond Legal,E10289,Supplies & Services           ,Services                      ,DF11,Counsel's Fees                          ,"2,320.00",02/04/2015,R,REDACTED     
382,Central Services,SupS Legal,Kingston Legal                          ,E10292,Supplies & Services           ,Services                      ,DF11,Counsel's Fees                          ,"2,400.00",10/03/2015,R,REDACTED     
383,Central Services,SupS Legal,Sutton Legal                            ,E10293,Supplies & Services           ,Services                      ,DF11,Counsel's Fees                          ,602.5,31/03/2015,R,REDACTED     
384,Central Services,SupS Legal,Sutton Legal                            ,E10293,Supplies & Services           ,Services                      ,DF11,Counsel's Fees                          ,902.5,27/03/2015,R,REDACTED     
385,Central Services,SupS Legal,Sutton Legal                            ,E10293,Supplies & Services           ,Services                      ,DF11,Counsel's Fees                          ,"2,600.00",24/04/2015,R,REDACTED     
386,Central Services,SupS Legal,Sutton Legal                            ,E10293,Supplies & Services           ,Services                      ,DF11,Counsel's Fees                          ,"6,075.00",24/04/2015,R,REDACTED     
387,Central Services,SupS Legal,Sutton Legal                            ,E10293,Supplies & Services           ,Services                      ,DF11,Counsel's Fees                          ,641.25,27/03/2015,R,REDACTED     
388,Central Services,SupS Legal,Sutton Legal                            ,E10293,Supplies & Services           ,Services                      ,DF11,Counsel's Fees                          ,"1,030.00",25/03/2015,R,REDACTED     
389,Central Services,SupS Legal,Sutton Legal                            ,E10293,Supplies & Services           ,Services                      ,DF11,Counsel's Fees                          ,600,24/04/2015,R,REDACTED     
390,Central Services,SupS Legal,Sutton Legal                            ,E10293,Supplies & Services           ,Services                      ,DF11,Counsel's Fees                          ,600,31/03/2015,R,REDACTED     
391,Central Services,SupS Legal,Sutton Legal                            ,E10293,Supplies & Services           ,Services                      ,DF11,Counsel's Fees                          ,"1,540.00",24/03/2015,R,REDACTED     
392,Central Services,SupS Legal,Sutton Legal                            ,E10293,Supplies & Services           ,Services                      ,DF11,Counsel's Fees                          ,600,27/03/2015,R,REDACTED     
393,Central Services,SupS Legal,Sutton Legal                            ,E10293,Supplies & Services           ,Services                      ,DF11,Counsel's Fees                          ,"2,750.00",02/11/2014,R,REDACTED     
394,Central Services,SupS Legal,Sutton Legal                            ,E10293,Supplies & Services           ,Services                      ,DF11,Counsel's Fees                          ,"1,500.00",30/03/2015,R,REDACTED     
395,Central Services,SupS Legal,Sutton Legal                            ,E10293,Supplies & Services           ,Services                      ,DF11,Counsel's Fees                          ,650,26/02/2015,R,REDACTED     
396,Central Services,SupS Legal,Sutton Legal                            ,E10293,Supplies & Services           ,Services                      ,DF11,Counsel's Fees                          ,"1,757.50",30/10/2014,R,REDACTED     
397,Central Services,SupS Legal,Sutton Legal                            ,E10293,Supplies & Services           ,Services                      ,DF11,Counsel's Fees                          ,890,09/03/2015,R,REDACTED     
398,Central Services,SupS Legal,Sutton Legal                            ,E10293,Supplies & Services           ,Services                      ,DF11,Counsel's Fees                          ,"1,852.24",17/04/2015,R,LOCAL GOVERNMENT ASSOCIATION  
399,Central Services,SupS Legal,Sutton Legal                            ,E10293,Supplies & Services           ,Services                      ,DF14,Doctors and Other Fees                  ,"2,430.00",16/02/2015,R,REDACTED     
400,Central Services,SupS Legal,Sutton Legal                            ,E10293,Supplies & Services           ,Services                      ,DF14,Doctors and Other Fees                  ,758.7,07/07/2014,R,REDACTED     
401,Central Services,SupS Legal,Sutton Legal                            ,E10293,Supplies & Services           ,Services                      ,DF14,Doctors and Other Fees                  ,"1,387.69",27/03/2015,R,REDACTED     
402,Central Services,SupS Legal,Sutton Legal                            ,E10293,Supplies & Services           ,Services                      ,DF14,Doctors and Other Fees                  ,972.93,03/07/2013,R,REDACTED     
403,Central Services,SupS Legal,Sutton Legal                            ,E10293,Supplies & Services           ,Services                      ,DF14,Doctors and Other Fees                  ,"1,093.85",26/06/2014,R,SECECETRA EXPERT SERVICES     
404,Central Services,SupS Legal,Sutton Legal                            ,E10293,Supplies & Services           ,Services                      ,DF14,Doctors and Other Fees                  ,696.78,09/03/2015,R,SISK SOCIAL WORK CONSULTING   
405,Central Services,SupS Legal,Sutton Legal                            ,E10293,Supplies & Services           ,Services                      ,DF14,Doctors and Other Fees                  ,"2,840.64",28/01/2015,R,WEALDEN PSYCHOLOGY LTD        
406,Central Services,SupS Legal,Sutton Legal                            ,E10293,Supplies & Services           ,Services                      ,DF14,Doctors and Other Fees                  ,"2,639.26",11/03/2015,R,WEALDEN PSYCHOLOGY LTD        
407,Central Services,SupS Legal,Sutton Legal                            ,E10293,Supplies & Services           ,Services                      ,DF14,Doctors and Other Fees                  ,508.25,05/03/2015,R,JULIA HUGHES LTD              
408,Central Services,SupS Legal,Sutton Legal                            ,E10293,Supplies & Services           ,Services                      ,DF95,Services from Provider                  ,"1,808.08",27/03/2015,R,RUSSELL -  COOKE LLP          
409,Central Services,SupS Legal,Sutton Legal                            ,E10293,Supplies & Services           ,Services                      ,DF95,Services from Provider                  ,"1,480.54",16/10/2014,R,K J DESBOTTES & CO            
410,Central Services,SupS Legal,Sutton Legal                            ,E10293,Supplies & Services           ,Services                      ,DF95,Services from Provider                  ,"1,650.00",31/03/2015,R,RUSSELL -  COOKE LLP          
411,Central Services,SupS Legal,Sutton Legal                            ,E10293,Supplies & Services           ,Services                      ,DF95,Services from Provider                  ,600,01/04/2015,R,DUNCAN LEWIS (SOLICITORS) LTD 
412,Central Services,SupS Legal,Sutton Legal                            ,E10293,Supplies & Services           ,Services                      ,DF95,Services from Provider                  ,500,01/04/2015,R,DUNCAN LEWIS (SOLICITORS) LTD 
413,Central Services,SupS Legal,Sutton Legal                            ,E10293,Supplies & Services           ,Services                      ,DF95,Services from Provider                  ,547.26,31/03/2015,R,RUSSELL -  COOKE LLP          
414,Central Services,SupS Legal,Achieving for Children (AFC),E10295,Supplies & Services           ,Services                      ,DF11,Counsel's Fees                          ,520,26/03/2015,R,REDACTED     
415,Central Services,SupS Legal,Achieving for Children (AFC),E10295,Supplies & Services           ,Services                      ,DF11,Counsel's Fees                          ,510,25/03/2015,R,REDACTED     
416,Central Services,SupS Legal,Achieving for Children (AFC),E10295,Supplies & Services           ,Services                      ,DF11,Counsel's Fees                          ,"2,270.00",12/03/2015,R,REDACTED     
417,Central Services,SupS Legal,Achieving for Children (AFC),E10295,Supplies & Services           ,Services                      ,DF11,Counsel's Fees                          ,"1,155.00",06/03/2015,R,REDACTED     
418,Central Services,SupS Legal,Achieving for Children (AFC),E10295,Supplies & Services           ,Services                      ,DF11,Counsel's Fees                          ,"2,700.00",16/04/2015,R,REDACTED     
419,Central Services,SupS Legal,Achieving for Children (AFC),E10295,Supplies & Services           ,Services                      ,DF11,Counsel's Fees                          ,"1,005.00",28/10/2014,R,REDACTED     
420,Central Services,SupS Legal,Achieving for Children (AFC),E10295,Supplies & Services           ,Services                      ,DF11,Counsel's Fees                          ,510,25/03/2015,R,REDACTED     
421,Central Services,SupS Legal,Achieving for Children (AFC),E10295,Supplies & Services           ,Services                      ,DF11,Counsel's Fees                          ,650,09/04/2015,R,REDACTED     
422,Central Services,SupS Legal,Achieving for Children (AFC),E10295,Supplies & Services           ,Services                      ,DF11,Counsel's Fees                          ,510,25/03/2015,R,REDACTED     
423,Central Services,SupS Legal,Achieving for Children (AFC),E10295,Supplies & Services           ,Services                      ,DF11,Counsel's Fees                          ,"2,500.00",24/03/2015,R,REDACTED     
424,Central Services,SupS Legal,Achieving for Children (AFC),E10295,Supplies & Services           ,Services                      ,DF11,Counsel's Fees                          ,610,25/03/2015,R,REDACTED     
425,Central Services,SupS Legal,Achieving for Children (AFC),E10295,Supplies & Services           ,Services                      ,DF11,Counsel's Fees                          ,900,25/03/2015,R,REDACTED     
426,Central Services,SupS Legal,Achieving for Children (AFC),E10295,Supplies & Services           ,Services                      ,DF11,Counsel's Fees                          ,645,06/03/2015,R,REDACTED     
427,Central Services,SupS Legal,Achieving for Children (AFC),E10295,Supplies & Services           ,Services                      ,DF14,Doctors and Other Fees                  ,776,25/11/2014,R,REDACTED     
428,Central Services,SupS Legal,Achieving for Children (AFC),E10295,Supplies & Services           ,Services                      ,DF14,Doctors and Other Fees                  ,"1,464.00",01/04/2015,R,THE PETER BRANSTON CONSULTANCY
429,Central Services,SupS Legal,Achieving for Children (AFC),E10295,Supplies & Services           ,Services                      ,DF14,Doctors and Other Fees                  ,"1,986.29",01/04/2015,R,REDACTED     
430,Central Services,SupS Legal,Achieving for Children (AFC),E10295,Supplies & Services           ,Services                      ,DF95,Services from Provider                  ,"2,000.00",06/01/2015,R,APPLECROFT CONSULTANTS LTD    
431,Central Services,SupS IT,Social Care Info System (SCI)           ,E14357,Employees                     ,Direct Employee Expenses      ,AA17,Agency Staff & Casual Paymts            ,"7,182.40",01/04/2015,R,REDACTED     
432,Central Services,SupS IT,Social Care Info System (SCI)           ,E14357,Employees                     ,Direct Employee Expenses      ,AA17,Agency Staff & Casual Paymts            ,"7,900.64",02/04/2015,R,REDACTED     
433,Central Services,SupS IT,Social Care Info System (SCI)           ,E14357,Employees                     ,Direct Employee Expenses      ,AA17,Agency Staff & Casual Paymts            ,"2,420.00",02/04/2015,R,HAYS RECRUITING EXPERTS       
434,Central Services,SupS IT,Social Care Info System (SCI)           ,E14357,Employees                     ,Direct Employee Expenses      ,AA17,Agency Staff & Casual Paymts            ,"1,815.00",10/04/2015,R,HAYS RECRUITING EXPERTS       
435,Central Services,SupS IT,AD Business Improvement,E14358,Supplies & Services           ,Comms and Computing           ,DG08,Computer Hardware                       ,828,26/03/2015,R,VIGLEN LIMITED                
436,Central Services,SupS IT,BI IT Projects,E14360,Employees                     ,Direct Employee Expenses      ,AA17,Agency Staff & Casual Paymts            ,"3,990.00",31/03/2015,R,REDACTED
437,Central Services,SupS IT,BI IT Projects,E14360,Employees                     ,Direct Employee Expenses      ,AA17,Agency Staff & Casual Paymts            ,"1,520.00",14/04/2015,R,REDACTED
438,Central Services,SupS IT,Systems & Projects,E14366,Employees                     ,Direct Employee Expenses      ,AA17,Agency Staff & Casual Paymts            ,"1,500.10",07/04/2015,R,REDACTED
439,Central Services,SupS IT,Systems & Projects,E14366,Employees                     ,Direct Employee Expenses      ,AA17,Agency Staff & Casual Paymts            ,"1,157.22",22/04/2015,R,REDACTED
440,Central Services,SupS IT,Systems & Projects,E14366,Employees                     ,Direct Employee Expenses      ,AA17,Agency Staff & Casual Paymts            ,"2,657.32",15/04/2015,R,REDACTED
441,Central Services,SupS IT,Systems & Projects,E14366,Employees                     ,Direct Employee Expenses      ,AA17,Agency Staff & Casual Paymts            ,"1,285.80",17/04/2015,R,REDACTED
442,Central Services,SupS IT,Systems & Projects,E14366,Employees                     ,Direct Employee Expenses      ,AA17,Agency Staff & Casual Paymts            ,"2,914.48",14/04/2015,R,REDACTED
443,Central Services,SupS IT,Systems & Projects,E14366,Supplies & Services           ,Services                      ,DF03,Consultants                             ,"1,120.00",02/04/2015,R,MARCUS DONALD PEOPLE LTD      
444,Central Services,SupS IT,Systems & Projects,E14366,Supplies & Services           ,Services                      ,DF03,Consultants                             ,"1,400.00",30/03/2015,R,MARCUS DONALD PEOPLE LTD      
445,Central Services,SupS IT,Systems & Projects,E14366,Supplies & Services           ,Comms and Computing           ,DG02,Software Licences                       ,"5,000.00",22/04/2015,R,ME LEARNING                   
446,Central Services,SupS IT,Systems & Projects,E14366,Supplies & Services           ,Comms and Computing           ,DG02,Software Licences                       ,"2,717.00",23/04/2015,R,HOMETRACK DATA SYSTEMS LTD    
447,Central Services,SupS IT,Operations & Telecomms,E14367,Employees                     ,Direct Employee Expenses      ,AA17,Agency Staff & Casual Paymts            ,"5,710.00",21/04/2015,R,GATENBY SANDERSON             
448,Central Services,SupS IT,Operations & Telecomms,E14367,Employees                     ,Direct Employee Expenses      ,AA17,Agency Staff & Casual Paymts            ,"4,110.00",31/03/2015,R,REDACTED
449,Central Services,SupS IT,Operations & Telecomms,E14367,Employees                     ,Direct Employee Expenses      ,AA17,Agency Staff & Casual Paymts            ,"5,000.00",21/04/2015,R,GATENBY SANDERSON             
450,Central Services,SupS IT,Operations & Telecomms,E14367,Supplies & Services           ,Equip Furniture/Materials     ,DA77,Photocopier Rental                      ,"1,760.42",27/03/2015,R,ALTODIGITAL NETWORKS LTD      
451,Central Services,SupS IT,Operations & Telecomms,E14367,Supplies & Services           ,Equip Furniture/Materials     ,DA77,Photocopier Rental                      ,"16,992.53",27/03/2015,R,ALTODIGITAL NETWORKS LTD      
452,Central Services,SupS IT,Operations & Telecomms,E14367,Supplies & Services           ,Prntng Stnry Gen Off Exp      ,DE06,MULTI-FUNCTIONAL PRINTERS               ,"14,042.47",27/03/2015,R,ALTODIGITAL NETWORKS LTD      
453,Central Services,SupS IT,Operations & Telecomms,E14367,Supplies & Services           ,Comms and Computing           ,DG14,Telephones - Mobile                     ,"1,095.42",29/03/2015,R,O2 (UK) LIMITED               
454,Central Services,SupS IT,Operations & Telecomms,E14367,Supplies & Services           ,Comms and Computing           ,DG15,Network Maintenance                     ,690,31/03/2015,R,NET-CTRL                      
455,Central Services,SupS IT,Operations & Telecomms,E14367,Supplies & Services           ,Comms and Computing           ,DG15,Network Maintenance                     ,690,31/03/2015,R,NET-CTRL                      
456,Central Services,SupS IT,Operations & Telecomms,E14367,Supplies & Services           ,Comms and Computing           ,DG15,Network Maintenance                     ,"3,612.00",24/02/2015,R,BTS                           
457,Central Services,SupS IT,Operations & Telecomms,E14367,Supplies & Services           ,Comms and Computing           ,DG15,Network Maintenance                     ,555.75,31/03/2015,R,NET-CTRL                      
458,Central Services,SupS IT,Operations & Telecomms,E14367,Supplies & Services           ,Comms and Computing           ,DG15,Network Maintenance                     ,"7,035.00",31/03/2015,R,AXIAL SYSTEMS                 
459,Central Services,SupS IT,Operations & Telecomms,E14367,Supplies & Services           ,Comms and Computing           ,DG15,Network Maintenance                     ,915.01,08/04/2015,R,MARQUEST LIMITED              
460,Central Services,SupS IT,Operations & Telecomms,E14367,Supplies & Services           ,Comms and Computing           ,DG54,Corporate Telephones                    ,"2,767.56",04/04/2015,R,T MOBILE (UK)                 
461,Central Services,SupS IT,Operations & Telecomms,E14367,Supplies & Services           ,Comms and Computing           ,DG54,Corporate Telephones                    ,"5,610.16",17/04/2015,R,ORANGE P'MENT PRO'SING AIRTIME
462,Central Services,SupS IT,Operations & Telecomms,E14367,Supplies & Services           ,Comms and Computing           ,DG54,Corporate Telephones                    ,"6,853.72",24/03/2015,R,VIRGIN MEDIA PAYMENTS LTD     
463,Central Services,SupS IT,Operations & Telecomms,E14367,Supplies & Services           ,Comms and Computing           ,DG54,Corporate Telephones                    ,750.07,24/03/2015,R,VIRGIN MEDIA PAYMENTS LTD     
464,Central Services,SupS IT,Operations & Telecomms,E14367,Supplies & Services           ,Comms and Computing           ,DG54,Corporate Telephones                    ,"2,628.26",02/04/2015,R,COLT TELECOMMUNICATIONS       
465,Central Services,SupS IT,Operations & Telecomms,E14367,Supplies & Services           ,Comms and Computing           ,DG54,Corporate Telephones                    ,"2,200.00",01/04/2015,R,VIRGIN MEDIA PAYMENTS LTD     
466,Central Services,SupS IT,Distributed Services,E14368,Supplies & Services           ,Comms and Computing           ,DG63,Software Licences - Data                ,"5,000.00",08/04/2015,R,QUOVADIS ONLINE SECURITY LTD  
467,Central Services,SupS IT,Distributed Services,E14368,Supplies & Services           ,Comms and Computing           ,DG63,Software Licences - Data                ,"18,185.43",10/04/2015,R,WELLDATA LTD                  
468,Central Services,SupS IT,Distributed Services,E14368,Supplies & Services           ,Comms and Computing           ,DG63,Software Licences - Data                ,"26,828.64",13/04/2015,R,ORGANISED COMPUTER SYSTEMS LTD
469,Central Services,SupS IT,Corp Saving-IT Consolidation,E14370,Premises Related Expenditure  ,RepairsAlterations&MtceOfBldgs,BA01,DDM - General Building                  ,"4,382.33",26/03/2015,R,PJ HARVEY & CO LTD            
470,Central Services,SupS IT,No longer used,E14371,Employees                     ,Direct Employee Expenses      ,AA17,Agency Staff & Casual Paymts            ,"11,800.00",09/04/2015,R,MILESTONES COMMUNICATIONS LTD 
471,Central Services,SupS IT,No longer used,E14371,Employees                     ,Direct Employee Expenses      ,AA17,Agency Staff & Casual Paymts            ,"3,390.00",27/03/2015,R,HAYS RECRUITING EXPERTS       
472,Central Services,SupS IT,No longer used,E14371,Employees                     ,Direct Employee Expenses      ,AA17,Agency Staff & Casual Paymts            ,"1,400.00",09/04/2015,R,REDACTED
473,Central Services,SupS IT,Business Systems - Deptl Supt,E14377,Supplies & Services           ,Comms and Computing           ,DG50,Other IT Expenditure                    ,"42,759.00",31/03/2015,R,ON365.CO.UK                   
474,Highways & Transport Services,Repair prin/oth rds not split,Carriageway Patching,G00125,Third Party Payments          ,Private Contractors           ,EH56,Carriageway/Fway Maint                  ,889.89,02/04/2015,R,FM CONWAY LTD                 
475,Highways & Transport Services,Repair prin/oth rds not split,Carriageway Patching,G00125,Third Party Payments          ,Private Contractors           ,EH56,Carriageway/Fway Maint                  ,"48,648.65",02/04/2015,R,FM CONWAY LTD                 
476,Highways & Transport Services,Repair prin/oth rds not split,Walk Sheets,G00127,Third Party Payments          ,Private Contractors           ,EH56,Carriageway/Fway Maint                  ,"16,286.68",01/04/2015,R,FM CONWAY LTD                 
477,Highways & Transport Services,Saf mtc prin/oth rds not split,Traffic Signals .,G00170,Third Party Payments          ,Other Agencies                ,EJ57,Traffic Signals Control Unit            ,"70,031.15",21/04/2015,R,TRANSPORT FOR LONDON          
478,Highways & Transport Services,Street Lighting.,Street Lighting .,G00260,Premises Related Expenditure  ,Energy Costs                  ,BB02,Electricity                             ,"50,844.59",04/04/2015,R,SCOTTISHPOWER                 
479,Highways & Transport Services,Street Lighting.,Street Lighting .,G00260,Third Party Payments          ,Private Contractors           ,EH01,Miscellaneous Agency Services           ,615.13,21/04/2015,R,MAY GURNEY LTD T/A CARTLEDGE  
480,Highways & Transport Services,Street Lighting.,Street Lighting .,G00260,Third Party Payments          ,Private Contractors           ,EH01,Miscellaneous Agency Services           ,"1,376.91",24/03/2015,R,MAY GURNEY LTD T/A CARTLEDGE  
481,Highways & Transport Services,Street Lighting.,Street Lighting .,G00260,Third Party Payments          ,Private Contractors           ,EH01,Miscellaneous Agency Services           ,"2,662.17",27/03/2015,R,MAY GURNEY LTD T/A CARTLEDGE  
482,Highways & Transport Services,Street Lighting.,Street Lighting .,G00260,Third Party Payments          ,Private Contractors           ,EH01,Miscellaneous Agency Services           ,"1,121.30",24/03/2015,R,MAY GURNEY LTD T/A CARTLEDGE  
483,Highways & Transport Services,Street Lighting.,Street Lighting .,G00260,Third Party Payments          ,Private Contractors           ,EH01,Miscellaneous Agency Services           ,800,27/03/2015,R,MAY GURNEY LTD T/A CARTLEDGE  
484,Highways & Transport Services,Street Lighting.,Street Lighting .,G00260,Third Party Payments          ,Private Contractors           ,EH01,Miscellaneous Agency Services           ,"2,124.26",21/04/2015,R,MAY GURNEY LTD T/A CARTLEDGE  
485,Highways & Transport Services,Street Lighting.,Street Lighting .,G00260,Third Party Payments          ,Private Contractors           ,EH01,Miscellaneous Agency Services           ,548.09,21/04/2015,R,MAY GURNEY LTD T/A CARTLEDGE  
486,Highways & Transport Services,Street Lighting.,Street Lighting .,G00260,Third Party Payments          ,Private Contractors           ,EH01,Miscellaneous Agency Services           ,642,20/04/2015,R,UK POWER NETWORKS (OPERATIONS)
487,Highways & Transport Services,Street Lighting.,Street Lighting .,G00260,Third Party Payments          ,Private Contractors           ,EH01,Miscellaneous Agency Services           ,"1,130.93",27/03/2015,R,MAY GURNEY LTD T/A CARTLEDGE  
488,Highways & Transport Services,Street Lighting.,Street Lighting .,G00260,Third Party Payments          ,Private Contractors           ,EH01,Miscellaneous Agency Services           ,"1,791.98",21/04/2015,R,MAY GURNEY LTD T/A CARTLEDGE  
489,Highways & Transport Services,Off-street parking,Car Parks (Unloc),G00291,Third Party Payments          ,Private Contractors           ,EH02,Miscellaneous Hired Services            ,"3,666.00",31/03/2015,R,COBALT TELEPHONE TECHNOLOGIES 
490,Highways & Transport Services,Off-street parking,Coombe Lane,G00292,Premises Related Expenditure  ,Energy Costs                  ,BB02,Electricity                             ,613.1,20/03/2015,R,SCOTTISHPOWER                 
491,Highways & Transport Services,Off-street parking,St. Georges Car Park WEST M/S,G00302,Premises Related Expenditure  ,Energy Costs                  ,BB02,Electricity                             ,791.58,02/04/2015,R,SCOTTISHPOWER                 
492,Highways & Transport Services,Off-street parking,"St. Mks Rd, Multi Sty",G00308,Premises Related Expenditure  ,Rents                         ,BC01,Miscellaneous Rents                     ,"3,790.50",14/01/2015,R,FISHER PROPERTY CONSULTANTS   
493,Highways & Transport Services,Off-street parking,"St. Mks Rd, Multi Sty",G00308,Premises Related Expenditure  ,Rents                         ,BC01,Miscellaneous Rents                     ,"4,370.40",15/04/2015,R,FISHER PROPERTY CONSULTANTS   
494,Highways & Transport Services,Off-street parking,"St. Mks Rd, Multi Sty",G00308,Premises Related Expenditure  ,Rents                         ,BC01,Miscellaneous Rents                     ,"3,709.66",28/10/2014,R,FISHER PROPERTY CONSULTANTS   
495,Highways & Transport Services,Safe routes inc schl x patrol,DFT Inclusive Mobility,G00323,Supplies & Services           ,Services                      ,DF05,Surveys (General)                       ,"38,374.00",28/01/2015,R,HAVERSTOCK ASSOCIATES LLP     
496,Highways & Transport Services,Safe routes inc schl x patrol,DFT Child Pedestrian,G00324,Supplies & Services           ,Expenses                      ,DH50,Special Projects                        ,"5,000.00",31/03/2015,R,REDACTED     
497,Highways & Transport Services,Road Safety Education,TFL CAPT SPEND (REV),G00326,Supplies & Services           ,Equip Furniture/Materials     ,DA53,Specialist Equipment                    ,"9,571.20",27/03/2015,R,DENNIS EAGLE LIMITED          
498,Highways & Transport Services,Road Safety Education,TFL CAPT SPEND (REV),G00326,Supplies & Services           ,Services                      ,DF03,Consultants                             ,"16,750.00",30/03/2015,R,SUSTRANS LIMITED              
499,Highways & Transport Services,Road Safety Education,TFL CAPT SPEND (REV),G00326,Supplies & Services           ,Services                      ,DF03,Consultants                             ,"23,500.00",30/03/2015,R,CYCLE CONFIDENT               
500,Highways & Transport Services,CYCLIST TRAINER,CYCLIST TRAINER,G00328,Supplies & Services           ,Services                      ,DF03,Consultants                             ,"14,500.00",30/03/2015,R,CYCLE CONFIDENT               
501,Highways & Transport Services,Parking Enforcement not split,Operational Running Costs,G00331,Supplies & Services           ,Equip Furniture/Materials     ,DA09,Equip-Purchases                         ,"3,770.00",18/03/2015,R,PARKEON LTD                   
502,Highways & Transport Services,Parking Enforcement not split,Operational Running Costs,G00331,Supplies & Services           ,Equip Furniture/Materials     ,DA09,Equip-Purchases                         ,"37,740.50",17/04/2015,R,PARKEON LTD                   
503,Highways & Transport Services,Parking Enforcement not split,Operational Running Costs,G00331,Supplies & Services           ,Services                      ,DF02,Misc Advertising/Publicity              ,"1,012.68",27/03/2015,R,NEWSQUEST (LONDON)LTD         
504,Highways & Transport Services,Parking Enforcement not split,Operational Running Costs,G00331,Supplies & Services           ,Comms and Computing           ,DG61,Computer Servs Special                  ,"61,391.35",20/03/2015,R,IMPERIAL CIVIL ENFORC.SOLUT.  
505,Highways & Transport Services,Parking Enforcement not split,Operational Running Costs,G00331,Supplies & Services           ,Comms and Computing           ,DG61,Computer Servs Special                  ,"29,750.00",07/04/2015,R,BARBOUR LOGIC LTD             
506,Highways & Transport Services,Parking Enforcement not split,Operational Running Costs,G00331,Third Party Payments          ,Other Agencies                ,EJ58,Parking Cttee for London                ,"18,008.69",13/04/2015,R,LONDON COUNCILS               
507,Highways & Transport Services,Repair prin/oth rds not split,Flood Risk Management,G00350,Third Party Payments          ,Private Contractors           ,EH56,Carriageway/Fway Maint                  ,"3,450.00",01/04/2015,R,FM CONWAY LTD                 
508,Highways & Transport Services,Hwys/Rds (struct) not split,Footpath Crossings.,G00390,Third Party Payments          ,Private Contractors           ,EH56,Carriageway/Fway Maint                  ,"2,121.52",01/04/2015,R,FM CONWAY LTD                 
509,Highways & Transport Services,Hwys/Rds (struct) not split,Footpath Crossings.,G00390,Third Party Payments          ,Private Contractors           ,EH56,Carriageway/Fway Maint                  ,"1,751.31",01/04/2015,R,FM CONWAY LTD                 
510,Highways & Transport Services,Hwys/Rds (struct) not split,Footpath Crossings.,G00390,Third Party Payments          ,Private Contractors           ,EH56,Carriageway/Fway Maint                  ,"8,132.06",01/04/2015,R,FM CONWAY LTD                 
511,Highways & Transport Services,Hwys/Rds (struct) not split,Footpath Crossings.,G00390,Third Party Payments          ,Private Contractors           ,EH56,Carriageway/Fway Maint                  ,"2,135.02",01/04/2015,R,FM CONWAY LTD                 
512,Highways & Transport Services,Hwys/Rds (struct) not split,Footpath Crossings.,G00390,Third Party Payments          ,Private Contractors           ,EH56,Carriageway/Fway Maint                  ,"1,563.97",01/04/2015,R,FM CONWAY LTD                 
513,Highways & Transport Services,Hwys/Rds (struct) not split,Footpath Crossings.,G00390,Third Party Payments          ,Private Contractors           ,EH56,Carriageway/Fway Maint                  ,"1,518.73",01/04/2015,R,FM CONWAY LTD                 
514,Highways & Transport Services,Hwys/Rds (struct) not split,Footpath Crossings.,G00390,Third Party Payments          ,Private Contractors           ,EH56,Carriageway/Fway Maint                  ,"4,501.21",01/04/2015,R,FM CONWAY LTD                 
515,Cultural Env Reg&Plan Services,Street Clean - Not highways,Street Cleansing (Inc. Gully),G00492,Premises Related Expenditure  ,Rents                         ,BC01,Miscellaneous Rents                     ,"1,012.18",17/03/2015,R,MERTON PRIORY HOMES (RENT)    
516,Cultural Env Reg&Plan Services,Street Clean - Not highways,Street Cleansing (Inc. Gully),G00492,Supplies & Services           ,Equip Furniture/Materials     ,DA09,Equip-Purchases                         ,944.64,21/04/2015,R,GELPACK EXCELSIOR             
517,Cultural Env Reg&Plan Services,Street Clean - Not highways,Street Cleansing (Inc. Gully),G00492,Supplies & Services           ,Equip Furniture/Materials     ,DA32,Wheeled Bins                            ,750,30/03/2015,R,UK CONTAINER MAINTENANCE LTD  
518,Cultural Env Reg&Plan Services,Waste Disposal (not separated),Waste Disposal .,G00550,Third Party Payments          ,Private Contractors           ,EH66,Clinical Waste Disposal                 ,738.01,31/03/2015,R,S.GRUNDON (WASTE) LTD.        
519,Cultural Env Reg&Plan Services,Civic Amenity Sites,Garth Road Site,G00580,Third Party Payments          ,Private Contractors           ,EH01,MISCELLANEOUS AGENCY SERVICES           ,"3,129.00",23/04/2015,R,KINGSTON CORPORATION          
520,Cultural Env Reg&Plan Services,Civic Amenity Sites,Garth Road Site,G00580,Third Party Payments          ,Private Contractors           ,EH01,MISCELLANEOUS AGENCY SERVICES           ,"38,939.58",23/04/2015,R,KINGSTON CORPORATION          
521,Cultural Env Reg&Plan Services,Civic Amenity Sites,Garth Road Site,G00580,Third Party Payments          ,Private Contractors           ,EH04,Accommodation Based Support             ,990,27/03/2015,R,KINGSTON CORPORATION          
522,Cultural Env Reg&Plan Services,Civic Amenity Sites,Garth Road Site,G00580,Third Party Payments          ,Private Contractors           ,EH61,Green Waste Disposal                    ,"2,832.66",13/02/2015,R,KINGSTON CORPORATION          
523,Cultural Env Reg&Plan Services,Civic Amenity Sites,Garth Road Site,G00580,Third Party Payments          ,Private Contractors           ,EH61,Green Waste Disposal                    ,"2,269.65",27/03/2015,R,KINGSTON CORPORATION          
524,Cultural Env Reg&Plan Services,Civic Amenity Sites,Garth Road Site,G00580,Third Party Payments          ,Private Contractors           ,EH65,TRANSPORT FEE - COMPOST                 ,"27,354.11",23/04/2015,R,KINGSTON CORPORATION          
525,Cultural Env Reg&Plan Services,Civic Amenity Sites,Garth Road Site,G00580,Third Party Payments          ,Private Contractors           ,EH65,TRANSPORT FEE - COMPOST                 ,"14,528.00",23/04/2015,R,KINGSTON CORPORATION          
526,Cultural Env Reg&Plan Services,Public Health,Dog Control.,G00620,Third Party Payments          ,Private Contractors           ,EH02,Miscellaneous Hired Services            ,"3,317.00",07/04/2015,R,NOAH'S ARK ENVIRONMENTAL SERV.
527,Cultural Env Reg&Plan Services,Recycling (Collection),Recycling Activities,G00640,Supplies & Services           ,Equip Furniture/Materials     ,DA01,Equipment - R & M                       ,"2,692.00",28/03/2015,R,R.J.H.WELDING                 
528,Cultural Env Reg&Plan Services,Recycling (Collection),Recycling Activities,G00640,Supplies & Services           ,Equip Furniture/Materials     ,DA54,Recycling Containers                    ,"2,225.00",23/03/2015,R,UK CONTAINER MAINTENANCE LTD  
529,Cultural Env Reg&Plan Services,Recycling (Collection),Recycling Activities,G00640,Supplies & Services           ,Equip Furniture/Materials     ,DA54,Recycling Containers                    ,"1,344.00",17/03/2015,R,UK CONTAINER MAINTENANCE LTD  
530,Cultural Env Reg&Plan Services,Recycling (Collection),Recycling Activities,G00640,Supplies & Services           ,Equip Furniture/Materials     ,DA54,Recycling Containers                    ,"3,600.00",30/03/2015,R,WYBONE LIMITED                
531,Cultural Env Reg&Plan Services,Recycling (Collection),Recycling Activities,G00640,Supplies & Services           ,Equip Furniture/Materials     ,DA54,Recycling Containers                    ,"6,052.00",31/03/2015,R,UK CONTAINER MAINTENANCE LTD  
532,Cultural Env Reg&Plan Services,Recycling (Collection),Recycling Activities,G00640,Third Party Payments          ,Private Contractors           ,EH03,C3 DRY RECYCLING GATE FEE               ,"-9,441.78",27/03/2015,R,KINGSTON CORPORATION          
533,Cultural Env Reg&Plan Services,Recycling (Collection),Recycling Activities,G00640,Third Party Payments          ,Private Contractors           ,EH08,SLWP C1 Haulage Dry Recyclable          ,"-10,660.52",13/02/2015,R,KINGSTON CORPORATION          
534,Cultural Env Reg&Plan Services,Recycling (Collection),BARROW AND BINS REPLACEMENT,G00641,Supplies & Services           ,Equip Furniture/Materials     ,DA53,DOG & LITTER BINS                       ,542.5,30/03/2015,R,PJ HARVEY & CO LTD            
535,Cultural Env Reg&Plan Services,Recycling (Collection),Garden Waste Service,G00647,Supplies & Services           ,Equip Furniture/Materials     ,DA31,Waste Sacks & Bags                      ,"9,750.00",26/03/2015,R,ALPHA WASTE SUPPLIES          
536,Cultural Env Reg&Plan Services,Recycling (Collection),Garden Waste Service,G00647,Third Party Payments          ,Private Contractors           ,EH61,Green Waste Disposal                    ,"3,492.10",13/02/2015,R,KINGSTON CORPORATION          
537,Cultural Env Reg&Plan Services,Recycling (Collection),Garden Waste Service,G00647,Third Party Payments          ,Private Contractors           ,EH61,Green Waste Disposal                    ,"2,806.97",27/03/2015,R,KINGSTON CORPORATION          
538,Cultural Env Reg&Plan Services,Recycling (Collection),Food Waste Service,G00648,Supplies & Services           ,Equip Furniture/Materials     ,DA31,Waste Sacks & Bags                      ,"3,384.78",16/03/2015,R,SPHERE PROFFESSIONAL          
539,Cultural Env Reg&Plan Services,Recycling (Collection),Food Waste Service,G00648,Supplies & Services           ,Equip Furniture/Materials     ,DA32,Wheeled Bins                            ,"2,718.00",30/09/2014,R,MATTIUSSI UK                  
540,Cultural Env Reg&Plan Services,Recycling (Collection),Food Waste Service,G00648,Third Party Payments          ,Private Contractors           ,EH18,SLWP C3 Food Waste Gate Fees            ,"7,912.89",13/02/2015,R,KINGSTON CORPORATION          
541,Cultural Env Reg&Plan Services,Recycling (Collection),Food Waste Service,G00648,Third Party Payments          ,Private Contractors           ,EH18,SLWP C3 Food Waste Gate Fees            ,"7,033.27",27/03/2015,R,KINGSTON CORPORATION          
542,Cultural Env Reg&Plan Services,Recycling (Collection),WCSS Recycl Encourgmnt&Incentv          ,G00650,Supplies & Services           ,Expenses                      ,DH14,Prizes and Awards                       ,"10,000.00",09/04/2015,R,BRENLEY PARK RESIDENTS ASSOC. 
543,Cultural Env Reg&Plan Services,Household Waste Collection,Refuse Collection (Operations),G00661,Supplies & Services           ,Equip Furniture/Materials     ,DA03,Hire of Equipment                       ,"1,390.00",30/03/2015,R,COMCIR RADIO COMMUNICATIONS LT
544,Cultural Env Reg&Plan Services,Household Waste Collection,Refuse Collection (Operations),G00661,Supplies & Services           ,Equip Furniture/Materials     ,DA04,Materials                               ,"5,114.50",16/03/2015,R,SAFEGUARD PEST CONTROL LTD    
545,Cultural Env Reg&Plan Services,Household Waste Collection,Refuse Collection (Operations),G00661,Supplies & Services           ,Equip Furniture/Materials     ,DA04,Materials                               ,"10,737.16",27/03/2015,R,SAFEGUARD PEST CONTROL LTD    
546,Cultural Env Reg&Plan Services,Household Waste Collection,Refuse Collection (Operations),G00661,Supplies & Services           ,Equip Furniture/Materials     ,DA04,Materials                               ,757.2,29/03/2015,R,SAFEGUARD PEST CONTROL LTD    
547,Cultural Env Reg&Plan Services,Household Waste Collection,Refuse Collection (Operations),G00661,Supplies & Services           ,Equip Furniture/Materials     ,DA32,Wheeled Bins                            ,750,30/03/2015,R,UK CONTAINER MAINTENANCE LTD  
548,Cultural Env Reg&Plan Services,Household Waste Collection,Refuse Collection (Operations),G00661,Supplies & Services           ,Clothing Unfrms Laundry       ,DC02,Clothing & Uniforms                     ,512,26/02/2015,R,SAFETY MANAGEMENT             
549,Cultural Env Reg&Plan Services,Street Clean - Not highways,Waste Enforcement,G00680,Supplies & Services           ,Comms and Computing           ,DG02,Software Licences                       ,"1,003.93",20/03/2015,R,IMPERIAL CIVIL ENFORC.SOLUT.  
550,Cultural Env Reg&Plan Services,Street Clean - Not highways,Waste Enforcement,G00680,Third Party Payments          ,Private Contractors           ,EH02,Miscellaneous Hired Services            ,"22,227.29",30/03/2015,R,KINGDOM SECURITY              
551,Cultural Env Reg&Plan Services,Inspect/Enforce (Consumer P),Trading Standards,G00690,Supplies & Services           ,Grants and Subscriptions      ,DJ04,Subscriptions                           ,"1,696.00",01/04/2015,R,TAMESIDE MBC                  
552,Cultural Env Reg&Plan Services,Food Safety,Health & Safety,G00697,Employees                     ,Indirect Employee Expenses    ,AB02,Recruitment Adverts                     ,790,31/03/2015,R,PENNA COMMUNICATIONS (NO 2 A/C
553,Cultural Env Reg&Plan Services,Mortuaries,Mortuary,G00700,Third Party Payments          ,Other Local Authorities       ,EB01,Payments to OLAs                        ,"7,098.00",02/04/2015,R,ST GEORGES HEALTHCARE TRUST   
554,Cultural Env Reg&Plan Services,Mortuaries,Mortuary,G00700,Third Party Payments          ,Other Local Authorities       ,EB01,Payments to OLAs                        ,"12,224.00",02/04/2015,R,ST GEORGES HEALTHCARE TRUST   
555,Cultural Env Reg&Plan Services,Licencing,LICENSING TEAM,G00740,Supplies & Services           ,Comms and Computing           ,DG08,COMPUTER HARDWARE                       ,575,16/04/2015,R,ESSENTRA PACKAGING & SECURITY 
556,Cultural Env Reg&Plan Services,Community Develop't (Plg),N.E.Mitcham Community Asso,G18250,Supplies & Services           ,Grants and Subscriptions      ,DJ01,Grants                                  ,"18,640.00",01/04/2015,R,NORTH EAST MITCHAM COMM ASSOC 
557,Cultural Env Reg&Plan Services,Community Develop't (Plg),Colliers Wood Community Asso,G18251,Supplies & Services           ,Grants and Subscriptions      ,DJ01,Grants                                  ,"6,170.00",01/04/2015,R,COLLIERS WOOD COMMUNITY ASSOC 
558,Cultural Env Reg&Plan Services,Community Develop't (Plg),S Mitcham Community Asso,G18253,Supplies & Services           ,Grants and Subscriptions      ,DJ01,Grants                                  ,"19,320.00",01/04/2015,R,SOUTH MITCHAM COMMUNITY ASS   
559,Cultural Env Reg&Plan Services,Community Develop't (Plg),S Wimbledon Community Asso,G18254,Supplies & Services           ,Grants and Subscriptions      ,DJ01,Grants                                  ,"2,735.00",01/04/2015,R,SOUTH WIMBLEDON COMMUNITY ASSO
560,Cultural Env Reg&Plan Services,Community Develop't (Plg),St. Marks Family Cntr,G18257,Supplies & Services           ,Grants and Subscriptions      ,DJ01,Grants                                  ,"27,050.00",01/04/2015,R,ST MARKS FAMILY CENTRE        
561,Cultural Env Reg&Plan Services,Museums & Galleries,Wandle Industrial Museum,G19289,Supplies & Services           ,Grants and Subscriptions      ,DJ01,Grants                                  ,"1,975.00",01/04/2015,R,THE WANDLE INDUSTRIAL MUSEUM  
562,Central Services,Grants - Voluntary Groups,Vestry Hall,G19290,Employees                     ,Direct Employee Expenses      ,AA17,Agency Staff & Casual Paymts            ,"5,347.61",10/04/2015,R,REDACTED
563,Central Services,Grants - Voluntary Groups,Vestry Hall,G19290,Premises Related Expenditure  ,RepairsAlterations&MtceOfBldgs,BA01,DDM - General Building                  ,"1,592.00",25/03/2015,R,REDACTED     
564,Central Services,Grants - Voluntary Groups,Vestry Hall,G19290,Premises Related Expenditure  ,RepairsAlterations&MtceOfBldgs,BA01,DDM - General Building                  ,"1,760.00",22/04/2015,R,SUNA SUPPLIES LTD.            
565,Central Services,Grants - Voluntary Groups,Vestry Hall,G19290,Premises Related Expenditure  ,RepairsAlterations&MtceOfBldgs,BA06,Repairs & Maintenance General           ,"1,593.56",31/03/2015,R,R G JONES SOUND ENGINEER      
566,Central Services,Grants - Voluntary Groups,Vestry Hall,G19290,Premises Related Expenditure  ,RepairsAlterations&MtceOfBldgs,BA06,Repairs & Maintenance General           ,622.8,30/03/2015,R,R G JONES SOUND ENGINEER      
567,Central Services,Grants - Voluntary Groups,Vestry Hall,G19290,Premises Related Expenditure  ,Energy Costs                  ,BB02,Electricity                             ,899.26,01/04/2015,R,SCOTTISHPOWER                 
568,Central Services,Grants - Voluntary Groups,Vestry Hall,G19290,Premises Related Expenditure  ,Energy Costs                  ,BB03,Gas (incl. Butane)                      ,773.98,07/04/2015,R,GAZPROM MARKETING&TRADING LTD 
569,Central Services,Grants - Voluntary Groups,Vestry Hall,G19290,Premises Related Expenditure  ,Water Services                ,BE01,Use of Water (Metered)                  ,514.31,31/03/2015,R,THAMES WATER UTILITIES LTD    
570,Central Services,Grants - Voluntary Groups,Vestry Hall,G19290,Premises Related Expenditure  ,Cleaning and Domestic Supplies,BH03,Cleaning Services                       ,623.56,27/03/2015,R,BIRKIN CLEANING SERVICES LTD  
571,Highways & Transport Services,Safe routes inc schl x patrol,School & Road Safety TFL                ,H01083,Supplies & Services           ,Services                      ,DF03,Consultants                             ,"4,000.00",30/03/2015,R,CYCLE CONFIDENT               
572,Cultural Env Reg&Plan Services,BC Regs & Other not split,Building Control,H01100,Supplies & Services           ,Services                      ,DF57,Consulting Engineers Fees               ,639,01/04/2015,R,BSI                           
573,Cultural Env Reg&Plan Services,DC Advice Apps & Reg not split,Development Control,H01130,Supplies & Services           ,Services                      ,DF03,Consultants                             ,"12,829.00",24/03/2015,R,LONDON BOROUGH OF WANDSWORTH  
574,Cultural Env Reg&Plan Services,DC Advice Apps & Reg not split,Development Control,H01130,Supplies & Services           ,Comms and Computing           ,DG09,Computer Purchases - Misc               ,750,31/03/2015,R,NORTHGATE INFORMATION SOLUTION
575,Cultural Env Reg&Plan Services,DC Advice Apps & Reg not split,Development Control,H01130,Oth Grants Reimbmnts/Contribs ,Cost recharges to other bodies,QC10,Recovery of misc expenses (X)           ,"4,160.35",20/04/2015,R,BRINKLEY'S ESTATE AGENTS      
576,Cultural Env Reg&Plan Services,DC Advice Apps & Reg not split,Development Control,H01130,Customer and client receipts  ,Fees                          ,RB03,Miscellaneous Fees S                    ,500,21/04/2015,R,REDACTED     
577,Cultural Env Reg&Plan Services,DC Advice Apps & Reg not split,Development Control,H01130,Customer and client receipts  ,Fees                          ,RB56,Application Fees X                      ,770,27/04/2015,R,PELHAM ASSOCIATES             
578,Cultural Env Reg&Plan Services,Planning Policy not split,Spatial Policy,H01173,Supplies & Services           ,Prntng Stnry Gen Off Exp      ,DE22,Marketing                               ,550,27/03/2015,R,LONDON LETTERBOX MARKETING    
579,Cultural Env Reg&Plan Services,Planning Policy not split,REGENERATION & INVESTMENT,H01174,Third Party Payments          ,Private Contractors           ,EH10,Contract Payments                       ,"3,600.00",30/03/2015,R,DESIGNED BY GOOD PEOPLE       
580,Cultural Env Reg&Plan Services,Economic Dev (Not separated),Capt Ambition-Suburban Opprt Z,H01231,Supplies & Services           ,Grants and Subscriptions      ,DJ01,Grants                                  ,"3,960.00",20/04/2015,R,INTERNAT'L DENTAL CTR MITCHAM 
581,Cultural Env Reg&Plan Services,Economic Dev (Not separated),Capt Ambition-Suburban Opprt Z,H01231,Supplies & Services           ,Grants and Subscriptions      ,DJ01,Grants                                  ,"8,000.00",20/04/2015,R,DIP & FLIP                    
582,Cultural Env Reg&Plan Services,Economic Dev (Not separated),Capt Ambition-Suburban Opprt Z,H01231,Third Party Payments          ,Private Contractors           ,EH02,Miscellaneous Hired Services            ,"8,750.00",05/03/2015,R,MERTON CHAMBER OF COMMERCE    
583,CS -Oth Operating Inc & Expend,T/A Vehicle Maintenance etc,Transport-Contract Hire,J01374,Employees                     ,Direct Employee Expenses      ,AA17,Agency Staff & Casual Paymts            ,"11,880.00",31/03/2015,R,PENNA PLC                     
584,CS -Oth Operating Inc & Expend,T/A Vehicle Maintenance etc,Transport-Contract Hire,J01374,Premises Related Expenditure  ,Energy Costs                  ,BB02,Electricity                             ,837.91,06/04/2015,R,SCOTTISHPOWER                 
585,CS -Oth Operating Inc & Expend,T/A Vehicle Maintenance etc,Transport-Contract Hire,J01374,Premises Related Expenditure  ,Energy Costs                  ,BB03,Gas (incl. Butane)                      ,574.93,07/04/2015,R,GAZPROM MARKETING&TRADING LTD 
586,CS -Oth Operating Inc & Expend,T/A Vehicle Maintenance etc,Transport-Contract Hire,J01374,Transport Related Expenditure ,Direct Transport Costs        ,CA01,Petrol Derv & Oil                       ,"32,885.08",26/03/2015,R,HARVEST ENERGY LIMITED        
587,CS -Oth Operating Inc & Expend,T/A Vehicle Maintenance etc,Transport-Contract Hire,J01374,Transport Related Expenditure ,Direct Transport Costs        ,CA01,Petrol Derv & Oil                       ,"33,170.00",17/04/2015,R,HARVEST ENERGY LIMITED        
588,CS -Oth Operating Inc & Expend,T/A Vehicle Maintenance etc,Transport-Contract Hire,J01374,Transport Related Expenditure ,Contract Hire and Op Leasing  ,CC53,Plant Hire for MRCS                     ,610,24/03/2015,R,PFB HIRE LTD                  
589,CS -Oth Operating Inc & Expend,T/A Vehicle Maintenance etc,Transport-Contract Hire,J01374,Transport Related Expenditure ,Contract Hire and Op Leasing  ,CC53,Plant Hire for MRCS                     ,610,07/04/2015,R,PFB HIRE LTD                  
590,CS -Oth Operating Inc & Expend,T/A Vehicle Maintenance etc,Transport-Contract Hire,J01374,Transport Related Expenditure ,Contract Hire and Op Leasing  ,CC53,Plant Hire for MRCS                     ,550,09/04/2015,R,PFB HIRE LTD                  
591,CS -Oth Operating Inc & Expend,T/A Vehicle Maintenance etc,Transport-Contract Hire,J01374,Transport Related Expenditure ,Contract Hire and Op Leasing  ,CC53,Plant Hire for MRCS                     ,610,17/03/2015,R,PFB HIRE LTD                  
592,CS -Oth Operating Inc & Expend,T/A Vehicle Maintenance etc,Transport-Contract Hire,J01374,Transport Related Expenditure ,Contract Hire and Op Leasing  ,CC53,Plant Hire for MRCS                     ,925,22/03/2015,R,DRM MUNICIPAL SERVICES LIMITED
593,CS -Oth Operating Inc & Expend,T/A Vehicle Maintenance etc,Transport-Contract Hire,J01374,Transport Related Expenditure ,Contract Hire and Op Leasing  ,CC53,Plant Hire for MRCS                     ,720,08/04/2015,R,PFB HIRE LTD                  
594,CS -Oth Operating Inc & Expend,T/A Vehicle Maintenance etc,Transport-Contract Hire,J01374,Transport Related Expenditure ,Contract Hire and Op Leasing  ,CC53,Plant Hire for MRCS                     ,595,31/03/2015,R,DRM MUNICIPAL SERVICES LIMITED
595,CS -Oth Operating Inc & Expend,T/A Vehicle Maintenance etc,Transport-Contract Hire,J01374,Transport Related Expenditure ,Contract Hire and Op Leasing  ,CC53,Plant Hire for MRCS                     ,875,13/04/2015,R,GULLIVER'S TRUCK HIRE LTD.    
596,CS -Oth Operating Inc & Expend,T/A Vehicle Maintenance etc,Transport-Contract Hire,J01374,Transport Related Expenditure ,Contract Hire and Op Leasing  ,CC53,Plant Hire for MRCS                     ,720,07/04/2015,R,PFB HIRE LTD                  
597,CS -Oth Operating Inc & Expend,T/A Vehicle Maintenance etc,Transport-Contract Hire,J01374,Transport Related Expenditure ,Contract Hire and Op Leasing  ,CC53,Plant Hire for MRCS                     ,726,31/03/2015,R,REDACTED     
598,CS -Oth Operating Inc & Expend,T/A Vehicle Maintenance etc,Transport-Contract Hire,J01374,Transport Related Expenditure ,Contract Hire and Op Leasing  ,CC53,Plant Hire for MRCS                     ,525,10/04/2015,R,GULLIVER'S TRUCK HIRE LTD.    
599,CS -Oth Operating Inc & Expend,T/A Vehicle Maintenance etc,Transport-Contract Hire,J01374,Transport Related Expenditure ,Contract Hire and Op Leasing  ,CC53,Plant Hire for MRCS                     ,625,26/03/2015,R,MUNIHIRE LIMITED              
600,CS -Oth Operating Inc & Expend,T/A Vehicle Maintenance etc,Transport-Contract Hire,J01374,Transport Related Expenditure ,Contract Hire and Op Leasing  ,CC53,Plant Hire for MRCS                     ,925,27/03/2015,R,DRM MUNICIPAL SERVICES LIMITED
601,CS -Oth Operating Inc & Expend,T/A Vehicle Maintenance etc,Transport-Contract Hire,J01374,Transport Related Expenditure ,Contract Hire and Op Leasing  ,CC53,Plant Hire for MRCS                     ,550,26/03/2015,R,PFB HIRE LTD                  
602,CS -Oth Operating Inc & Expend,T/A Vehicle Maintenance etc,Transport-Contract Hire,J01374,Transport Related Expenditure ,Contract Hire and Op Leasing  ,CC53,Plant Hire for MRCS                     ,726,31/03/2015,R,REDACTED     
603,CS -Oth Operating Inc & Expend,T/A Vehicle Maintenance etc,Transport-Contract Hire,J01374,Transport Related Expenditure ,Contract Hire and Op Leasing  ,CC53,Plant Hire for MRCS                     ,550,19/03/2015,R,PFB HIRE LTD                  
604,CS -Oth Operating Inc & Expend,T/A Vehicle Maintenance etc,Transport-Contract Hire,J01374,Transport Related Expenditure ,Contract Hire and Op Leasing  ,CC53,Plant Hire for MRCS                     ,550,02/04/2015,R,PFB HIRE LTD                  
605,CS -Oth Operating Inc & Expend,T/A Vehicle Maintenance etc,Transport-Contract Hire,J01374,Transport Related Expenditure ,Contract Hire and Op Leasing  ,CC53,Plant Hire for MRCS                     ,"1,210.00",31/03/2015,R,B&T PLANT HIRE LTD            
606,CS -Oth Operating Inc & Expend,T/A Vehicle Maintenance etc,Transport-Contract Hire,J01374,Transport Related Expenditure ,Contract Hire and Op Leasing  ,CC56,Plant Hire for Leisure                  ,"1,755.00",31/03/2015,R,REDACTED     
607,CS -Oth Operating Inc & Expend,T/A Vehicle Maintenance etc,Transport-Contract Hire,J01374,Transport Related Expenditure ,Contract Hire and Op Leasing  ,CC59,HIRING TRANSPORT OPERATIONS             ,"1,452.00",31/03/2015,R,BURNT TREE VEHICLE RENTAL     
608,CS -Oth Operating Inc & Expend,T/A Vehicle Maintenance etc,Transport-Contract Hire,J01374,Transport Related Expenditure ,Contract Hire and Op Leasing  ,CC59,HIRING TRANSPORT OPERATIONS             ,"2,238.32",31/03/2015,R,REDACTED     
609,CS -Oth Operating Inc & Expend,T/A Vehicle Maintenance etc,Transport-Contract Hire,J01374,Transport Related Expenditure ,Contract Hire and Op Leasing  ,CC59,HIRING TRANSPORT OPERATIONS             ,940,31/03/2015,R,REDACTED     
610,CS -Oth Operating Inc & Expend,T/A Vehicle Maintenance etc,Transport-Contract Hire,J01374,Transport Related Expenditure ,Contract Hire and Op Leasing  ,CC59,HIRING TRANSPORT OPERATIONS             ,"1,452.00",31/03/2015,R,BURNT TREE VEHICLE RENTAL     
611,CS -Oth Operating Inc & Expend,T/A Vehicle Maintenance etc,Transport-Contract Hire,J01374,Transport Related Expenditure ,Contract Hire and Op Leasing  ,CC59,HIRING TRANSPORT OPERATIONS             ,"1,452.00",31/03/2015,R,BURNT TREE VEHICLE RENTAL     
612,CS -Oth Operating Inc & Expend,T/A Vehicle Maintenance etc,Transport-Contract Hire,J01374,Transport Related Expenditure ,Contract Hire and Op Leasing  ,CC64,HIRING TRANSPORT SEN CABS               ,"2,900.00",31/03/2015,R,NVCAR HIRE LTD                
613,CS -Oth Operating Inc & Expend,T/A Vehicle Maintenance etc,Transport-Contract Hire,J01374,Transport Related Expenditure ,Contract Hire and Op Leasing  ,CC64,HIRING TRANSPORT SEN CABS               ,"1,408.00",30/03/2015,R,SILVERBURN FINANCE (UK) LTD   
614,CS -Oth Operating Inc & Expend,T/A Vehicle Maintenance etc,Transport-Contract Hire,J01374,Transport Related Expenditure ,Contract Hire and Op Leasing  ,CC64,HIRING TRANSPORT SEN CABS               ,"1,152.00",31/03/2015,R,CAPITAL CARS                  
615,CS -Oth Operating Inc & Expend,T/A Vehicle Maintenance etc,Transport-Contract Hire,J01374,Transport Related Expenditure ,Contract Hire and Op Leasing  ,CC64,HIRING TRANSPORT SEN CABS               ,"1,895.60",31/03/2015,R,KINGSTON ACCESSIBILITY TRAN LT
616,CS -Oth Operating Inc & Expend,T/A Vehicle Maintenance etc,Transport-Contract Hire,J01374,Transport Related Expenditure ,Contract Hire and Op Leasing  ,CC64,HIRING TRANSPORT SEN CABS               ,"1,152.00",01/04/2015,R,CHEAM STATION CARS            
617,CS -Oth Operating Inc & Expend,T/A Vehicle Maintenance etc,Transport-Contract Hire,J01374,Transport Related Expenditure ,Contract Hire and Op Leasing  ,CC64,HIRING TRANSPORT SEN CABS               ,"2,024.00",01/04/2015,R,CHEAM STATION CARS            
618,CS -Oth Operating Inc & Expend,T/A Vehicle Maintenance etc,Transport-Contract Hire,J01374,Transport Related Expenditure ,Contract Hire and Op Leasing  ,CC64,HIRING TRANSPORT SEN CABS               ,"1,501.00",31/03/2015,R,SHERWOOD TRANSPORT GROUP      
619,CS -Oth Operating Inc & Expend,T/A Vehicle Maintenance etc,Transport-Contract Hire,J01374,Transport Related Expenditure ,Contract Hire and Op Leasing  ,CC64,HIRING TRANSPORT SEN CABS               ,"1,406.00",31/03/2015,R,CAPITAL CARS                  
620,CS -Oth Operating Inc & Expend,T/A Vehicle Maintenance etc,Transport-Contract Hire,J01374,Transport Related Expenditure ,Contract Hire and Op Leasing  ,CC64,HIRING TRANSPORT SEN CABS               ,"3,640.00",31/03/2015,R,NVCAR HIRE LTD                
621,CS -Oth Operating Inc & Expend,T/A Vehicle Maintenance etc,Transport-Contract Hire,J01374,Transport Related Expenditure ,Contract Hire and Op Leasing  ,CC64,HIRING TRANSPORT SEN CABS               ,"1,480.00",01/04/2015,R,CHEAM STATION CARS            
622,CS -Oth Operating Inc & Expend,T/A Vehicle Maintenance etc,Transport-Contract Hire,J01374,Transport Related Expenditure ,Contract Hire and Op Leasing  ,CC64,HIRING TRANSPORT SEN CABS               ,"1,540.50",31/03/2015,R,SHERWOOD TRANSPORT GROUP      
623,CS -Oth Operating Inc & Expend,T/A Vehicle Maintenance etc,Transport-Contract Hire,J01374,Transport Related Expenditure ,Contract Hire and Op Leasing  ,CC64,HIRING TRANSPORT SEN CABS               ,"1,900.00",31/03/2015,R,SHERWOOD TRANSPORT GROUP      
624,CS -Oth Operating Inc & Expend,T/A Vehicle Maintenance etc,Transport-Contract Hire,J01374,Transport Related Expenditure ,Contract Hire and Op Leasing  ,CC64,HIRING TRANSPORT SEN CABS               ,"1,330.00",31/03/2015,R,NVCAR HIRE LTD                
625,CS -Oth Operating Inc & Expend,T/A Vehicle Maintenance etc,Transport-Contract Hire,J01374,Transport Related Expenditure ,Contract Hire and Op Leasing  ,CC64,HIRING TRANSPORT SEN CABS               ,"1,386.00",31/03/2015,R,CAPITAL CARS                  
626,CS -Oth Operating Inc & Expend,T/A Vehicle Maintenance etc,Transport-Contract Hire,J01374,Transport Related Expenditure ,Contract Hire and Op Leasing  ,CC64,HIRING TRANSPORT SEN CABS               ,"1,920.00",31/03/2015,R,PREMIER CARS                  
627,CS -Oth Operating Inc & Expend,T/A Vehicle Maintenance etc,Transport-Contract Hire,J01374,Transport Related Expenditure ,Contract Hire and Op Leasing  ,CC64,HIRING TRANSPORT SEN CABS               ,"2,682.42",31/03/2015,R,KINGSTON ACCESSIBILITY TRAN LT
628,CS -Oth Operating Inc & Expend,T/A Vehicle Maintenance etc,Transport-Contract Hire,J01374,Transport Related Expenditure ,Contract Hire and Op Leasing  ,CC64,HIRING TRANSPORT SEN CABS               ,"1,024.00",31/03/2015,R,BARCLAYS ASSET & SALES FINANCE
629,CS -Oth Operating Inc & Expend,T/A Vehicle Maintenance etc,Transport-Contract Hire,J01374,Transport Related Expenditure ,Contract Hire and Op Leasing  ,CC64,HIRING TRANSPORT SEN CABS               ,"1,680.00",31/03/2015,R,CAPITAL CARS                  
630,CS -Oth Operating Inc & Expend,T/A Vehicle Maintenance etc,Transport-Contract Hire,J01374,Transport Related Expenditure ,Contract Hire and Op Leasing  ,CC64,HIRING TRANSPORT SEN CABS               ,810,31/03/2015,R,NVCAR HIRE LTD                
631,CS -Oth Operating Inc & Expend,T/A Vehicle Maintenance etc,Transport-Contract Hire,J01374,Transport Related Expenditure ,Contract Hire and Op Leasing  ,CC64,HIRING TRANSPORT SEN CABS               ,"1,920.00",30/03/2015,R,SILVERBURN FINANCE (UK) LTD   
632,CS -Oth Operating Inc & Expend,T/A Vehicle Maintenance etc,Transport-Contract Hire,J01374,Transport Related Expenditure ,Contract Hire and Op Leasing  ,CC64,HIRING TRANSPORT SEN CABS               ,"1,210.50",28/02/2015,R,SILVERBURN FINANCE (UK) LTD   
633,CS -Oth Operating Inc & Expend,T/A Vehicle Maintenance etc,Transport-Contract Hire,J01374,Transport Related Expenditure ,Contract Hire and Op Leasing  ,CC64,HIRING TRANSPORT SEN CABS               ,"1,040.00",31/03/2015,R,NVCAR HIRE LTD                
634,CS -Oth Operating Inc & Expend,T/A Vehicle Maintenance etc,Transport-Contract Hire,J01374,Transport Related Expenditure ,Contract Hire and Op Leasing  ,CC64,HIRING TRANSPORT SEN CABS               ,976,31/03/2015,R,CAPITAL CARS                  
635,CS -Oth Operating Inc & Expend,T/A Vehicle Maintenance etc,Transport-Contract Hire,J01374,Transport Related Expenditure ,Contract Hire and Op Leasing  ,CC64,HIRING TRANSPORT SEN CABS               ,"1,520.00",31/03/2015,R,CAPITAL CARS                  
636,CS -Oth Operating Inc & Expend,T/A Vehicle Maintenance etc,Transport-Contract Hire,J01374,Transport Related Expenditure ,Contract Hire and Op Leasing  ,CC64,HIRING TRANSPORT SEN CABS               ,"3,000.00",27/03/2015,R,WALLINGTON CARS & COURIERS LTD
637,CS -Oth Operating Inc & Expend,T/A Vehicle Maintenance etc,Transport-Contract Hire,J01374,Transport Related Expenditure ,Contract Hire and Op Leasing  ,CC64,HIRING TRANSPORT SEN CABS               ,"1,025.00",27/03/2015,R,WALLINGTON CARS & COURIERS LTD
638,CS -Oth Operating Inc & Expend,T/A Vehicle Maintenance etc,Transport-Contract Hire,J01374,Transport Related Expenditure ,Contract Hire and Op Leasing  ,CC64,HIRING TRANSPORT SEN CABS               ,"2,000.00",31/03/2015,R,NVCAR HIRE LTD                
639,CS -Oth Operating Inc & Expend,T/A Vehicle Maintenance etc,Transport-Contract Hire,J01374,Transport Related Expenditure ,Contract Hire and Op Leasing  ,CC64,HIRING TRANSPORT SEN CABS               ,880,31/03/2015,R,NVCAR HIRE LTD                
640,CS -Oth Operating Inc & Expend,T/A Vehicle Maintenance etc,Transport-Contract Hire,J01374,Transport Related Expenditure ,Contract Hire and Op Leasing  ,CC64,HIRING TRANSPORT SEN CABS               ,"1,936.00",31/03/2015,R,SHERWOOD TRANSPORT GROUP      
641,CS -Oth Operating Inc & Expend,T/A Vehicle Maintenance etc,Transport-Contract Hire,J01374,Transport Related Expenditure ,Contract Hire and Op Leasing  ,CC64,HIRING TRANSPORT SEN CABS               ,"2,390.00",31/03/2015,R,KINGSTON ACCESSIBILITY TRAN LT
642,CS -Oth Operating Inc & Expend,T/A Vehicle Maintenance etc,Transport-Contract Hire,J01374,Transport Related Expenditure ,Contract Hire and Op Leasing  ,CC64,HIRING TRANSPORT SEN CABS               ,"2,600.00",31/03/2015,R,CAPITAL CARS                  
643,CS -Oth Operating Inc & Expend,T/A Vehicle Maintenance etc,Transport-Contract Hire,J01374,Transport Related Expenditure ,Contract Hire and Op Leasing  ,CC64,HIRING TRANSPORT SEN CABS               ,"2,720.00",31/03/2015,R,CAPITAL CARS                  
644,CS -Oth Operating Inc & Expend,T/A Vehicle Maintenance etc,Transport-Contract Hire,J01374,Transport Related Expenditure ,Contract Hire and Op Leasing  ,CC64,HIRING TRANSPORT SEN CABS               ,"1,296.00",31/03/2015,R,KINGSTON ACCESSIBILITY TRAN LT
645,CS -Oth Operating Inc & Expend,T/A Vehicle Maintenance etc,Transport-Contract Hire,J01374,Transport Related Expenditure ,Contract Hire and Op Leasing  ,CC64,HIRING TRANSPORT SEN CABS               ,640,31/03/2015,R,GALPINS SERVICE               
646,CS -Oth Operating Inc & Expend,T/A Vehicle Maintenance etc,Transport-Contract Hire,J01374,Transport Related Expenditure ,Contract Hire and Op Leasing  ,CC64,HIRING TRANSPORT SEN CABS               ,"2,590.00",31/03/2015,R,BARCLAYS ASSET & SALES FINANCE
647,CS -Oth Operating Inc & Expend,T/A Vehicle Maintenance etc,Transport-Contract Hire,J01374,Transport Related Expenditure ,Contract Hire and Op Leasing  ,CC64,HIRING TRANSPORT SEN CABS               ,"1,813.00",31/03/2015,R,NVCAR HIRE LTD                
648,CS -Oth Operating Inc & Expend,T/A Vehicle Maintenance etc,Transport-Contract Hire,J01374,Transport Related Expenditure ,Contract Hire and Op Leasing  ,CC64,HIRING TRANSPORT SEN CABS               ,"1,710.00",31/03/2015,R,NVCAR HIRE LTD                
649,CS -Oth Operating Inc & Expend,T/A Vehicle Maintenance etc,Transport-Contract Hire,J01374,Transport Related Expenditure ,Contract Hire and Op Leasing  ,CC64,HIRING TRANSPORT SEN CABS               ,932,31/03/2015,R,NVCAR HIRE LTD                
650,CS -Oth Operating Inc & Expend,T/A Vehicle Maintenance etc,Transport-Contract Hire,J01374,Transport Related Expenditure ,Contract Hire and Op Leasing  ,CC64,HIRING TRANSPORT SEN CABS               ,"3,077.62",31/03/2015,R,KINGSTON ACCESSIBILITY TRAN LT
651,CS -Oth Operating Inc & Expend,T/A Vehicle Maintenance etc,Transport-Contract Hire,J01374,Transport Related Expenditure ,Contract Hire and Op Leasing  ,CC64,HIRING TRANSPORT SEN CABS               ,"1,920.00",31/03/2015,R,CAPITAL CARS                  
652,CS -Oth Operating Inc & Expend,T/A Vehicle Maintenance etc,Transport-Contract Hire,J01374,Transport Related Expenditure ,Contract Hire and Op Leasing  ,CC64,HIRING TRANSPORT SEN CABS               ,"1,384.00",30/03/2015,R,SILVERBURN FINANCE (UK) LTD   
653,CS -Oth Operating Inc & Expend,T/A Vehicle Maintenance etc,Transport-Contract Hire,J01374,Transport Related Expenditure ,Contract Hire and Op Leasing  ,CC64,HIRING TRANSPORT SEN CABS               ,"2,700.00",31/03/2015,R,SHERWOOD TRANSPORT GROUP      
654,CS -Oth Operating Inc & Expend,T/A Vehicle Maintenance etc,Transport-Contract Hire,J01374,Transport Related Expenditure ,Contract Hire and Op Leasing  ,CC64,HIRING TRANSPORT SEN CABS               ,"2,998.00",31/03/2015,R,KINGSTON ACCESSIBILITY TRAN LT
655,CS -Oth Operating Inc & Expend,T/A Vehicle Maintenance etc,Transport-Contract Hire,J01374,Transport Related Expenditure ,Contract Hire and Op Leasing  ,CC64,HIRING TRANSPORT SEN CABS               ,"2,218.71",31/03/2015,R,KINGSTON ACCESSIBILITY TRAN LT
656,CS -Oth Operating Inc & Expend,T/A Vehicle Maintenance etc,Transport-Contract Hire,J01374,Transport Related Expenditure ,Contract Hire and Op Leasing  ,CC64,HIRING TRANSPORT SEN CABS               ,"1,147.50",31/03/2015,R,PREMIER CARS                  
657,CS -Oth Operating Inc & Expend,T/A Vehicle Maintenance etc,Transport-Contract Hire,J01374,Transport Related Expenditure ,Contract Hire and Op Leasing  ,CC64,HIRING TRANSPORT SEN CABS               ,"1,800.00",31/03/2015,R,SHERWOOD TRANSPORT GROUP      
658,CS -Oth Operating Inc & Expend,T/A Vehicle Maintenance etc,Transport-Contract Hire,J01374,Transport Related Expenditure ,Contract Hire and Op Leasing  ,CC64,HIRING TRANSPORT SEN CABS               ,"2,380.00",31/03/2015,R,SHERWOOD TRANSPORT GROUP      
659,CS -Oth Operating Inc & Expend,T/A Vehicle Maintenance etc,Transport-Contract Hire,J01374,Transport Related Expenditure ,Contract Hire and Op Leasing  ,CC64,HIRING TRANSPORT SEN CABS               ,"5,000.00",31/03/2015,R,SHERWOOD TRANSPORT GROUP      
660,CS -Oth Operating Inc & Expend,T/A Vehicle Maintenance etc,Transport-Contract Hire,J01374,Transport Related Expenditure ,Contract Hire and Op Leasing  ,CC64,HIRING TRANSPORT SEN CABS               ,"2,360.00",31/03/2015,R,KINGSTON ACCESSIBILITY TRAN LT
661,CS -Oth Operating Inc & Expend,T/A Vehicle Maintenance etc,Transport-Contract Hire,J01374,Transport Related Expenditure ,Contract Hire and Op Leasing  ,CC64,HIRING TRANSPORT SEN CABS               ,540,31/03/2015,R,CAPITAL CARS                  
662,CS -Oth Operating Inc & Expend,T/A Vehicle Maintenance etc,Transport-Contract Hire,J01374,Transport Related Expenditure ,Contract Hire and Op Leasing  ,CC64,HIRING TRANSPORT SEN CABS               ,"3,002.00",31/03/2015,R,BARCLAYS ASSET & SALES FINANCE
663,CS -Oth Operating Inc & Expend,T/A Vehicle Maintenance etc,Transport-Contract Hire,J01374,Transport Related Expenditure ,Contract Hire and Op Leasing  ,CC64,HIRING TRANSPORT SEN CABS               ,"1,000.00",01/04/2015,R,CHEAM STATION CARS            
664,CS -Oth Operating Inc & Expend,T/A Vehicle Maintenance etc,Transport-Contract Hire,J01374,Transport Related Expenditure ,Contract Hire and Op Leasing  ,CC64,HIRING TRANSPORT SEN CABS               ,"2,560.00",31/03/2015,R,A STAR TRANSPORT LIMITED      
665,CS -Oth Operating Inc & Expend,T/A Vehicle Maintenance etc,Transport-Contract Hire,J01374,Transport Related Expenditure ,Contract Hire and Op Leasing  ,CC64,HIRING TRANSPORT SEN CABS               ,"2,600.00",31/03/2015,R,CAPITAL CARS                  
666,CS -Oth Operating Inc & Expend,T/A Vehicle Maintenance etc,Transport-Contract Hire,J01374,Transport Related Expenditure ,Contract Hire and Op Leasing  ,CC64,HIRING TRANSPORT SEN CABS               ,840,31/03/2015,R,CAPITAL CARS                  
667,CS -Oth Operating Inc & Expend,T/A Vehicle Maintenance etc,Transport-Contract Hire,J01374,Transport Related Expenditure ,Contract Hire and Op Leasing  ,CC64,HIRING TRANSPORT SEN CABS               ,"1,995.00",31/03/2015,R,SHERWOOD TRANSPORT GROUP      
668,CS -Oth Operating Inc & Expend,T/A Vehicle Maintenance etc,Transport-Contract Hire,J01374,Transport Related Expenditure ,Contract Hire and Op Leasing  ,CC64,HIRING TRANSPORT SEN CABS               ,555,31/03/2015,R,KENDALL CARS                  
669,CS -Oth Operating Inc & Expend,T/A Vehicle Maintenance etc,Transport-Contract Hire,J01374,Transport Related Expenditure ,Contract Hire and Op Leasing  ,CC64,HIRING TRANSPORT SEN CABS               ,"2,850.00",31/03/2015,R,BARCLAYS ASSET & SALES FINANCE
670,CS -Oth Operating Inc & Expend,T/A Vehicle Maintenance etc,Transport-Contract Hire,J01374,Transport Related Expenditure ,Contract Hire and Op Leasing  ,CC64,HIRING TRANSPORT SEN CABS               ,"1,595.00",31/03/2015,R,SHERWOOD TRANSPORT GROUP      
671,CS -Oth Operating Inc & Expend,T/A Vehicle Maintenance etc,Transport-Contract Hire,J01374,Transport Related Expenditure ,Contract Hire and Op Leasing  ,CC64,HIRING TRANSPORT SEN CABS               ,"2,091.60",31/03/2015,R,KINGSTON ACCESSIBILITY TRAN LT
672,CS -Oth Operating Inc & Expend,T/A Vehicle Maintenance etc,Transport-Contract Hire,J01374,Transport Related Expenditure ,Contract Hire and Op Leasing  ,CC64,HIRING TRANSPORT SEN CABS               ,"1,560.00",31/03/2015,R,CAPITAL CARS                  
673,CS -Oth Operating Inc & Expend,T/A Vehicle Maintenance etc,Transport-Contract Hire,J01374,Transport Related Expenditure ,Contract Hire and Op Leasing  ,CC64,HIRING TRANSPORT SEN CABS               ,"1,368.00",31/03/2015,R,NVCAR HIRE LTD                
674,CS -Oth Operating Inc & Expend,T/A Vehicle Maintenance etc,Transport-Contract Hire,J01374,Transport Related Expenditure ,Contract Hire and Op Leasing  ,CC64,HIRING TRANSPORT SEN CABS               ,"2,380.00",27/03/2015,R,BRUNSWICK CARS LTD            
675,CS -Oth Operating Inc & Expend,T/A Vehicle Maintenance etc,Transport-Contract Hire,J01374,Transport Related Expenditure ,Contract Hire and Op Leasing  ,CC64,HIRING TRANSPORT SEN CABS               ,"1,764.00",31/03/2015,R,A STAR TRANSPORT LIMITED      
676,CS -Oth Operating Inc & Expend,T/A Vehicle Maintenance etc,Transport-Contract Hire,J01374,Transport Related Expenditure ,Contract Hire and Op Leasing  ,CC64,HIRING TRANSPORT SEN CABS               ,"3,420.00",31/03/2015,R,SHERWOOD TRANSPORT GROUP      
677,CS -Oth Operating Inc & Expend,T/A Vehicle Maintenance etc,Transport-Contract Hire,J01374,Transport Related Expenditure ,Contract Hire and Op Leasing  ,CC64,HIRING TRANSPORT SEN CABS               ,"1,920.00",31/03/2015,R,CAPITAL CARS                  
678,CS -Oth Operating Inc & Expend,T/A Vehicle Maintenance etc,Transport-Contract Hire,J01374,Transport Related Expenditure ,Contract Hire and Op Leasing  ,CC64,HIRING TRANSPORT SEN CABS               ,"1,012.00",31/03/2015,R,CAPITAL CARS                  
679,CS -Oth Operating Inc & Expend,T/A Vehicle Maintenance etc,Transport-Contract Hire,J01374,Transport Related Expenditure ,Contract Hire and Op Leasing  ,CC64,HIRING TRANSPORT SEN CABS               ,"1,298.93",30/03/2015,R,SILVERBURN FINANCE (UK) LTD   
680,CS -Oth Operating Inc & Expend,T/A Vehicle Maintenance etc,Transport-Contract Hire,J01374,Transport Related Expenditure ,Contract Hire and Op Leasing  ,CC64,HIRING TRANSPORT SEN CABS               ,968.33,31/03/2015,R,GALPINS SERVICE               
681,CS -Oth Operating Inc & Expend,T/A Vehicle Maintenance etc,Transport-Contract Hire,J01374,Transport Related Expenditure ,Contract Hire and Op Leasing  ,CC64,HIRING TRANSPORT SEN CABS               ,"1,880.00",31/03/2015,R,CAPITAL CARS                  
682,CS -Oth Operating Inc & Expend,T/A Vehicle Maintenance etc,Transport-Contract Hire,J01374,Transport Related Expenditure ,Contract Hire and Op Leasing  ,CC64,HIRING TRANSPORT SEN CABS               ,959.5,31/03/2015,R,NVCAR HIRE LTD                
683,CS -Oth Operating Inc & Expend,T/A Vehicle Maintenance etc,Transport-Contract Hire,J01374,Transport Related Expenditure ,Contract Hire and Op Leasing  ,CC64,HIRING TRANSPORT SEN CABS               ,"2,280.00",31/03/2015,R,CAPITAL CARS                  
684,CS -Oth Operating Inc & Expend,T/A Vehicle Maintenance etc,Transport-Contract Hire,J01374,Transport Related Expenditure ,Contract Hire and Op Leasing  ,CC64,HIRING TRANSPORT SEN CABS               ,"1,340.00",30/03/2015,R,SILVERBURN FINANCE (UK) LTD   
685,CS -Oth Operating Inc & Expend,T/A Vehicle Maintenance etc,Transport-Contract Hire,J01374,Transport Related Expenditure ,Contract Hire and Op Leasing  ,CC64,HIRING TRANSPORT SEN CABS               ,"1,999.60",31/03/2015,R,KINGSTON ACCESSIBILITY TRAN LT
686,CS -Oth Operating Inc & Expend,T/A Vehicle Maintenance etc,Transport-Contract Hire,J01374,Transport Related Expenditure ,Contract Hire and Op Leasing  ,CC64,HIRING TRANSPORT SEN CABS               ,"1,482.00",31/03/2015,R,KINGSTON ACCESSIBILITY TRAN LT
687,CS -Oth Operating Inc & Expend,T/A Vehicle Maintenance etc,Transport-Contract Hire,J01374,Transport Related Expenditure ,Contract Hire and Op Leasing  ,CC64,HIRING TRANSPORT SEN CABS               ,840,31/03/2015,R,NVCAR HIRE LTD                
688,CS -Oth Operating Inc & Expend,T/A Vehicle Maintenance etc,Transport-Contract Hire,J01374,Transport Related Expenditure ,Contract Hire and Op Leasing  ,CC64,HIRING TRANSPORT SEN CABS               ,"2,470.00",31/03/2015,R,CAPITAL CARS                  
689,CS -Oth Operating Inc & Expend,T/A Vehicle Maintenance etc,Transport-Contract Hire,J01374,Transport Related Expenditure ,Contract Hire and Op Leasing  ,CC64,HIRING TRANSPORT SEN CABS               ,647.5,31/03/2015,R,AERIAL CAR SERVICES LTD       
690,CS -Oth Operating Inc & Expend,T/A Vehicle Maintenance etc,Transport-Contract Hire,J01374,Transport Related Expenditure ,Contract Hire and Op Leasing  ,CC64,HIRING TRANSPORT SEN CABS               ,675,31/03/2015,R,PREMIER CARS                  
691,CS -Oth Operating Inc & Expend,T/A Vehicle Maintenance etc,Transport-Contract Hire,J01374,Transport Related Expenditure ,Contract Hire and Op Leasing  ,CC64,HIRING TRANSPORT SEN CABS               ,"1,560.00",31/03/2015,R,BARCLAYS ASSET & SALES FINANCE
692,CS -Oth Operating Inc & Expend,T/A Vehicle Maintenance etc,Transport-Contract Hire,J01374,Transport Related Expenditure ,Contract Hire and Op Leasing  ,CC64,HIRING TRANSPORT SEN CABS               ,"1,296.00",30/03/2015,R,SILVERBURN FINANCE (UK) LTD   
693,CS -Oth Operating Inc & Expend,T/A Vehicle Maintenance etc,Transport-Contract Hire,J01374,Transport Related Expenditure ,Contract Hire and Op Leasing  ,CC64,HIRING TRANSPORT SEN CABS               ,"2,834.42",31/03/2015,R,KINGSTON ACCESSIBILITY TRAN LT
694,CS -Oth Operating Inc & Expend,T/A Vehicle Maintenance etc,Transport-Contract Hire,J01374,Transport Related Expenditure ,Contract Hire and Op Leasing  ,CC64,HIRING TRANSPORT SEN CABS               ,"1,582.00",30/03/2015,R,SILVERBURN FINANCE (UK) LTD   
695,CS -Oth Operating Inc & Expend,T/A Vehicle Maintenance etc,Transport-Contract Hire,J01374,Transport Related Expenditure ,Contract Hire and Op Leasing  ,CC64,HIRING TRANSPORT SEN CABS               ,"3,200.00",27/03/2015,R,WALLINGTON CARS & COURIERS LTD
696,CS -Oth Operating Inc & Expend,T/A Vehicle Maintenance etc,Transport-Contract Hire,J01374,Transport Related Expenditure ,Contract Hire and Op Leasing  ,CC64,HIRING TRANSPORT SEN CABS               ,"2,100.00",31/03/2015,R,SHERWOOD TRANSPORT GROUP      
697,CS -Oth Operating Inc & Expend,T/A Vehicle Maintenance etc,Transport-Contract Hire,J01374,Transport Related Expenditure ,Contract Hire and Op Leasing  ,CC64,HIRING TRANSPORT SEN CABS               ,"3,011.50",31/03/2015,R,SHERWOOD TRANSPORT GROUP      
698,CS -Oth Operating Inc & Expend,T/A Vehicle Maintenance etc,Transport-Contract Hire,J01374,Transport Related Expenditure ,Contract Hire and Op Leasing  ,CC64,HIRING TRANSPORT SEN CABS               ,"2,355.60",31/03/2015,R,KINGSTON ACCESSIBILITY TRAN LT
699,CS -Oth Operating Inc & Expend,T/A Vehicle Maintenance etc,Transport-Contract Hire,J01374,Transport Related Expenditure ,Contract Hire and Op Leasing  ,CC64,HIRING TRANSPORT SEN CABS               ,"1,360.00",31/03/2015,R,GALPINS SERVICE               
700,CS -Oth Operating Inc & Expend,T/A Vehicle Maintenance etc,Transport-Contract Hire,J01374,Transport Related Expenditure ,Contract Hire and Op Leasing  ,CC64,HIRING TRANSPORT SEN CABS               ,760,31/03/2015,R,GALPINS SERVICE               
701,CS -Oth Operating Inc & Expend,T/A Vehicle Maintenance etc,Transport-Contract Hire,J01374,Transport Related Expenditure ,Contract Hire and Op Leasing  ,CC64,HIRING TRANSPORT SEN CABS               ,742.5,31/03/2015,R,SHERWOOD TRANSPORT GROUP      
702,CS -Oth Operating Inc & Expend,T/A Vehicle Maintenance etc,Transport-Contract Hire,J01374,Transport Related Expenditure ,Contract Hire and Op Leasing  ,CC64,HIRING TRANSPORT SEN CABS               ,"1,760.00",31/03/2015,R,PREMIER CARS                  
703,CS -Oth Operating Inc & Expend,T/A Vehicle Maintenance etc,Transport-Contract Hire,J01374,Transport Related Expenditure ,Contract Hire and Op Leasing  ,CC64,HIRING TRANSPORT SEN CABS               ,"1,980.00",31/03/2015,R,SHERWOOD TRANSPORT GROUP      
704,CS -Oth Operating Inc & Expend,T/A Vehicle Maintenance etc,Transport-Contract Hire,J01374,Transport Related Expenditure ,Contract Hire and Op Leasing  ,CC64,HIRING TRANSPORT SEN CABS               ,"2,808.00",31/03/2015,R,CAPITAL CARS                  
705,CS -Oth Operating Inc & Expend,T/A Vehicle Maintenance etc,Transport-Contract Hire,J01374,Transport Related Expenditure ,Contract Hire and Op Leasing  ,CC64,HIRING TRANSPORT SEN CABS               ,"2,438.00",31/03/2015,R,KINGSTON ACCESSIBILITY TRAN LT
706,CS -Oth Operating Inc & Expend,T/A Vehicle Maintenance etc,Transport-Contract Hire,J01374,Transport Related Expenditure ,Contract Hire and Op Leasing  ,CC64,HIRING TRANSPORT SEN CABS               ,870,31/03/2015,R,NVCAR HIRE LTD                
707,CS -Oth Operating Inc & Expend,T/A Vehicle Maintenance etc,Transport-Contract Hire,J01374,Transport Related Expenditure ,Contract Hire and Op Leasing  ,CC64,HIRING TRANSPORT SEN CABS               ,"1,800.00",31/03/2015,R,KINGSTON ACCESSIBILITY TRAN LT
708,CS -Oth Operating Inc & Expend,T/A Vehicle Maintenance etc,Transport-Contract Hire,J01374,Transport Related Expenditure ,Contract Hire and Op Leasing  ,CC64,HIRING TRANSPORT SEN CABS               ,"3,180.00",31/03/2015,R,SHERWOOD TRANSPORT GROUP      
709,CS -Oth Operating Inc & Expend,T/A Vehicle Maintenance etc,Transport-Contract Hire,J01374,Transport Related Expenditure ,Contract Hire and Op Leasing  ,CC64,HIRING TRANSPORT SEN CABS               ,"2,964.00",31/03/2015,R,BARCLAYS ASSET & SALES FINANCE
710,CS -Oth Operating Inc & Expend,T/A Vehicle Maintenance etc,Transport-Contract Hire,J01374,Transport Related Expenditure ,Contract Hire and Op Leasing  ,CC64,HIRING TRANSPORT SEN CABS               ,"1,800.00",31/03/2015,R,CAPITAL CARS                  
711,CS -Oth Operating Inc & Expend,T/A Vehicle Maintenance etc,Transport-Contract Hire,J01374,Transport Related Expenditure ,Contract Hire and Op Leasing  ,CC64,HIRING TRANSPORT SEN CABS               ,"1,611.00",31/03/2015,R,SHERWOOD TRANSPORT GROUP      
712,CS -Oth Operating Inc & Expend,T/A Vehicle Maintenance etc,Transport-Contract Hire,J01374,Transport Related Expenditure ,Contract Hire and Op Leasing  ,CC64,HIRING TRANSPORT SEN CABS               ,"1,296.00",27/03/2015,R,BRUNSWICK CARS LTD            
713,CS -Oth Operating Inc & Expend,T/A Vehicle Maintenance etc,Transport-Contract Hire,J01374,Transport Related Expenditure ,Contract Hire and Op Leasing  ,CC64,HIRING TRANSPORT SEN CABS               ,"3,360.00",30/03/2015,R,SILVERBURN FINANCE (UK) LTD   
714,CS -Oth Operating Inc & Expend,T/A Vehicle Maintenance etc,Transport-Contract Hire,J01374,Transport Related Expenditure ,Contract Hire and Op Leasing  ,CC64,HIRING TRANSPORT SEN CABS               ,"2,250.00",31/03/2015,R,NVCAR HIRE LTD                
715,CS -Oth Operating Inc & Expend,T/A Vehicle Maintenance etc,Transport-Contract Hire,J01374,Transport Related Expenditure ,Contract Hire and Op Leasing  ,CC64,HIRING TRANSPORT SEN CABS               ,902.5,31/03/2015,R,NVCAR HIRE LTD                
716,CS -Oth Operating Inc & Expend,T/A Vehicle Maintenance etc,Transport-Contract Hire,J01374,Transport Related Expenditure ,Contract Hire and Op Leasing  ,CC64,HIRING TRANSPORT SEN CABS               ,"1,350.00",31/03/2015,R,NVCAR HIRE LTD                
717,CS -Oth Operating Inc & Expend,T/A Vehicle Maintenance etc,Transport-Contract Hire,J01374,Transport Related Expenditure ,Contract Hire and Op Leasing  ,CC64,HIRING TRANSPORT SEN CABS               ,"2,200.00",31/03/2015,R,BARCLAYS ASSET & SALES FINANCE
718,CS -Oth Operating Inc & Expend,T/A Vehicle Maintenance etc,Transport-Contract Hire,J01374,Transport Related Expenditure ,Contract Hire and Op Leasing  ,CC64,HIRING TRANSPORT SEN CABS               ,"1,760.00",31/03/2015,R,CAPITAL CARS                  
719,CS -Oth Operating Inc & Expend,T/A Vehicle Maintenance etc,Transport-Contract Hire,J01374,Transport Related Expenditure ,Contract Hire and Op Leasing  ,CC64,HIRING TRANSPORT SEN CABS               ,"2,622.00",27/03/2015,R,WALLINGTON CARS & COURIERS LTD
720,CS -Oth Operating Inc & Expend,T/A Vehicle Maintenance etc,Transport-Contract Hire,J01374,Transport Related Expenditure ,Contract Hire and Op Leasing  ,CC64,HIRING TRANSPORT SEN CABS               ,"1,580.00",31/03/2015,R,CAPITAL CARS                  
721,CS -Oth Operating Inc & Expend,T/A Vehicle Maintenance etc,Transport-Contract Hire,J01374,Transport Related Expenditure ,Contract Hire and Op Leasing  ,CC64,HIRING TRANSPORT SEN CABS               ,760,31/03/2015,R,SHERWOOD TRANSPORT GROUP      
722,CS -Oth Operating Inc & Expend,T/A Vehicle Maintenance etc,Transport-Contract Hire,J01374,Transport Related Expenditure ,Contract Hire and Op Leasing  ,CC64,HIRING TRANSPORT SEN CABS               ,"1,360.00",31/03/2015,R,PREMIER CARS                  
723,CS -Oth Operating Inc & Expend,T/A Vehicle Maintenance etc,Transport-Contract Hire,J01374,Transport Related Expenditure ,Contract Hire and Op Leasing  ,CC64,HIRING TRANSPORT SEN CABS               ,"2,860.00",27/03/2015,R,BRUNSWICK CARS LTD            
724,CS -Oth Operating Inc & Expend,T/A Vehicle Maintenance etc,Transport-Contract Hire,J01374,Transport Related Expenditure ,Contract Hire and Op Leasing  ,CC64,HIRING TRANSPORT SEN CABS               ,"1,655.75",31/03/2015,R,SHERWOOD TRANSPORT GROUP      
725,CS -Oth Operating Inc & Expend,T/A Vehicle Maintenance etc,Transport-Contract Hire,J01374,Transport Related Expenditure ,Contract Hire and Op Leasing  ,CC64,HIRING TRANSPORT SEN CABS               ,"1,400.00",30/03/2015,R,SILVERBURN FINANCE (UK) LTD   
726,CS -Oth Operating Inc & Expend,T/A Vehicle Maintenance etc,Transport-Contract Hire,J01374,Transport Related Expenditure ,Contract Hire and Op Leasing  ,CC64,HIRING TRANSPORT SEN CABS               ,"3,583.60",31/03/2015,R,KINGSTON ACCESSIBILITY TRAN LT
727,CS -Oth Operating Inc & Expend,T/A Vehicle Maintenance etc,Transport-Contract Hire,J01374,Transport Related Expenditure ,Contract Hire and Op Leasing  ,CC64,HIRING TRANSPORT SEN CABS               ,"2,400.00",31/03/2015,R,NVCAR HIRE LTD                
728,CS -Oth Operating Inc & Expend,T/A Vehicle Maintenance etc,Transport-Contract Hire,J01374,Transport Related Expenditure ,Contract Hire and Op Leasing  ,CC64,HIRING TRANSPORT SEN CABS               ,"1,040.00",30/03/2015,R,SILVERBURN FINANCE (UK) LTD   
729,CS -Oth Operating Inc & Expend,T/A Vehicle Maintenance etc,Transport-Contract Hire,J01374,Transport Related Expenditure ,Contract Hire and Op Leasing  ,CC64,HIRING TRANSPORT SEN CABS               ,880,31/03/2015,R,CAPITAL CARS                  
730,CS -Oth Operating Inc & Expend,T/A Vehicle Maintenance etc,Transport-Contract Hire,J01374,Transport Related Expenditure ,Contract Hire and Op Leasing  ,CC64,HIRING TRANSPORT SEN CABS               ,"2,400.00",31/03/2015,R,NVCAR HIRE LTD                
731,CS -Oth Operating Inc & Expend,T/A Vehicle Maintenance etc,Transport-Contract Hire,J01374,Transport Related Expenditure ,Contract Hire and Op Leasing  ,CC64,HIRING TRANSPORT SEN CABS               ,"3,100.00",31/03/2015,R,BARCLAYS ASSET & SALES FINANCE
732,CS -Oth Operating Inc & Expend,T/A Vehicle Maintenance etc,Transport-Contract Hire,J01374,Transport Related Expenditure ,Contract Hire and Op Leasing  ,CC64,HIRING TRANSPORT SEN CABS               ,"1,463.00",31/03/2015,R,NVCAR HIRE LTD                
733,CS -Oth Operating Inc & Expend,T/A Vehicle Maintenance etc,Transport-Contract Hire,J01374,Transport Related Expenditure ,Contract Hire and Op Leasing  ,CC64,HIRING TRANSPORT SEN CABS               ,"1,575.00",31/03/2015,R,NVCAR HIRE LTD                
734,CS -Oth Operating Inc & Expend,T/A Vehicle Maintenance etc,Transport-Contract Hire,J01374,Transport Related Expenditure ,Contract Hire and Op Leasing  ,CC64,HIRING TRANSPORT SEN CABS               ,"4,000.00",31/03/2015,R,BARCLAYS ASSET & SALES FINANCE
735,CS -Oth Operating Inc & Expend,T/A Vehicle Maintenance etc,Transport-Contract Hire,J01374,Transport Related Expenditure ,Contract Hire and Op Leasing  ,CC64,HIRING TRANSPORT SEN CABS               ,665,31/03/2015,R,PREMIER CARS                  
736,CS -Oth Operating Inc & Expend,T/A Vehicle Maintenance etc,Transport-Contract Hire,J01374,Transport Related Expenditure ,Contract Hire and Op Leasing  ,CC64,HIRING TRANSPORT SEN CABS               ,"1,920.00",31/03/2015,R,BARCLAYS ASSET & SALES FINANCE
737,CS -Oth Operating Inc & Expend,T/A Vehicle Maintenance etc,Transport-Contract Hire,J01374,Transport Related Expenditure ,Contract Hire and Op Leasing  ,CC64,HIRING TRANSPORT SEN CABS               ,"1,918.00",01/04/2015,R,CHEAM STATION CARS            
738,CS -Oth Operating Inc & Expend,T/A Vehicle Maintenance etc,Transport-Contract Hire,J01374,Transport Related Expenditure ,Contract Hire and Op Leasing  ,CC64,HIRING TRANSPORT SEN CABS               ,"2,720.00",31/03/2015,R,CAPITAL CARS                  
739,CS -Oth Operating Inc & Expend,T/A Vehicle Maintenance etc,Transport-Contract Hire,J01374,Transport Related Expenditure ,Contract Hire and Op Leasing  ,CC64,HIRING TRANSPORT SEN CABS               ,552,31/03/2015,R,CAPITAL CARS                  
740,CS -Oth Operating Inc & Expend,T/A Vehicle Maintenance etc,Transport-Contract Hire,J01374,Transport Related Expenditure ,Contract Hire and Op Leasing  ,CC64,HIRING TRANSPORT SEN CABS               ,650,28/02/2015,R,SILVERBURN FINANCE (UK) LTD   
741,CS -Oth Operating Inc & Expend,T/A Vehicle Maintenance etc,Transport-Contract Hire,J01374,Transport Related Expenditure ,Contract Hire and Op Leasing  ,CC64,HIRING TRANSPORT SEN CABS               ,949,31/03/2015,R,KINGSTON ACCESSIBILITY TRAN LT
742,CS -Oth Operating Inc & Expend,T/A Vehicle Maintenance etc,Transport-Contract Hire,J01374,Transport Related Expenditure ,Contract Hire and Op Leasing  ,CC64,HIRING TRANSPORT SEN CABS               ,"1,880.00",31/03/2015,R,CAPITAL CARS                  
743,CS -Oth Operating Inc & Expend,T/A Vehicle Maintenance etc,Transport-Contract Hire,J01374,Transport Related Expenditure ,Contract Hire and Op Leasing  ,CC64,HIRING TRANSPORT SEN CABS               ,"1,080.00",31/03/2015,R,NVCAR HIRE LTD                
744,CS -Oth Operating Inc & Expend,T/A Vehicle Maintenance etc,Transport-Contract Hire,J01374,Transport Related Expenditure ,Contract Hire and Op Leasing  ,CC64,HIRING TRANSPORT SEN CABS               ,"2,600.00",31/03/2015,R,BARCLAYS ASSET & SALES FINANCE
745,CS -Oth Operating Inc & Expend,T/A Vehicle Maintenance etc,Transport-Contract Hire,J01374,Transport Related Expenditure ,Contract Hire and Op Leasing  ,CC64,HIRING TRANSPORT SEN CABS               ,"1,344.00",31/03/2015,R,BARCLAYS ASSET & SALES FINANCE
746,CS -Oth Operating Inc & Expend,T/A Vehicle Maintenance etc,Transport-Contract Hire,J01374,Transport Related Expenditure ,Contract Hire and Op Leasing  ,CC64,HIRING TRANSPORT SEN CABS               ,"1,216.00",30/03/2015,R,SILVERBURN FINANCE (UK) LTD   
747,CS -Oth Operating Inc & Expend,T/A Vehicle Maintenance etc,Transport-Contract Hire,J01374,Transport Related Expenditure ,Contract Hire and Op Leasing  ,CC64,HIRING TRANSPORT SEN CABS               ,"2,080.00",31/03/2015,R,A STAR TRANSPORT LIMITED      
748,CS -Oth Operating Inc & Expend,T/A Vehicle Maintenance etc,Transport-Contract Hire,J01374,Transport Related Expenditure ,Contract Hire and Op Leasing  ,CC64,HIRING TRANSPORT SEN CABS               ,"1,559.60",31/03/2015,R,KINGSTON ACCESSIBILITY TRAN LT
749,CS -Oth Operating Inc & Expend,T/A Vehicle Maintenance etc,Transport-Contract Hire,J01374,Transport Related Expenditure ,Contract Hire and Op Leasing  ,CC64,HIRING TRANSPORT SEN CABS               ,"1,050.00",31/03/2015,R,NVCAR HIRE LTD                
750,CS -Oth Operating Inc & Expend,T/A Vehicle Maintenance etc,Transport-Contract Hire,J01374,Transport Related Expenditure ,Contract Hire and Op Leasing  ,CC64,HIRING TRANSPORT SEN CABS               ,"3,940.00",25/03/2015,R,BRUNSWICK CARS LTD            
751,CS -Oth Operating Inc & Expend,T/A Vehicle Maintenance etc,Transport-Contract Hire,J01374,Transport Related Expenditure ,Contract Hire and Op Leasing  ,CC64,HIRING TRANSPORT SEN CABS               ,744,31/03/2015,R,NVCAR HIRE LTD                
752,CS -Oth Operating Inc & Expend,T/A Vehicle Maintenance etc,Transport-Contract Hire,J01374,Transport Related Expenditure ,Contract Hire and Op Leasing  ,CC64,HIRING TRANSPORT SEN CABS               ,"1,521.00",31/03/2015,R,A STAR TRANSPORT LIMITED      
753,CS -Oth Operating Inc & Expend,T/A Vehicle Maintenance etc,Transport-Contract Hire,J01374,Transport Related Expenditure ,Contract Hire and Op Leasing  ,CC64,HIRING TRANSPORT SEN CABS               ,"1,400.00",31/03/2015,R,SHERWOOD TRANSPORT GROUP      
754,CS -Oth Operating Inc & Expend,T/A Vehicle Maintenance etc,Transport-Contract Hire,J01374,Transport Related Expenditure ,Contract Hire and Op Leasing  ,CC64,HIRING TRANSPORT SEN CABS               ,"1,872.00",31/03/2015,R,BARCLAYS ASSET & SALES FINANCE
755,CS -Oth Operating Inc & Expend,T/A Vehicle Maintenance etc,Transport-Contract Hire,J01374,Transport Related Expenditure ,Contract Hire and Op Leasing  ,CC67,HIRING TRANSPORT H&SS CAB ADULTS        ,846,31/03/2015,R,CAPITAL CARS                  
756,CS -Oth Operating Inc & Expend,T/A Vehicle Maintenance etc,Transport-Contract Hire,J01374,Transport Related Expenditure ,Contract Hire and Op Leasing  ,CC67,HIRING TRANSPORT H&SS CAB ADULTS        ,"1,599.52",31/03/2015,R,KINGSTON ACCESSIBILITY TRAN LT
757,CS -Oth Operating Inc & Expend,T/A Vehicle Maintenance etc,Transport-Contract Hire,J01374,Transport Related Expenditure ,Contract Hire and Op Leasing  ,CC67,HIRING TRANSPORT H&SS CAB ADULTS        ,"1,720.00",30/03/2015,R,SILVERBURN FINANCE (UK) LTD   
758,CS -Oth Operating Inc & Expend,T/A Vehicle Maintenance etc,Transport-Contract Hire,J01374,Transport Related Expenditure ,Contract Hire and Op Leasing  ,CC67,HIRING TRANSPORT H&SS CAB ADULTS        ,"1,076.00",31/03/2015,R,A STAR TRANSPORT LIMITED      
759,CS -Oth Operating Inc & Expend,T/A Vehicle Maintenance etc,Transport-Contract Hire,J01374,Transport Related Expenditure ,Contract Hire and Op Leasing  ,CC67,HIRING TRANSPORT H&SS CAB ADULTS        ,780,01/04/2015,R,CHEAM STATION CARS            
760,CS -Oth Operating Inc & Expend,T/A Vehicle Maintenance etc,Transport-Contract Hire,J01374,Transport Related Expenditure ,Contract Hire and Op Leasing  ,CC67,HIRING TRANSPORT H&SS CAB ADULTS        ,500,01/04/2015,R,CHEAM STATION CARS            
761,CS -Oth Operating Inc & Expend,T/A Vehicle Maintenance etc,Transport-Contract Hire,J01374,Transport Related Expenditure ,Contract Hire and Op Leasing  ,CC67,HIRING TRANSPORT H&SS CAB ADULTS        ,704,31/03/2015,R,NVCAR HIRE LTD                
762,CS -Oth Operating Inc & Expend,T/A Vehicle Maintenance etc,Transport-Contract Hire,J01374,Transport Related Expenditure ,Contract Hire and Op Leasing  ,CC67,HIRING TRANSPORT H&SS CAB ADULTS        ,756,28/02/2015,R,CAPITAL CARS                  
763,CS -Oth Operating Inc & Expend,T/A Vehicle Maintenance etc,Transport-Contract Hire,J01374,Transport Related Expenditure ,Contract Hire and Op Leasing  ,CC67,HIRING TRANSPORT H&SS CAB ADULTS        ,552.5,31/03/2015,R,GALPINS SERVICE               
764,CS -Oth Operating Inc & Expend,T/A Vehicle Maintenance etc,Transport-Contract Hire,J01374,Transport Related Expenditure ,Contract Hire and Op Leasing  ,CC67,HIRING TRANSPORT H&SS CAB ADULTS        ,"1,320.00",31/03/2015,R,NVCAR HIRE LTD                
765,CS -Oth Operating Inc & Expend,T/A Vehicle Maintenance etc,Transport-Contract Hire,J01374,Transport Related Expenditure ,Contract Hire and Op Leasing  ,CC67,HIRING TRANSPORT H&SS CAB ADULTS        ,684,31/03/2015,R,NVCAR HIRE LTD                
766,CS -Oth Operating Inc & Expend,T/A Vehicle Maintenance etc,Transport-Contract Hire,J01374,Transport Related Expenditure ,Contract Hire and Op Leasing  ,CC67,HIRING TRANSPORT H&SS CAB ADULTS        ,520,31/03/2015,R,PREMIER CARS                  
767,CS -Oth Operating Inc & Expend,T/A Vehicle Maintenance etc,Transport-Contract Hire,J01374,Transport Related Expenditure ,Contract Hire and Op Leasing  ,CC67,HIRING TRANSPORT H&SS CAB ADULTS        ,560,31/03/2015,R,NVCAR HIRE LTD                
768,CS -Oth Operating Inc & Expend,T/A Vehicle Maintenance etc,Transport-Contract Hire,J01374,Transport Related Expenditure ,Contract Hire and Op Leasing  ,CC67,HIRING TRANSPORT H&SS CAB ADULTS        ,500,01/04/2015,R,CHEAM STATION CARS            
769,CS -Oth Operating Inc & Expend,T/A Vehicle Maintenance etc,Transport-Contract Hire,J01374,Transport Related Expenditure ,Contract Hire and Op Leasing  ,CC67,HIRING TRANSPORT H&SS CAB ADULTS        ,"1,840.00",31/03/2015,R,CAPITAL CARS                  
770,CS -Oth Operating Inc & Expend,T/A Vehicle Maintenance etc,Transport-Contract Hire,J01374,Transport Related Expenditure ,Contract Hire and Op Leasing  ,CC67,HIRING TRANSPORT H&SS CAB ADULTS        ,924,31/03/2015,R,A STAR TRANSPORT LIMITED      
771,CS -Oth Operating Inc & Expend,T/A Vehicle Maintenance etc,Transport-Contract Hire,J01374,Transport Related Expenditure ,Contract Hire and Op Leasing  ,CC67,HIRING TRANSPORT H&SS CAB ADULTS        ,"1,180.00",31/03/2015,R,CAPITAL CARS                  
772,CS -Oth Operating Inc & Expend,T/A Vehicle Maintenance etc,Transport-Contract Hire,J01374,Transport Related Expenditure ,Contract Hire and Op Leasing  ,CC67,HIRING TRANSPORT H&SS CAB ADULTS        ,910,26/02/2015,R,SCHOOL TRANSPORT LTD          
773,CS -Oth Operating Inc & Expend,T/A Vehicle Maintenance etc,Transport-Contract Hire,J01374,Transport Related Expenditure ,Contract Hire and Op Leasing  ,CC67,HIRING TRANSPORT H&SS CAB ADULTS        ,980,31/03/2015,R,KINGSTON ACCESSIBILITY TRAN LT
774,CS -Oth Operating Inc & Expend,T/A Vehicle Maintenance etc,Transport-Contract Hire,J01374,Transport Related Expenditure ,Contract Hire and Op Leasing  ,CC67,HIRING TRANSPORT H&SS CAB ADULTS        ,"2,392.00",30/03/2015,R,SILVERBURN FINANCE (UK) LTD   
775,CS -Oth Operating Inc & Expend,T/A Vehicle Maintenance etc,Transport-Contract Hire,J01374,Transport Related Expenditure ,Contract Hire and Op Leasing  ,CC67,HIRING TRANSPORT H&SS CAB ADULTS        ,"1,780.00",31/03/2015,R,SHERWOOD TRANSPORT GROUP      
776,CS -Oth Operating Inc & Expend,T/A Vehicle Maintenance etc,Transport-Contract Hire,J01374,Transport Related Expenditure ,Contract Hire and Op Leasing  ,CC68,HIRING TRANSPORT SEN COLLEGES CABS      ,520,31/03/2015,R,CAPITAL CARS                  
777,CS -Oth Operating Inc & Expend,T/A Vehicle Maintenance etc,Transport-Contract Hire,J01374,Transport Related Expenditure ,Contract Hire and Op Leasing  ,CC68,HIRING TRANSPORT SEN COLLEGES CABS      ,936,30/03/2015,R,SILVERBURN FINANCE (UK) LTD   
778,CS -Oth Operating Inc & Expend,T/A Vehicle Maintenance etc,Transport-Contract Hire,J01374,Transport Related Expenditure ,Contract Hire and Op Leasing  ,CC68,HIRING TRANSPORT SEN COLLEGES CABS      ,"2,631.60",31/03/2015,R,KINGSTON ACCESSIBILITY TRAN LT
779,CS -Oth Operating Inc & Expend,T/A Vehicle Maintenance etc,Transport-Contract Hire,J01374,Transport Related Expenditure ,Contract Hire and Op Leasing  ,CC68,HIRING TRANSPORT SEN COLLEGES CABS      ,"1,056.00",30/03/2015,R,SILVERBURN FINANCE (UK) LTD   
780,CS -Oth Operating Inc & Expend,T/A Vehicle Maintenance etc,Transport-Contract Hire,J01374,Transport Related Expenditure ,Contract Hire and Op Leasing  ,CC68,HIRING TRANSPORT SEN COLLEGES CABS      ,555,31/03/2015,R,NVCAR HIRE LTD                
781,CS -Oth Operating Inc & Expend,T/A Vehicle Maintenance etc,Transport-Contract Hire,J01374,Transport Related Expenditure ,Contract Hire and Op Leasing  ,CC68,HIRING TRANSPORT SEN COLLEGES CABS      ,800,31/03/2015,R,NVCAR HIRE LTD                
782,CS -Oth Operating Inc & Expend,T/A Vehicle Maintenance etc,Transport-Workshop,J01376,Transport Related Expenditure ,Direct Transport Costs        ,CA04,R & M of Veh - General                  ,"1,161.01",16/04/2015,R,AUTOMOBILE ASSOC.DEVELOP. LTD 
783,CS -Oth Operating Inc & Expend,T/A Vehicle Maintenance etc,Transport-Workshop,J01376,Transport Related Expenditure ,Contract Hire and Op Leasing  ,CC60,Vehicle Hire for LB Sutton              ,"3,480.00",31/03/2015,R,BARCLAYS ASSET & SALES FINANCE
784,CS -Oth Operating Inc & Expend,T/A Vehicle Maintenance etc,Transport-Workshop,J01376,Transport Related Expenditure ,Contract Hire and Op Leasing  ,CC60,Vehicle Hire for LB Sutton              ,"3,040.00",31/03/2015,R,CAPITAL CARS                  
785,CS -Oth Operating Inc & Expend,T/A Vehicle Maintenance etc,Transport-Workshop,J01376,Transport Related Expenditure ,Contract Hire and Op Leasing  ,CC60,Vehicle Hire for LB Sutton              ,960,24/03/2015,R,SCHOOL TRANSPORT LTD          
786,CS -Oth Operating Inc & Expend,T/A Vehicle Maintenance etc,Transport-Workshop,J01376,Transport Related Expenditure ,Contract Hire and Op Leasing  ,CC60,Vehicle Hire for LB Sutton              ,"2,280.00",24/03/2015,R,SCHOOL TRANSPORT LTD          
787,CS -Oth Operating Inc & Expend,T/A Vehicle Maintenance etc,Transport-Workshop,J01376,Transport Related Expenditure ,Contract Hire and Op Leasing  ,CC60,Vehicle Hire for LB Sutton              ,706.67,30/03/2015,R,SILVERBURN FINANCE (UK) LTD   
788,CS -Oth Operating Inc & Expend,T/A Vehicle Maintenance etc,Transport-Workshop,J01376,Transport Related Expenditure ,Contract Hire and Op Leasing  ,CC60,Vehicle Hire for LB Sutton              ,"5,208.00",30/03/2015,R,BARCLAYS ASSET & SALES FINANCE
789,CS -Oth Operating Inc & Expend,T/A Vehicle Maintenance etc,Transport-Workshop,J01376,Transport Related Expenditure ,Contract Hire and Op Leasing  ,CC65,Vehicle Hire for Education              ,"1,938.00",31/03/2015,R,BARCLAYS ASSET & SALES FINANCE
790,CS -Oth Operating Inc & Expend,T/A Vehicle Maintenance etc,Transport-Workshop,J01376,Transport Related Expenditure ,Contract Hire and Op Leasing  ,CC65,Vehicle Hire for Education              ,"2,380.00",31/03/2015,R,BARCLAYS ASSET & SALES FINANCE
791,CS -Oth Operating Inc & Expend,T/A Vehicle Maintenance etc,Transport-Workshop,J01376,Transport Related Expenditure ,Contract Hire and Op Leasing  ,CC65,Vehicle Hire for Education              ,"1,848.00",31/03/2015,R,BARCLAYS ASSET & SALES FINANCE
792,CS -Oth Operating Inc & Expend,T/A Vehicle Maintenance etc,Transport-Workshop,J01376,Transport Related Expenditure ,Contract Hire and Op Leasing  ,CC65,Vehicle Hire for Education              ,610,23/04/2015,R,G T INTERNATIONAL             
793,CS -Oth Operating Inc & Expend,T/A Vehicle Maintenance etc,Transport-Workshop,J01376,Supplies & Services           ,Equip Furniture/Materials     ,DA09,Equip-Purchases                         ,"4,995.00",09/04/2015,R,AQUAJET CLEANING EQUIPMENT LTD
794,CS -Oth Operating Inc & Expend,T/A Vehicle Maintenance etc,Transport-Workshop,J01376,Supplies & Services           ,Comms and Computing           ,DG08,Computer Hardware                       ,599,14/04/2015,R,CE-TEK CONTROLS & ENC.TECHNIC 
795,CS -Oth Operating Inc & Expend,T/A Vehicle Maintenance etc,Vehicle Workshops,J01378,Employees                     ,Direct Employee Expenses      ,AA17,Agency Staff & Casual Paymts            ,962.5,31/03/2015,R,REDACTED     
796,CS -Oth Operating Inc & Expend,T/A Vehicle Maintenance etc,Vehicle Workshops,J01378,Employees                     ,Direct Employee Expenses      ,AA17,Agency Staff & Casual Paymts            ,"1,260.00",08/04/2015,R,REDACTED     
797,CS -Oth Operating Inc & Expend,T/A Vehicle Maintenance etc,Vehicle Workshops,J01378,Transport Related Expenditure ,Direct Transport Costs        ,CA02,Tyres                                   ,745,23/04/2015,R,MORDEN TYRE SERVICES LTD      
798,CS -Oth Operating Inc & Expend,T/A Vehicle Maintenance etc,Vehicle Workshops,J01378,Transport Related Expenditure ,Direct Transport Costs        ,CA02,Tyres                                   ,660,07/04/2015,R,MORDEN TYRE SERVICES LTD      
799,CS -Oth Operating Inc & Expend,T/A Vehicle Maintenance etc,Vehicle Workshops,J01378,Transport Related Expenditure ,Direct Transport Costs        ,CA04,R & M of Veh - General                  ,"2,329.22",14/04/2015,R,FREIGHT TRANSPORT ASSOCIATION 
800,CS -Oth Operating Inc & Expend,T/A Vehicle Maintenance etc,Vehicle Workshops,J01378,Transport Related Expenditure ,Direct Transport Costs        ,CA55,Specialist Maint. (Off Site)            ,639.42,27/03/2015,R,KINGSLEY COMM COMPONENTS LTD  
801,CS -Oth Operating Inc & Expend,T/A Vehicle Maintenance etc,Vehicle Workshops,J01378,Transport Related Expenditure ,Direct Transport Costs        ,CA55,Specialist Maint. (Off Site)            ,597.41,26/03/2015,R,KINGSLEY COMM COMPONENTS LTD  
802,CS -Oth Operating Inc & Expend,T/A Vehicle Maintenance etc,Vehicle Workshops,J01378,Transport Related Expenditure ,Direct Transport Costs        ,CA55,Specialist Maint. (Off Site)            ,596.41,25/03/2015,R,KINGSLEY COMM COMPONENTS LTD  
803,CS -Oth Operating Inc & Expend,T/A Vehicle Maintenance etc,Vehicle Workshops,J01378,Transport Related Expenditure ,Direct Transport Costs        ,CA55,Specialist Maint. (Off Site)            ,656.42,27/03/2015,R,KINGSLEY COMM COMPONENTS LTD  
804,CS -Oth Operating Inc & Expend,T/A Vehicle Maintenance etc,Vehicle Workshops,J01378,Transport Related Expenditure ,Direct Transport Costs        ,CA55,Specialist Maint. (Off Site)            ,656.42,27/03/2015,R,KINGSLEY COMM COMPONENTS LTD  
805,CS -Oth Operating Inc & Expend,T/A Vehicle Maintenance etc,Vehicle Workshops,J01378,Transport Related Expenditure ,Direct Transport Costs        ,CA55,Specialist Maint. (Off Site)            ,"4,260.75",26/03/2015,R,REDACTED     
806,CS -Oth Operating Inc & Expend,T/A Vehicle Maintenance etc,Vehicle Workshops,J01378,Transport Related Expenditure ,Direct Transport Costs        ,CA55,Specialist Maint. (Off Site)            ,"1,058.32",18/03/2015,R,MITCHELL POWER SYSTEMS        
807,CS -Oth Operating Inc & Expend,T/A Vehicle Maintenance etc,Vehicle Workshops,J01378,Transport Related Expenditure ,Direct Transport Costs        ,CA55,Specialist Maint. (Off Site)            ,623.99,19/03/2015,R,BYRON GARAGES                 
808,CS -Oth Operating Inc & Expend,T/A Vehicle Maintenance etc,Vehicle Workshops,J01378,Transport Related Expenditure ,Direct Transport Costs        ,CA55,Specialist Maint. (Off Site)            ,590.71,25/03/2015,R,KINGSLEY COMM COMPONENTS LTD  
809,CS -Oth Operating Inc & Expend,T/A Vehicle Maintenance etc,Vehicle Workshops,J01378,Transport Related Expenditure ,Direct Transport Costs        ,CA56,Specialist Maint. (On Site)             ,826.2,29/03/2015,R,REDACTED     
810,CS -Oth Operating Inc & Expend,T/A Vehicle Maintenance etc,Vehicle Workshops,J01378,Transport Related Expenditure ,Direct Transport Costs        ,CA56,Specialist Maint. (On Site)             ,696.6,15/04/2015,R,R.J.H.WELDING                 
811,CS -Oth Operating Inc & Expend,T/A Vehicle Maintenance etc,Vehicle Workshops,J01378,Transport Related Expenditure ,Direct Transport Costs        ,CA56,Specialist Maint. (On Site)             ,811.6,15/04/2015,R,R.J.H.WELDING                 
812,CS -Oth Operating Inc & Expend,T/A Vehicle Maintenance etc,Vehicle Workshops,J01378,Transport Related Expenditure ,Direct Transport Costs        ,CA56,Specialist Maint. (On Site)             ,644.1,15/04/2015,R,R.J.H.WELDING                 
813,CS -Oth Operating Inc & Expend,T/A Vehicle Maintenance etc,Vehicle Workshops,J01378,Transport Related Expenditure ,Direct Transport Costs        ,CA56,Specialist Maint. (On Site)             ,941.25,15/04/2015,R,R.J.H.WELDING                 
814,CS -Oth Operating Inc & Expend,T/A Vehicle Maintenance etc,Vehicle Workshops,J01378,Transport Related Expenditure ,Direct Transport Costs        ,CA56,Specialist Maint. (On Site)             ,608.5,14/04/2015,R,GVS HIRE LTD                  
815,CS -Oth Operating Inc & Expend,T/A Vehicle Maintenance etc,Vehicle Workshops,J01378,Transport Related Expenditure ,Direct Transport Costs        ,CA56,Specialist Maint. (On Site)             ,597.45,15/04/2015,R,R.J.H.WELDING                 
816,CS -Oth Operating Inc & Expend,T/A Vehicle Maintenance etc,Vehicle Workshops,J01378,Transport Related Expenditure ,Direct Transport Costs        ,CA56,Specialist Maint. (On Site)             ,596.25,15/04/2015,R,R.J.H.WELDING                 
817,CS -Oth Operating Inc & Expend,T/A Vehicle Maintenance etc,Vehicle Workshops,J01378,Transport Related Expenditure ,Direct Transport Costs        ,CA56,Specialist Maint. (On Site)             ,511.54,09/04/2015,R,GEESINK NORBA                 
818,CS -Oth Operating Inc & Expend,T/A Vehicle Maintenance etc,Vehicle Workshops,J01378,Transport Related Expenditure ,Direct Transport Costs        ,CA72,Vehicle Parts                           ,570.88,04/04/2015,R,REDACTED     
819,CS -Oth Operating Inc & Expend,T/A Vehicle Maintenance etc,Vehicle Workshops,J01378,Transport Related Expenditure ,Direct Transport Costs        ,CA72,Vehicle Parts                           ,"1,065.09",13/04/2015,R,DENNIS EAGLE LIMITED          
820,CS -Oth Operating Inc & Expend,T/A Vehicle Maintenance etc,Vehicle Workshops,J01378,Transport Related Expenditure ,Direct Transport Costs        ,CA72,Vehicle Parts                           ,977.18,17/04/2015,R,REDACTED     
821,CS -Oth Operating Inc & Expend,T/A Vehicle Maintenance etc,Vehicle Workshops,J01378,Transport Related Expenditure ,Direct Transport Costs        ,CA72,Vehicle Parts                           ,616.23,18/04/2015,R,HTC CROYDON                   
822,CS -Oth Operating Inc & Expend,T/A Vehicle Maintenance etc,Vehicle Workshops,J01378,Transport Related Expenditure ,Direct Transport Costs        ,CA72,Vehicle Parts                           ,577.85,11/04/2015,R,CITROEN LONDON WEST           
823,CS -Oth Operating Inc & Expend,T/A Vehicle Maintenance etc,Vehicle Workshops,J01378,Transport Related Expenditure ,Direct Transport Costs        ,CA72,Vehicle Parts                           ,"1,096.96",17/04/2015,R,DENNIS EAGLE LIMITED          
824,CS -Oth Operating Inc & Expend,T/A Vehicle Maintenance etc,Vehicle Workshops,J01378,Transport Related Expenditure ,Direct Transport Costs        ,CA72,Vehicle Parts                           ,505.92,09/04/2015,R,HTC CROYDON                   
825,CS -Oth Operating Inc & Expend,T/A Vehicle Maintenance etc,Vehicle Workshops,J01378,Transport Related Expenditure ,Direct Transport Costs        ,CA72,Vehicle Parts                           ,529.15,30/03/2015,R,GEESINK NORBA                 
826,CS -Oth Operating Inc & Expend,T/A Vehicle Maintenance etc,Vehicle Workshops,J01378,Transport Related Expenditure ,Direct Transport Costs        ,CA73,Vehicle Consumables                     ,638.33,30/03/2015,R,COMMERCIAL & PLANT LTD        
827,CS -Oth Operating Inc & Expend,T/A Vehicle Maintenance etc,Vehicle Workshops,J01378,Supplies & Services           ,Equip Furniture/Materials     ,DA01,Equipment - R & M                       ,771.64,01/04/2015,R,SUNLIGHT SERVICE GROUP LTD    
828,Cultural Env Reg&Plan Services,Mgt & Support (Env),Estates Mgt,J01420,Supplies & Services           ,Services                      ,DF03,CONSULTANTS                             ,690.86,27/03/2015,R,VALUATION OFFICE AGENCY       
829,Cultural Env Reg&Plan Services,Mgt & Support (Env),Estates Mgt,J01420,Supplies & Services           ,Services                      ,DF50,Estate Management                       ,825,13/03/2015,R,QUINTON SCOTT                 
830,Cultural Env Reg&Plan Services,Mgt & Support (Env),Estates Mgt,J01420,Supplies & Services           ,Grants and Subscriptions      ,DJ04,SUBSCRIPTION                            ,800,08/04/2015,R,RICS BUSINESS SERVICE LTD     
831,CS -Oth Operating Inc & Expend,Extraordinary Items & PY Adj.,Pollards Hill Comm Cntre,J08074,Premises Related Expenditure  ,RepairsAlterations&MtceOfBldgs,BA03,DDM - Mechanical                        ,602.28,25/03/2015,R,EUROPA NATIONWIDE TECH.SER.LTD
832,Childrens & Education Services,Statutory & Regulatory Duties,Senior Mngt & Support Services,K01005,Supplies & Services           ,Services                      ,DF11,Counsel's Fees                          ,790,06/02/2015,R,REDACTED     
833,Childrens & Education Services,Statutory & Regulatory Duties,Senior Mngt & Support Services,K01005,Supplies & Services           ,Services                      ,DF11,Counsel's Fees                          ,"3,075.00",25/03/2015,R,REDACTED     
834,Childrens & Education Services,Statutory & Regulatory Duties,Senior Mngt & Support Services,K01005,Supplies & Services           ,Services                      ,DF11,Counsel's Fees                          ,"3,000.00",25/03/2015,R,REDACTED     
835,Childrens & Education Services,Statutory & Regulatory Duties,Senior Mngt & Support Services,K01005,Supplies & Services           ,Services                      ,DF11,Counsel's Fees                          ,"10,850.00",02/01/2015,R,REDACTED     
836,Childrens & Education Services,Statutory & Regulatory Duties,Senior Mngt & Support Services,K01005,Supplies & Services           ,Services                      ,DF11,Counsel's Fees                          ,600,25/03/2015,R,REDACTED     
837,Childrens & Education Services,Statutory & Regulatory Duties,Senior Mngt & Support Services,K01005,Supplies & Services           ,Services                      ,DF11,Counsel's Fees                          ,555,11/03/2015,R,REDACTED     
838,Childrens & Education Services,Statutory & Regulatory Duties,Senior Mngt & Support Services,K01005,Supplies & Services           ,Services                      ,DF95,Services from Provider                  ,"2,448.00",30/03/2015,R,WARD HADAWAY                  
839,Childrens & Education Services,Statutory & Regulatory Duties,Central Administration,K01008,Supplies & Services           ,Grants and Subscriptions      ,DJ04,Subscriptions                           ,"1,567.50",27/03/2015,R,ADCS                          
840,Childrens & Education Services,Statutory & Regulatory Duties,Schools IT Support,K02008,Supplies & Services           ,Comms and Computing           ,DG50,Other IT Expenditure                    ,"1,200.00",13/04/2015,R,CAPITA BUSINESS SERVICES LTD  
841,Childrens & Education Services,Statutory & Regulatory Duties,Research and Statistics,K03016,Supplies & Services           ,Comms and Computing           ,DG07,Computer Software                       ,"4,910.08",02/04/2015,R,NCER CIC                      
842,Childrens & Education Services,Asset Management,PFI Unitary Charges,K03023,Third Party Payments          ,Private Contractors           ,EH02,Miscellaneous Hired Services            ,"3,706.17",10/03/2015,R,NEWSCHOOLS (MERTON) LIMITED   
843,Childrens & Education Services,Asset Management,PFI Unitary Charges,K03023,Third Party Payments          ,Private Contractors           ,EH02,Miscellaneous Hired Services            ,"1,481.29",09/04/2015,R,NEWSCHOOLS (MERTON) LIMITED   
844,Childrens & Education Services,Asset Management,PFI Unitary Charges,K03023,Third Party Payments          ,Private Contractors           ,EH02,Miscellaneous Hired Services            ,"18,060.39",09/04/2015,R,NEWSCHOOLS (MERTON) LIMITED   
845,Childrens & Education Services,Asset Management,PFI Unitary Charges,K03023,Third Party Payments          ,Private Contractors           ,EH02,Miscellaneous Hired Services            ,"3,442.88",09/04/2015,R,NEWSCHOOLS (MERTON) LIMITED   
846,Childrens & Education Services,Asset Management,PFI Unitary Charges,K03023,Third Party Payments          ,Private Contractors           ,EH02,Miscellaneous Hired Services            ,684.82,31/03/2015,R,NEWSCHOOLS (MERTON) LIMITED   
847,Childrens & Education Services,Asset Management,PFI Unitary Charges,K03023,Third Party Payments          ,Private Contractors           ,EH02,Miscellaneous Hired Services            ,"1,562.99",10/03/2015,R,NEWSCHOOLS (MERTON) LIMITED   
848,Childrens & Education Services,Asset Management,PFI Unitary Charges,K03023,Third Party Payments          ,Private Contractors           ,EH02,Miscellaneous Hired Services            ,715,31/03/2015,R,NEWSCHOOLS (MERTON) LIMITED   
849,Childrens & Education Services,Asset Management,PFI Unitary Charges,K03023,Third Party Payments          ,Private Contractors           ,EH02,Miscellaneous Hired Services            ,"6,645.00",27/03/2015,R,ICL SOLUTIONS                 
850,Childrens & Education Services,Education Psychology Service,Education Psychology.,K04018,Employees                     ,Direct Employee Expenses      ,AA17,Agency Staff & Casual Paymts            ,937.5,30/03/2015,R,REDACTED     
851,Childrens & Education Services,Education Psychology Service,Education Psychology.,K04018,Employees                     ,Direct Employee Expenses      ,AA17,Agency Staff & Casual Paymts            ,"1,200.00",27/03/2015,R,REDACTED     
852,Childrens & Education Services,Education Psychology Service,Education Psychology.,K04018,Employees                     ,Direct Employee Expenses      ,AA17,Agency Staff & Casual Paymts            ,"1,400.00",31/03/2015,R,REDACTED
853,Childrens & Education Services,Education Psychology Service,Education Psychology.,K04018,Employees                     ,Direct Employee Expenses      ,AA17,Agency Staff & Casual Paymts            ,"2,100.00",31/03/2015,R,REDACTED
854,Childrens & Education Services,Education Psychology Service,Education Psychology.,K04018,Employees                     ,Direct Employee Expenses      ,AA17,Agency Staff & Casual Paymts            ,800,27/03/2015,R,REDACTED
855,Childrens & Education Services,Education Psychology Service,Education Psychology.,K04018,Employees                     ,Direct Employee Expenses      ,AA17,Agency Staff & Casual Paymts            ,800,31/03/2015,R,REDACTED     
856,Childrens & Education Services,Education Psychology Service,Education Psychology.,K04018,Employees                     ,Direct Employee Expenses      ,AA17,Agency Staff & Casual Paymts            ,600,10/04/2015,R,REDACTED     
857,Childrens & Education Services,Education Psychology Service,Education Psychology.,K04018,Supplies & Services           ,Equip Furniture/Materials     ,DA09,Equip-Purchases                         ,568,30/03/2015,R,PEARSON EDUCATION LTD.        
858,Childrens & Education Services,Support for SEN Pupils,Statementing-Transport,K04023,Transport Related Expenditure ,Public Transport              ,CD50,Home Sch/Coll Trans(Trav Exps)          ,792,01/04/2015,R,MASTER TAXIS                  
859,Childrens & Education Services,Support for SEN Pupils,Statementing-Transport,K04023,Transport Related Expenditure ,Public Transport              ,CD50,Home Sch/Coll Trans(Trav Exps)          ,"1,200.00",05/04/2015,R,REDACTED     
860,Childrens & Education Services,Oth U5s Provn Not Prim or Spec,Provider Support,K05078,Supplies & Services           ,Comms and Computing           ,DG07,Computer Software                       ,570.66,30/03/2015,R,MARQUEST LIMITED              
861,Childrens & Education Services,Oth U5s Provn Not Prim or Spec,Provider Support,K05078,Supplies & Services           ,Comms and Computing           ,DG07,Computer Software                       ,"1,344.42",30/03/2015,R,MARQUEST LIMITED              
862,Childrens & Education Services,Oth U5s Provn Not Prim or Spec,Provider Support,K05078,Supplies & Services           ,Comms and Computing           ,DG07,Computer Software                       ,"1,344.42",30/03/2015,R,MARQUEST LIMITED              
863,Childrens & Education Services,Oth U5s Provn Not Prim or Spec,Provider Support,K05078,Supplies & Services           ,Comms and Computing           ,DG08,Computer Hardware                       ,"1,669.50",28/04/2015,R,SCALABLE COMMUNICATIONS PLC   
864,Childrens & Education Services,Oth U5s Provn Not Prim or Spec,Provider Support,K05078,Supplies & Services           ,Comms and Computing           ,DG08,Computer Hardware                       ,"3,450.50",28/04/2015,R,SCALABLE COMMUNICATIONS PLC   
865,Childrens & Education Services,Pupil Referral Units,Expanded Pupil Referral Unit,K05099,Third Party Payments          ,Private Contractors           ,EH01,Miscellaneous Agency Services           ,"4,879.00",30/03/2015,R,SW LONDON ST GEORGES NHS TRUST
866,Childrens & Education Services,GENERATED ACCOUNT,Children's centres,K05137,Supplies & Services           ,Comms and Computing           ,DG02,Software Licences                       ,"12,738.66",04/03/2015,R,CAPITA BUSINESS SERVICES LTD  
867,Childrens & Education Services,GENERATED ACCOUNT,Children's centres,K05137,Supplies & Services           ,Comms and Computing           ,DG05,Telephones - Gen-Creditors              ,"2,880.00",01/04/2015,R,VIRGIN MEDIA PAYMENTS LTD     
868,Childrens & Education Services,GENERATED ACCOUNT,Children's centres,K05137,Supplies & Services           ,Comms and Computing           ,DG05,Telephones - Gen-Creditors              ,"2,719.92",04/03/2013,R,VIRGIN MEDIA PAYMENTS LTD     
869,Childrens & Education Services,GENERATED ACCOUNT,Children's centres,K05137,Supplies & Services           ,Comms and Computing           ,DG05,Telephones - Gen-Creditors              ,"2,719.92",04/03/2013,R,VIRGIN MEDIA PAYMENTS LTD     
870,Childrens & Education Services,GENERATED ACCOUNT,Children's centres,K05137,Supplies & Services           ,Comms and Computing           ,DG05,Telephones - Gen-Creditors              ,"2,719.20",04/03/2013,R,VIRGIN MEDIA PAYMENTS LTD     
871,Childrens & Education Services,GENERATED ACCOUNT,Children's centres,K05137,Supplies & Services           ,Comms and Computing           ,DG05,Telephones - Gen-Creditors              ,"2,719.20",04/03/2013,R,VIRGIN MEDIA PAYMENTS LTD     
872,Childrens & Education Services,GENERATED ACCOUNT,Children's centres,K05137,Supplies & Services           ,Comms and Computing           ,DG05,Telephones - Gen-Creditors              ,"2,719.20",04/03/2013,R,VIRGIN MEDIA PAYMENTS LTD     
873,Childrens & Education Services,GENERATED ACCOUNT,Children's centres,K05137,Supplies & Services           ,Comms and Computing           ,DG05,Telephones - Gen-Creditors              ,"2,719.92",04/03/2013,R,VIRGIN MEDIA PAYMENTS LTD     
874,Childrens & Education Services,GENERATED ACCOUNT,Children's centres,K05137,Supplies & Services           ,Comms and Computing           ,DG05,Telephones - Gen-Creditors              ,"2,719.92",04/03/2013,R,VIRGIN MEDIA PAYMENTS LTD     
875,Childrens & Education Services,GENERATED ACCOUNT,Children's centres,K05137,Supplies & Services           ,Comms and Computing           ,DG05,Telephones - Gen-Creditors              ,"2,719.20",04/03/2013,R,VIRGIN MEDIA PAYMENTS LTD     
876,Childrens & Education Services,GENERATED ACCOUNT,Children's centres,K05137,Supplies & Services           ,Comms and Computing           ,DG05,Telephones - Gen-Creditors              ,"2,719.20",04/03/2013,R,VIRGIN MEDIA PAYMENTS LTD     
877,Childrens & Education Services,GENERATED ACCOUNT,Children's centres,K05137,Supplies & Services           ,Comms and Computing           ,DG05,Telephones - Gen-Creditors              ,"2,719.20",04/03/2013,R,VIRGIN MEDIA PAYMENTS LTD     
878,Childrens & Education Services,GENERATED ACCOUNT,Children's centres,K05137,Supplies & Services           ,Comms and Computing           ,DG05,Telephones - Gen-Creditors              ,"2,719.20",04/03/2013,R,VIRGIN MEDIA PAYMENTS LTD     
879,Childrens & Education Services,GENERATED ACCOUNT,Children's centres,K05137,Supplies & Services           ,Comms and Computing           ,DG05,Telephones - Gen-Creditors              ,"2,719.20",04/03/2013,R,VIRGIN MEDIA PAYMENTS LTD     
880,Childrens & Education Services,GENERATED ACCOUNT,Children's centres,K05137,Supplies & Services           ,Comms and Computing           ,DG05,Telephones - Gen-Creditors              ,"2,719.20",04/03/2013,R,VIRGIN MEDIA PAYMENTS LTD     
881,Childrens & Education Services,GENERATED ACCOUNT,Children's centres,K05137,Supplies & Services           ,Comms and Computing           ,DG05,Telephones - Gen-Creditors              ,"2,719.20",04/03/2013,R,VIRGIN MEDIA PAYMENTS LTD     
882,Childrens & Education Services,GENERATED ACCOUNT,Children's centres,K05137,Supplies & Services           ,Comms and Computing           ,DG05,Telephones - Gen-Creditors              ,"2,719.20",04/03/2013,R,VIRGIN MEDIA PAYMENTS LTD     
883,Childrens & Education Services,GENERATED ACCOUNT,Children's centres,K05137,Supplies & Services           ,Comms and Computing           ,DG05,Telephones - Gen-Creditors              ,"2,719.20",04/03/2013,R,VIRGIN MEDIA PAYMENTS LTD     
884,Childrens & Education Services,GENERATED ACCOUNT,Children's centres,K05137,Supplies & Services           ,Comms and Computing           ,DG05,Telephones - Gen-Creditors              ,"2,719.92",04/03/2013,R,VIRGIN MEDIA PAYMENTS LTD     
885,Childrens & Education Services,GENERATED ACCOUNT,Children's centres,K05137,Supplies & Services           ,Comms and Computing           ,DG05,Telephones - Gen-Creditors              ,"2,719.92",04/03/2013,R,VIRGIN MEDIA PAYMENTS LTD     
886,Childrens & Education Services,GENERATED ACCOUNT,Children's centres,K05137,Supplies & Services           ,Comms and Computing           ,DG05,Telephones - Gen-Creditors              ,"2,719.92",04/03/2013,R,VIRGIN MEDIA PAYMENTS LTD     
887,Childrens & Education Services,GENERATED ACCOUNT,Children's centres,K05137,Supplies & Services           ,Comms and Computing           ,DG05,Telephones - Gen-Creditors              ,"2,719.92",04/03/2013,R,VIRGIN MEDIA PAYMENTS LTD     
888,Childrens & Education Services,Nursery schools,GSSG Central Administration,K05400,Supplies & Services           ,Services                      ,DF03,Consultants                             ,"3,150.00",15/10/2014,R,CHRIS LEIGH MANAGEMENT LTD    
889,Childrens & Education Services,GENERATED ACCOUNT,Morden MAT,K05413,Premises Related Expenditure  ,RepairsAlterations&MtceOfBldgs,BA05,DDM - Electrical                        ,"13,885.30",25/03/2015,R,EUROPA NATIONWIDE TECH.SER.LTD
890,Childrens & Education Services,GENERATED ACCOUNT,Morden MAT,K05413,Premises Related Expenditure  ,Cleaning and Domestic Supplies,BH06,Clinical Waste                          ,660,14/04/2015,R,PHS GROUP PLC                 
891,Childrens & Education Services,Nursery schools,Lavender CC Non Childcare,K05415,Supplies & Services           ,Services                      ,DF30,Activities Programme                    ,600,17/04/2015,R,ACTUAL FIRST AID LTD          
892,Childrens & Education Services,Nursery schools,E.Years-Intergenerational Cntr,K05416,Premises Related Expenditure  ,RepairsAlterations&MtceOfBldgs,BA01,DDM - General Building                  ,"1,713.55",06/03/2015,R,SALTASH ENTERPRISES LTD       
893,Childrens & Education Services,Nursery schools,E.Years-Intergenerational Cntr,K05416,Premises Related Expenditure  ,RepairsAlterations&MtceOfBldgs,BA06,Repairs & Maintenance General           ,"3,200.00",18/03/2015,R,ICAX LTD                      
894,Childrens & Education Services,Nursery schools,E.Years-Intergenerational Cntr,K05416,Premises Related Expenditure  ,RepairsAlterations&MtceOfBldgs,BA06,Repairs & Maintenance General           ,512.23,07/04/2015,R,STORMSAVER LTD                
895,Childrens & Education Services,Nursery schools,E.Years-Intergenerational Cntr,K05416,Premises Related Expenditure  ,Cleaning and Domestic Supplies,BH06,Clinical Waste                          ,"1,063.44",10/04/2015,R,INITIAL WASHROOM SOLUTIONS    
896,Childrens & Education Services,Nursery schools,EY-Support Separating Parents,K05417,Supplies & Services           ,Services                      ,DF30,Activities Programme                    ,925,24/04/2015,R,THE JAYNE STEWART SCH OF DANCE
897,Childrens & Education Services,Vocational - Adult Education,AE-Neighbourhood Learning,K06043,Supplies & Services           ,Equip Furniture/Materials     ,DA04,Materials                               ,"1,500.00",19/01/2015,R,THE READER ORGANISATION       
898,Childrens & Education Services,Vocational - Adult Education,AE-Neighbourhood Learning,K06043,Supplies & Services           ,Services                      ,DF07,Bought in Teaching Services             ,909.26,31/03/2015,R,REDACTED     
899,Childrens & Education Services,Vocational - Adult Education,AE-Neighbourhood Learning,K06043,Supplies & Services           ,Services                      ,DF09,Miscellaneous Fees                      ,600,27/03/2015,R,REDACTED     
900,Childrens & Education Services,Vocational - Adult Education,AE-Neighbourhood Learning,K06043,Supplies & Services           ,Services                      ,DF27,Examination Fees                        ,572,10/03/2015,R,CITY & GUILDS                 
901,Childrens & Education Services,Vocational - Adult Education,AE-Neighbourhood Learning,K06043,Supplies & Services           ,Services                      ,DF30,Activities Programme                    ,757.75,26/03/2015,R,ST MARKS FAMILY CENTRE        
902,Childrens & Education Services,Vocational - Adult Education,AE-Neighbourhood Learning,K06043,Supplies & Services           ,Services                      ,DF30,Activities Programme                    ,661.25,26/03/2015,R,ST MARKS FAMILY CENTRE        
903,Childrens & Education Services,Vocational - Adult Education,AE-Neighbourhood Learning,K06043,Supplies & Services           ,Services                      ,DF30,Activities Programme                    ,631.25,26/03/2015,R,ST MARKS FAMILY CENTRE        
904,Childrens & Education Services,Vocational - Adult Education,AE-additional learner SF,K06046,Supplies & Services           ,Services                      ,DF03,Consultants                             ,"7,909.00",13/04/2015,R,TCMD LTD                      
905,Childrens & Education Services,Vocational - Adult Education,AE-Adult Education Main,K06049,Premises Related Expenditure  ,Energy Costs                  ,BB02,Electricity                             ,"-1,801.06",01/04/2015,R,SCOTTISHPOWER                 
906,Childrens & Education Services,Vocational - Adult Education,AE-Adult Education Main,K06049,Premises Related Expenditure  ,Energy Costs                  ,BB02,Electricity                             ,628.16,15/04/2015,R,SCOTTISHPOWER                 
907,Childrens & Education Services,Vocational - Adult Education,AE-Adult Education Main,K06049,Premises Related Expenditure  ,Energy Costs                  ,BB02,Electricity                             ,"1,645.92",15/04/2015,R,SCOTTISHPOWER                 
908,Childrens & Education Services,Vocational - Adult Education,AE-Adult Education Main,K06049,Premises Related Expenditure  ,Energy Costs                  ,BB02,Electricity                             ,"1,801.06",01/04/2015,R,SCOTTISHPOWER                 
909,Childrens & Education Services,Vocational - Adult Education,AE-Adult Education Main,K06049,Premises Related Expenditure  ,Energy Costs                  ,BB03,Gas (incl. Butane)                      ,"1,887.57",07/04/2015,R,GAZPROM MARKETING&TRADING LTD 
910,Childrens & Education Services,Vocational - Adult Education,AE-Adult Education Main,K06049,Premises Related Expenditure  ,Cleaning and Domestic Supplies,BH03,Cleaning Services                       ,"2,747.90",30/03/2015,R,JULIUS RUTHERFOORD & CO LTD   
911,Childrens & Education Services,Vocational - Adult Education,AE-Adult Education Main,K06049,Supplies & Services           ,Services                      ,DF27,Examination Fees                        ,"1,701.00",02/04/2015,R,CACHE                         
912,Childrens & Education Services,Vocational - Adult Education,AE-Adult Education Main,K06049,Supplies & Services           ,Services                      ,DF27,Examination Fees                        ,"2,379.30",13/02/2015,R,AQA                           
913,Childrens & Education Services,Vocational - Adult Education,AE-Adult Education Main,K06049,Supplies & Services           ,Services                      ,DF30,Activities Programme                    ,"2,030.10",16/04/2015,R,SOCIAL WORKS LTD              
914,Childrens & Education Services,Vocational - Adult Education,AE-Learner Support Fund-Access,K06050,Supplies & Services           ,Services                      ,DF09,Miscellaneous Fees                      ,"1,358.00",09/04/2015,R,KING FISHERS                  
915,Childrens & Education Services,Vocational - Adult Education,MAE- CATERING SERVICES 2011>,K06052,Supplies & Services           ,Catering                      ,DB01,Contract Catering                       ,520,17/04/2015,R,INVESTEC ASSET FINANCE PLC    
916,Childrens & Education Services,Youth Centres (Residential),Duke of Edinburgh Awrds,K06055,Premises Related Expenditure  ,Rents                         ,BC03,Room/venue rental hire                  ,"1,400.00",26/03/2015,R,YMCA LONDON SOUTH WEST        
917,Childrens & Education Services,Youth Centres (Residential),Youth Office Premises Cost,K06073,Premises Related Expenditure  ,RepairsAlterations&MtceOfBldgs,BA01,DDM - General Building                  ,780.5,10/04/2015,R,SALTASH ENTERPRISES LTD       
918,Childrens & Education Services,Youth Centres (Residential),Youth Office Premises Cost,K06073,Premises Related Expenditure  ,RepairsAlterations&MtceOfBldgs,BA06,Repairs & Maintenance General           ,947.37,25/03/2015,R,PJ HARVEY & CO LTD            
919,Childrens & Education Services,Youth Centres (Residential),Youth Office Premises Cost,K06073,Premises Related Expenditure  ,RepairsAlterations&MtceOfBldgs,BA06,Repairs & Maintenance General           ,576,16/04/2015,R,MIKE AYRES DESIGN LTD         
920,Childrens & Education Services,Youth Centres (Residential),PAYP Moving Forward in Life,K06092,Supplies & Services           ,Services                      ,DF01,General Office Expenses                 ,"4,437.00",04/03/2013,R,VIRGIN MEDIA PAYMENTS LTD     
921,Childrens & Education Services,Youth Centres (Residential),PAYP Moving Forward in Life,K06092,Supplies & Services           ,Expenses                      ,DH05,Subsistence-creditors                   ,"6,221.00",10/03/2015,R,AVM IMPACT LIMITED            
922,Childrens & Education Services,Asset Management,S106 Bid,K08077,Premises Related Expenditure  ,RepairsAlterations&MtceOfBldgs,BA79,Security of Premises                    ,"1,284.36",16/04/2015,R,SIGHT & SOUND                 
923,Childrens & Education Services,Asset Management,S106 Bid,K08077,Supplies & Services           ,Prntng Stnry Gen Off Exp      ,DE52,Office Removal Expenses                 ,"2,991.60",30/03/2015,R,EDE'S (U.K.) LTD              
924,Childrens & Education Services,Asset Management,S106 Bid,K08077,Supplies & Services           ,Prntng Stnry Gen Off Exp      ,DE52,Office Removal Expenses                 ,960,08/04/2015,R,DF20 LTD                      
925,Childrens & Education Services,Asset Management,S106 Bid,K08077,Supplies & Services           ,Services                      ,DF09,Miscellaneous Fees                      ,"1,315.05",07/04/2015,R,BERNARD WILLIAMS ASSOCIATES   
926,Childrens & Education Services,Asset Management,Centre Commissioned Servs,K08078,Supplies & Services           ,Grants and Subscriptions      ,DJ01,Grants                                  ,"1,681.60",20/04/2015,R,WIMBLEDON WOODCRAFT FOLK      
927,Childrens & Education Services,Asset Management,Centre Commissioned Servs,K08078,Supplies & Services           ,Grants and Subscriptions      ,DJ01,Grants                                  ,"5,587.50",02/04/2015,R,THE SQUAD CLUB                
928,Childrens & Education Services,Asset Management,Centre Commissioned Servs,K08078,Supplies & Services           ,Grants and Subscriptions      ,DJ01,Grants                                  ,"7,942.40",14/04/2015,R,HERCULES WIMBLEDON ATHELETICS 
929,Childrens & Education Services,Asset Management,Centre Commissioned Servs,K08078,Supplies & Services           ,Grants and Subscriptions      ,DJ01,Grants                                  ,"5,036.80",13/04/2015,R,ASSOC. FOR THE POLISH FAMILY  
930,Childrens & Education Services,Asset Management,Centre Commissioned Servs,K08078,Supplies & Services           ,Grants and Subscriptions      ,DJ01,Grants                                  ,"5,597.60",13/04/2015,R,ASSOC. FOR THE POLISH FAMILY  
931,Childrens & Education Services,Facilitating School Improvemnt,SSQ,K09077,Supplies & Services           ,Services                      ,DF03,Consultants                             ,830,19/04/2015,R,HAPSFORD ASSOCIATES           
932,Childrens & Education Services,Facilitating School Improvemnt,SSQ,K09077,Supplies & Services           ,Grants and Subscriptions      ,DJ04,Subscriptions                           ,"2,529.21",26/03/2015,R,CLEAPSS                       
933,Childrens & Education Services,Facilitating School Improvemnt,SSQ,K09077,Supplies & Services           ,Grants and Subscriptions      ,DJ04,Subscriptions                           ,"9,800.00",13/04/2015,R,FISCHER EDUCATION PROJECT LTD 
934,Childrens & Education Services,Asset Management,Stouthall,K09082,Premises Related Expenditure  ,Ground Maintenance Costs      ,BL03,Maintenance of Grounds                  ,"9,000.00",31/03/2015,R,A Y LANDSCAPES LTD            
935,Childrens & Education Services,Asset Management,Stouthall,K09082,Premises Related Expenditure  ,Ground Maintenance Costs      ,BL03,Maintenance of Grounds                  ,"1,000.00",31/03/2015,R,A Y LANDSCAPES LTD            
936,Childrens & Education Services,Statutory & Regulatory Duties,Profess Develop Cntre,K09084,Premises Related Expenditure  ,Cleaning and Domestic Supplies,BH03,Cleaning Services                       ,"2,329.26",30/03/2015,R,JULIUS RUTHERFOORD & CO LTD   
937,Childrens & Education Services,Admissions & Planning Sch Prov,Schools Admin & Pupil Benefits,K90001,Supplies & Services           ,Comms and Computing           ,DG02,Software Licences                       ,"17,658.00",01/04/2015,R,LONDON GRID FOR LEARNING TRUST
938,Childrens & Education Services,Sch Meals & Milk-Not Delegated,Free School Meals,K90002,Supplies & Services           ,Grants and Subscriptions      ,DJ80,Free School Meals                       ,"9,230.51",02/03/2015,R,ISS COLLECTIONS LTD           
939,Childrens & Education Services,Sch Meals & Milk-Not Delegated,Free School Meals,K90002,Supplies & Services           ,Grants and Subscriptions      ,DJ80,Free School Meals                       ,"130,985.90",02/03/2015,R,ISS COLLECTIONS LTD           
940,Childrens & Education Services,Sch Meals & Milk-Not Delegated,Free School Meals,K90002,Supplies & Services           ,Grants and Subscriptions      ,DJ80,Free School Meals                       ,"178,459.29",02/03/2015,R,ISS COLLECTIONS LTD           
941,Childrens & Education Services,Sch Meals & Milk-Not Delegated,Free School Meals,K90002,Supplies & Services           ,Grants and Subscriptions      ,DJ80,Free School Meals                       ,"129,625.89",02/03/2015,R,ISS COLLECTIONS LTD           
942,Childrens & Education Services,Facilitating School Improvemnt,Virtual Schools - Home Tutors,K90015,Employees                     ,Direct Employee Expenses      ,AA17,Agency Staff & Casual Paymts            ,530,30/03/2015,R,REDACTED
943,Childrens & Education Services,Support for SEN Pupils,Non-Delegated Statements,K90024,Employees                     ,Direct Employee Expenses      ,AA17,Agency Staff & Casual Paymts            ,"2,400.00",31/03/2015,R,REDACTED     
944,Childrens & Education Services,Support for SEN Pupils,Non-Delegated Statements,K90024,Employees                     ,Direct Employee Expenses      ,AA17,Agency Staff & Casual Paymts            ,607.69,07/04/2015,R,REDACTED
945,Childrens & Education Services,Support for SEN Pupils,Non-Delegated Statements,K90024,Employees                     ,Direct Employee Expenses      ,AA17,Agency Staff & Casual Paymts            ,552.5,05/03/2015,R,REDACTED
946,Childrens & Education Services,Support for SEN Pupils,Non-Delegated Statements,K90024,Supplies & Services           ,Services                      ,DF09,Miscellaneous Fees                      ,"7,800.00",31/03/2015,R,BENEDICT PRIMARY SCHOOL       
947,Childrens & Education Services,Support for SEN Pupils,Non-Delegated Statements,K90024,Supplies & Services           ,Services                      ,DF09,Miscellaneous Fees                      ,521.9,31/03/2015,R,DEEPSTORE LTD                 
948,Childrens & Education Services,Support for SEN Pupils,Non-Delegated Statements,K90024,Supplies & Services           ,Services                      ,DF09,Miscellaneous Fees                      ,"4,214.90",27/01/2015,R,IFIELD COMMUNITY COLLEGE      
949,Childrens & Education Services,Support for SEN Pupils,Non-Delegated Statements,K90024,Supplies & Services           ,Services                      ,DF09,Miscellaneous Fees                      ,"1,680.00",20/04/2015,R,RIVER COUNSELLING AGENCY      
950,Childrens & Education Services,Support for SEN Pupils,Non-Delegated Statements,K90024,Supplies & Services           ,Services                      ,DF09,Miscellaneous Fees                      ,"1,650.00",30/03/2015,R,RIVER COUNSELLING AGENCY      
951,Childrens & Education Services,Support for SEN Pupils,Non-Delegated Statements,K90024,Supplies & Services           ,Services                      ,DF09,Miscellaneous Fees                      ,750,24/02/2015,R,IFIELD COMMUNITY COLLEGE      
952,Childrens & Education Services,Support for SEN Pupils,Non-Delegated Statements,K90024,Supplies & Services           ,Services                      ,DF09,Miscellaneous Fees                      ,"8,333.33",26/03/2015,R,BEYOND AUTISM                 
953,Childrens & Education Services,Support for SEN Pupils,Non-Delegated Statements,K90024,Third Party Payments          ,Other Local Authorities       ,EB48,OLA PAYMENTS-STATEMENTS                 ,"3,372.21",28/04/2015,R,ST BERNADETTE CATHOLIC J.SCH  
954,Childrens & Education Services,Support for SEN Pupils,Non-Delegated Statements,K90024,Third Party Payments          ,Other Local Authorities       ,EB50,OLA-Payments - Day Schools              ,"3,697.84",18/03/2015,R,SURREY COUNTY COUNCIL         
955,Childrens & Education Services,Support for SEN Pupils,Non-Delegated Statements,K90024,Third Party Payments          ,Other Local Authorities       ,EB50,OLA-Payments - Day Schools              ,"3,849.99",06/04/2015,R,WANDLE VALLEY SCHOOL          
956,Childrens & Education Services,Support for SEN Pupils,Non-Delegated Statements,K90024,Third Party Payments          ,Other Local Authorities       ,EB50,OLA-Payments - Day Schools              ,"3,780.02",22/01/2015,R,SURREY COUNTY COUNCIL         
957,Childrens & Education Services,Support for SEN Pupils,Non-Delegated Statements,K90024,Third Party Payments          ,Other Local Authorities       ,EB50,OLA-Payments - Day Schools              ,"11,133.69",27/04/2015,R,THE MICHAEL TIPPETT SCHOOL    
958,Childrens & Education Services,Support for SEN Pupils,Non-Delegated Statements,K90024,Third Party Payments          ,Other Establishments          ,EG01,Alternative SEN Provision               ,875,30/03/2015,R,HA TUTORS LTD                 
959,Childrens & Education Services,Support for SEN Pupils,Non-Delegated Statements,K90024,Third Party Payments          ,Other Establishments          ,EG01,Alternative SEN Provision               ,"1,562.50",31/03/2015,R,HA TUTORS LTD                 
960,Childrens & Education Services,Support for SEN Pupils,Non-Delegated Statements,K90024,Third Party Payments          ,Other Establishments          ,EG01,Alternative SEN Provision               ,"3,935.00",30/03/2015,R,HA TUTORS LTD                 
961,Childrens & Education Services,Support for SEN Pupils,Non-Delegated Statements,K90024,Third Party Payments          ,Other Establishments          ,EG01,Alternative SEN Provision               ,"3,157.00",27/02/2015,R,REDACTED     
962,Childrens & Education Services,Support for SEN Pupils,Non-Delegated Statements,K90024,Third Party Payments          ,Other Establishments          ,EG01,Alternative SEN Provision               ,805,30/03/2015,R,HA TUTORS LTD                 
963,Childrens & Education Services,Support for SEN Pupils,Non-Delegated Statements,K90024,Third Party Payments          ,Other Establishments          ,EG01,Alternative SEN Provision               ,"2,800.00",31/03/2015,R,HA TUTORS LTD                 
964,Childrens & Education Services,Support for SEN Pupils,Non-Delegated Statements,K90024,Third Party Payments          ,Other Establishments          ,EG50,Ind Day Schs Payments                   ,"15,251.00",25/03/2015,R,ST JOSEPHS SCHOOL             
965,Childrens & Education Services,Support for SEN Pupils,Non-Delegated Statements,K90024,Third Party Payments          ,Other Establishments          ,EG50,Ind Day Schs Payments                   ,"10,011.00",01/04/2015,R,BLOSSOM LOWER SCHOOL LTD      
